Workbook

Sheet Select an authority
A1: 4
A2: Selecting an Authority and its Standard Comparator Authorities
A3: PLEASE REMEMBER TO 'ENABLE MACROS' - | E3: Please select a Local Authority:
A4: THEY MAY HAVE BEEN DISABLED.
A5: Last updated: 24/09/2020
A7: Instructions on how to use this workbook available at:-
A8: LA Level Statistics - Children Looked After - User Instructions
A9: Children Looked After publications can be found at:-
A10: Children's Social Work Statistics
A11: To help comparisons between local authorities, we have used the comparators as calculated by HMIE in 2003.
A13: These were determined by comparing a number of statistical measures between education authorities, such as unemployment rates, looked after children rates, % owner-occupied properties etc. In order to determine the weight that can be given to comparisons between the local authority and its group, a star rating was introduced which indicates the ‘closeness’ of a particular authority to each member; five stars indicating extremely close and one star indicating not close:
A20: ***** | B20: Extremely Close
A21: **** | B21: Very Close
A22: *** | B22: Close
A23: ** | B23: Somewhat Close
A24: * | B24: Not close
A26: =OFFSET('REF EA Name'!B35,'Select an authority'!A1,0) -> 0
A28: Comparators | B28: Rating | D28: Note: Caution should be exercised when making comparisons with comparator authority averages if there are a number of authorities that are not extremely or very close.
A29: =OFFSET('REF CAS2'!$C$1,'Select an authority'!$A$1,0) -> South Ayrshire | B29: =OFFSET('REF CAS2'!$D$1,'Select an authority'!$A$1,0) -> *****
A30: =OFFSET('REF CAS2'!$E$1,'Select an authority'!$A$1,0) -> Dumfries and Galloway | B30: =OFFSET('REF CAS2'!$F$1,'Select an authority'!$A$1,0) -> ****
A31: =OFFSET('REF CAS2'!$G$1,'Select an authority'!$A$1,0) -> Scottish Borders | B31: =OFFSET('REF CAS2'!$H$1,'Select an authority'!$A$1,0) -> ****
A32: =OFFSET('REF CAS2'!$I$1,'Select an authority'!$A$1,0) -> Highland | B32: =OFFSET('REF CAS2'!$J$1,'Select an authority'!$A$1,0) -> ****
A33: =OFFSET('REF CAS2'!$K$1,'Select an authority'!$A$1,0) -> Angus | B33: =OFFSET('REF CAS2'!$L$1,'Select an authority'!$A$1,0) -> ****

Sheet CLA total number
A1: ='DATA CLA'!A1 -> Children Looked After: Number Looked After at 31 July 2013 to 2019
C2: select comparators:
B3: =J3 -> 28 | J3: =VLOOKUP('Select an authority'!$A$1,'REF CAs'!$A$1:$F$32,2,0) -> 28
B4: =J4 -> 7 | J4: =VLOOKUP('Select an authority'!$A$1,'REF CAs'!$A$1:$F$32,3,0) -> 7
B5: =J5 -> 26 | J5: =VLOOKUP('Select an authority'!$A$1,'REF CAs'!$A$1:$F$32,4,0) -> 26
B6: =J6 -> 16 | J6: =VLOOKUP('Select an authority'!$A$1,'REF CAs'!$A$1:$F$32,5,0) -> 16
B7: =J7 -> 3 | J7: =VLOOKUP('Select an authority'!$A$1,'REF CAs'!$A$1:$F$32,6,0) -> 3
B12: =IF(W22="N/A","[text statement not available due to data being unavailable]",IF(V22="N/A","[text statement not available due to data being unavailable]",IF(W22="*","[text statement not available due to suppression of data for confidentiality]",IF(V22="","[text statement not available due to suppression of data for confidentiality]","* The number of children looked after in "&B22&" in "&W20&" was "&ROUND(W22,0)&" ("&V44&ROUND((SQRT((V22*100)^2)),1)&"% from "&ROUND(S22,0)&" in "&S20&")")))) -> * The number of children looked after in Argyll & Bute in 2019 was 150 (an increase of 0.7% from 149 in 2018)
B14: =IF(V31="","[text statement not available due to suppression of data for confidentiality]","* The comparator authorities show "&V46&ROUND(SQRT((V31*100)^2),1)&"%, while the Scotland figures show "&V47&ROUND(SQRT((100*V33)^2),1)&"%") -> * The comparator authorities show a decrease of 6.2%, while the Scotland figures show a decrease of 2%
B16: =IF(W22="N/A","[text statement not available due to data being unavailable]",IF(Y22="N/A","[text statement not available due to data being unavailable]",IF(W22="","[text statement not available due to suppression of data for confidentiality]",IF(Y22="*","[text statement not available due to suppression of data for confidentiality]","* The rate (per 1,000 pop 0-17) is "&ROUND(Y22,1)&". This is "&Z40&" the comparator average rate of "&ROUND(Y31,1)&", and "&Z41&" the Scotland average rate of "&ROUND(Y33,1))))) -> * The rate (per 1,000 pop 0-17) is 10.3. This is less than the comparator average rate of 12.5, and less than the Scotland average rate of 13.9
C20: ='DATA CLA'!C5 -> 2014 | G20: ='DATA CLA'!D5 -> 2015 | K20: ='DATA CLA'!E5 -> 2016 | O20: ='DATA CLA'!F5 -> 2017 | S20: ='DATA CLA'!G5 -> 2018 | W20: ='DATA CLA'!H5 -> 2019
C21: number | D21: population 0-17 | E21: rate | F21: % change | G21: number | H21: population 0-17 | I21: rate | J21: % change | K21: number | L21: population 0-17 | M21: rate | N21: % change | O21: number | P21: population 0-17 | Q21: rate | R21: % change | S21: number | T21: population 0-17 | U21: rate | V21: % change | W21: number | X21: population 0-17 | Y21: rate
B22: =OFFSET('REF EA Name'!$B$2,'Select an authority'!$A$1,0) -> Argyll & Bute | C22: =IF(OFFSET('DATA CLA'!$C$5,'Select an authority'!$A$1,0)="","N/A",OFFSET('DATA CLA'!$C$5,'Select an authority'!$A$1,0)) -> 175 | D22: =VLOOKUP($B$22,'DATA CLA'!$A$6:$P$37,11,FALSE) -> 15932 | E22: =IF(OFFSET('DATA CLA'!$T$5,'Select an authority'!$A$1,0)="","N/A",OFFSET('DATA CLA'!$T$5,'Select an authority'!$A$1,0)) -> 10.98418278 | F22: =IF(C22="N/A","N/A",IF(G22="N/A","N/A",IF(C22=0,"",G22/C22-1))) -> -0.04571428571 | G22: =IF(OFFSET('DATA CLA'!$D$5,'Select an authority'!$A$1,0)="","N/A",OFFSET('DATA CLA'!$D$5,'Select an authority'!$A$1,0)) -> 167 | H22: =VLOOKUP($B$22,'DATA CLA'!$A$6:$P$37,12,FALSE) -> 15639 | I22: =IF(OFFSET('DATA CLA'!$U$5,'Select an authority'!$A$1,0)="","N/A",OFFSET('DATA CLA'!$U$5,'Select an authority'!$A$1,0)) -> 10.67843212 | J22: =IF(G22="N/A","N/A",IF(K22="N/A","N/A",IF(G22=0,"",K22/G22-1))) -> -0.02395209581 | K22: =IF(OFFSET('DATA CLA'!$E$5,'Select an authority'!$A$1,0)="","N/A",OFFSET('DATA CLA'!$E$5,'Select an authority'!$A$1,0)) -> 163 | L22: =VLOOKUP($B$22,'DATA CLA'!$A$6:$P$37,13,FALSE) -> 15323 | M22: =IF(OFFSET('DATA CLA'!$V$5,'Select an authority'!$A$1,0)="","N/A",OFFSET('DATA CLA'!$V$5,'Select an authority'!$A$1,0)) -> 10.6376036 | N22: =IF(K22="N/A", "N/A",IF(O22="N/A", "N/A", IF(K22=0,"",O22/K22-1))) -> 0.0736196319 | O22: =IF(OFFSET('DATA CLA'!$F$5,'Select an authority'!$A$1,0)="","N/A",OFFSET('DATA CLA'!$F$5,'Select an authority'!$A$1,0)) -> 175 | P22: =VLOOKUP($B$22,'DATA CLA'!$A$6:$P$37,14,FALSE) -> 15141 | Q22: =IF(OFFSET('DATA CLA'!$W$5,'Select an authority'!$A$1,0)="","N/A",OFFSET('DATA CLA'!$W$5,'Select an authority'!$A$1,0)) -> 11.55802127 | R22: =IF(O22="N/A","N/A",IF(S22="N/A", "N/A",IF(O22=0,"",S22/O22-1))) -> -0.1485714286 | S22: =IF(OFFSET('DATA CLA'!$G$5,'Select an authority'!$A$1,0)="","N/A",OFFSET('DATA CLA'!$G$5,'Select an authority'!$A$1,0)) -> 149 | T22: =VLOOKUP($B$22,'DATA CLA'!$A$6:$P$37,15,FALSE) -> 14742 | U22: =IF(OFFSET('DATA CLA'!$X$5,'Select an authority'!$A$1,0)="","N/A",OFFSET('DATA CLA'!$X$5,'Select an authority'!$A$1,0)) -> 10.10717677 | V22: =IF(S22="N/A","N/A", IF(W22="N/A", "N/A",IF(S22=0,"",W22/S22-1))) -> 0.006711409396 | W22: =IF(OFFSET('DATA CLA'!$H$5,'Select an authority'!$A$1,0)="","N/A",OFFSET('DATA CLA'!$H$5,'Select an authority'!$A$1,0)) -> 150 | X22: =VLOOKUP($B$22,'DATA CLA'!$A$6:$P$37,16,FALSE) -> 14566 | Y22: =IF(OFFSET('DATA CLA'!$Y$5,'Select an authority'!$A$1,0)="","N/A",OFFSET('DATA CLA'!$Y$5,'Select an authority'!$A$1,0)) -> 10.29795414
A24: Comparator Authorities:
B25: =OFFSET('REF EA Name'!$B$2, B3,0) -> South Ayrshire | C25: =IF(OFFSET('DATA CLA'!$C$5,B3,0)="","N/A", IF(B3<33,OFFSET('DATA CLA'!$C$5,B3,0),"")) -> 343 | D25: =OFFSET('DATA CLA'!$K$5,B3,0) -> 20677 | E25: =IF(C25="N/A","N/A", IF(C25=0,0,IF(B3<33,C25*1000/D25,""))) -> 16.58847995 | F25: =IF(C25="N/A","N/A",IF(G25="N/A", "N/A", IF($B3=33,"",IF(C25=0,"",G25/C25-1)))) -> -0.03790087464 | G25: =IF(OFFSET('DATA CLA'!$D$5,B3,0)="","N/A", IF(B3<33,OFFSET('DATA CLA'!$D$5,B3,0),"")) -> 330 | H25: =OFFSET('DATA CLA'!$L$5,B3,0) -> 20480 | I25: =IF(G25="N/A","N/A", IF(G25=0,0,IF(B3<33,G25*1000/H25,""))) -> 16.11328125 | J25: =IF(G25="N/A","N/A", IF(K25="N/A", "N/A",IF($B3=33,"",IF(G25=0,"",K25/G25-1)))) -> 0.1636363636 | K25: =IF(OFFSET('DATA CLA'!$E$5,B3,0)="","N/A", IF(B3<33,OFFSET('DATA CLA'!$E$5,B3,0),"")) -> 384 | L25: =OFFSET('DATA CLA'!$M$5,B3,0) -> 20357 | M25: =IF(K25="N/A","N/A", IF(K25=0,0,IF(B3<33,K25*1000/L25,""))) -> 18.86329027 | N25: =IF(K25="N/A","N/A", IF(O25="N/A", "N/A",IF($B3=33,"",IF(K25=0,"",O25/K25-1)))) -> -0.03645833333 | O25: =IF(OFFSET('DATA CLA'!$F$5,B3,0)="","N/A", IF(B3<33,OFFSET('DATA CLA'!$F$5,B3,0),"")) -> 370 | P25: =OFFSET('DATA CLA'!$N$5,B3,0) -> 20196 | Q25: =IF(O25="N/A","N/A", IF(O25=0,0,IF(B3<33,O25*1000/P25,""))) -> 18.3204595 | R25: =IF(O25="N/A","N/A", IF(S25="N/A", "N/A",IF($B3=33,"",IF(O25=0,"",S25/O25-1)))) -> -0.04054054054 | S25: =IF(OFFSET('DATA CLA'!$G$5,B3,0)="","N/A", IF(B3<33,OFFSET('DATA CLA'!$G$5,B3,0),"")) -> 355 | T25: =OFFSET('DATA CLA'!$O$5,B3,0) -> 19881 | U25: =IF(S25="N/A","N/A", IF(S25=0,0,IF(B3<33,S25*1000/T25,""))) -> 17.85624466 | V25: =IF(S25="N/A","N/A", IF(W25="N/A", "N/A",IF($B3=33,"",IF(S25=0,"",W25/S25-1)))) -> -0.02816901408 | W25: =IF(OFFSET('DATA CLA'!$H$5,B3,0)="","N/A", IF(B3<33,OFFSET('DATA CLA'!$H$5,B3,0),"")) -> 345 | X25: =OFFSET('DATA CLA'!$P$5,B3,0) -> 19796 | Y25: =IF(W25="N/A","N/A", IF(W25=0,0,IF(B3<33,W25*1000/X25,""))) -> 17.42776318
B26: =OFFSET('REF EA Name'!$B$2,B4,0) -> Dumfries and Galloway | C26: =IF(OFFSET('DATA CLA'!$C$5,B4,0)="","N/A", IF(B4<33,OFFSET('DATA CLA'!$C$5,B4,0),"")) -> 387 | D26: =OFFSET('DATA CLA'!$K$5,B4,0) -> 27802 | E26: =IF(C26="N/A","N/A", IF(C26=0,0,IF(B4<33,C26*1000/D26,""))) -> 13.91986188 | F26: =IF(C26="N/A","N/A", IF(G26="N/A", "N/A",IF($B4=33,"",IF(C26=0,"",G26/C26-1)))) -> 0.05684754522 | G26: =IF(OFFSET('DATA CLA'!$D$5,B4,0)="","N/A", IF(B4<33,OFFSET('DATA CLA'!$D$5,B4,0),"")) -> 409 | H26: =OFFSET('DATA CLA'!$L$5,B4,0) -> 27399 | I26: =IF(G26="N/A","N/A", IF(G26=0,0,IF(B4<33,G26*1000/H26,""))) -> 14.9275521 | J26: =IF(G26="N/A","N/A", IF(K26="N/A", "N/A",IF($B4=33,"",IF(G26=0,"",K26/G26-1)))) -> -0.0391198044 | K26: =IF(OFFSET('DATA CLA'!$E$5,B4,0)="","N/A", IF(B4<33,OFFSET('DATA CLA'!$E$5,B4,0),"")) -> 393 | L26: =OFFSET('DATA CLA'!$M$5,B4,0) -> 27034 | M26: =IF(K26="N/A","N/A", IF(K26=0,0,IF(B4<33,K26*1000/L26,""))) -> 14.53724939 | N26: =IF(K26="N/A","N/A",IF(O26="N/A", "N/A", IF($B4=33,"",IF(K26=0,"",O26/K26-1)))) -> -0.02798982188 | O26: =IF(OFFSET('DATA CLA'!$F$5,B4,0)="","N/A", IF(B4<33,OFFSET('DATA CLA'!$F$5,B4,0),"")) -> 382 | P26: =OFFSET('DATA CLA'!$N$5,B4,0) -> 26707 | Q26: =IF(O26="N/A","N/A", IF(O26=0,0,IF(B4<33,O26*1000/P26,""))) -> 14.30336616 | R26: =IF(O26="N/A","N/A",IF(S26="N/A", "N/A", IF($B4=33,"",IF(O26=0,"",S26/O26-1)))) -> 0.1492146597 | S26: =IF(OFFSET('DATA CLA'!$G$5,B4,0)="","N/A", IF(B4<33,OFFSET('DATA CLA'!$G$5,B4,0),"")) -> 439 | T26: =OFFSET('DATA CLA'!$O$5,B4,0) -> 26328 | U26: =IF(S26="N/A","N/A", IF(S26=0,0,IF(B4<33,S26*1000/T26,""))) -> 16.67426314 | V26: =IF(S26="N/A","N/A",IF(W26="N/A", "N/A", IF($B4=33,"",IF(S26=0,"",W26/S26-1)))) -> -0.1002277904 | W26: =IF(OFFSET('DATA CLA'!$H$5,B4,0)="","N/A", IF(B4<33,OFFSET('DATA CLA'!$H$5,B4,0),"")) -> 395 | X26: =OFFSET('DATA CLA'!$P$5,B4,0) -> 26168 | Y26: =IF(W26="N/A","N/A", IF(W26=0,0,IF(B4<33,W26*1000/X26,""))) -> 15.09477224
B27: =OFFSET('REF EA Name'!$B$2,B5,0) -> Scottish Borders | C27: =IF(OFFSET('DATA CLA'!$C$5,B5,0)="","N/A", IF(B5<33,OFFSET('DATA CLA'!$C$5,B5,0),"")) -> 179 | D27: =OFFSET('DATA CLA'!$K$5,B5,0) -> 21728 | E27: =IF(C27="N/A","N/A", IF(C27=0,0,IF(B5<33,C27*1000/D27,""))) -> 8.238217968 | F27: =IF(C27="N/A","N/A", IF(G27="N/A", "N/A",IF($B5=33,"",IF(C27=0,"",G27/C27-1)))) -> 0.1229050279 | G27: =IF(OFFSET('DATA CLA'!$D$5,B5,0)="","N/A", IF(B5<33,OFFSET('DATA CLA'!$D$5,B5,0),"")) -> 201 | H27: =OFFSET('DATA CLA'!$L$5,B5,0) -> 21671 | I27: =IF(G27="N/A","N/A", IF(G27=0,0,IF(B5<33,G27*1000/H27,""))) -> 9.275068063 | J27: =IF(G27="N/A","N/A", IF(K27="N/A", "N/A",IF($B5=33,"",IF(G27=0,"",K27/G27-1)))) -> 0.08457711443 | K27: =IF(OFFSET('DATA CLA'!$E$5,B5,0)="","N/A", IF(B5<33,OFFSET('DATA CLA'!$E$5,B5,0),"")) -> 218 | L27: =OFFSET('DATA CLA'!$M$5,B5,0) -> 21487 | M27: =IF(K27="N/A","N/A", IF(K27=0,0,IF(B5<33,K27*1000/L27,""))) -> 10.14566947 | N27: =IF(K27="N/A","N/A", IF(O27="N/A", "N/A",IF($B5=33,"",IF(K27=0,"",O27/K27-1)))) -> 0.04587155963 | O27: =IF(OFFSET('DATA CLA'!$F$5,B5,0)="","N/A",IF(B5<33,OFFSET('DATA CLA'!$F$5,B5,0),"")) -> 228 | P27: =OFFSET('DATA CLA'!$N$5,B5,0) -> 21507 | Q27: =IF(O27="N/A","N/A", IF(O27=0,0,IF(B5<33,O27*1000/P27,""))) -> 10.60119961 | R27: =IF(O27="N/A","N/A",IF(S27="N/A", "N/A", IF($B5=33,"",IF(O27=0,"",S27/O27-1)))) -> -0.100877193 | S27: =IF(OFFSET('DATA CLA'!$G$5,B5,0)="","N/A", IF(B5<33,OFFSET('DATA CLA'!$G$5,B5,0),"")) -> 205 | T27: =OFFSET('DATA CLA'!$O$5,B5,0) -> 21434 | U27: =IF(S27="N/A","N/A", IF(S27=0,0,IF(B5<33,S27*1000/T27,""))) -> 9.564243725 | V27: =IF(S27="N/A","N/A",IF(W27="N/A", "N/A", IF($B5=33,"",IF(S27=0,"",W27/S27-1)))) -> -0.0487804878 | W27: =IF(OFFSET('DATA CLA'!$H$5,B5,0)="","N/A", IF(B5<33,OFFSET('DATA CLA'!$H$5,B5,0),"")) -> 195 | X27: =OFFSET('DATA CLA'!$P$5,B5,0) -> 21349 | Y27: =IF(W27="N/A","N/A", IF(W27=0,0,IF(B5<33,W27*1000/X27,""))) -> 9.133917279
B28: =OFFSET('REF EA Name'!$B$2,B6,0) -> Highland | C28: =IF(OFFSET('DATA CLA'!$C$5,B6,0)="","N/A", IF(B6<33,OFFSET('DATA CLA'!$C$5,B6,0),"")) -> 447 | D28: =OFFSET('DATA CLA'!$K$5,B6,0) -> 46070 | E28: =IF(C28="N/A","N/A", IF(C28=0,0,IF(B6<33,C28*1000/D28,""))) -> 9.702626438 | F28: =IF(C28="N/A","N/A", IF(G28="N/A", "N/A",IF($B6=33,"",IF(C28=0,"",G28/C28-1)))) -> -0.02237136465 | G28: =IF(OFFSET('DATA CLA'!$D$5,B6,0)="","N/A", IF(B6<33,OFFSET('DATA CLA'!$D$5,B6,0),"")) -> 437 | H28: =OFFSET('DATA CLA'!$L$5,B6,0) -> 45603 | I28: =IF(G28="N/A","N/A", IF(G28=0,0,IF(B6<33,G28*1000/H28,""))) -> 9.582702892 | J28: =IF(G28="N/A","N/A", IF(K28="N/A", "N/A",IF($B6=33,"",IF(G28=0,"",K28/G28-1)))) -> 0.006864988558 | K28: =IF(OFFSET('DATA CLA'!$E$5,B6,0)="","N/A", IF(B6<33,OFFSET('DATA CLA'!$E$5,B6,0),"")) -> 440 | L28: =OFFSET('DATA CLA'!$M$5,B6,0) -> 45470 | M28: =IF(K28="N/A","N/A", IF(K28=0,0,IF(B6<33,K28*1000/L28,""))) -> 9.676709919 | N28: =IF(K28="N/A","N/A", IF(O28="N/A", "N/A",IF($B6=33,"",IF(K28=0,"",O28/K28-1)))) -> 0.1068181818 | O28: =IF(OFFSET('DATA CLA'!$F$5,B6,0)="","N/A", IF(B6<33,OFFSET('DATA CLA'!$F$5,B6,0),"")) -> 487 | P28: =OFFSET('DATA CLA'!$N$5,B6,0) -> 45284 | Q28: =IF(O28="N/A","N/A", IF(O28=0,0,IF(B6<33,O28*1000/P28,""))) -> 10.75435032 | R28: =IF(O28="N/A","N/A",IF(S28="N/A", "N/A", IF($B6=33,"",IF(O28=0,"",S28/O28-1)))) -> 0.06981519507 | S28: =IF(OFFSET('DATA CLA'!$G$5,B6,0)="","N/A", IF(B6<33,OFFSET('DATA CLA'!$G$5,B6,0),"")) -> 521 | T28: =OFFSET('DATA CLA'!$O$5,B6,0) -> 44427 | U28: =IF(S28="N/A","N/A", IF(S28=0,0,IF(B6<33,S28*1000/T28,""))) -> 11.72710289 | V28: =IF(S28="N/A","N/A", IF(W28="N/A", "N/A",IF($B6=33,"",IF(S28=0,"",W28/S28-1)))) -> -0.07293666027 | W28: =IF(OFFSET('DATA CLA'!$H$5,B6,0)="","N/A", IF(B6<33,OFFSET('DATA CLA'!$H$5,B6,0),"")) -> 483 | X28: =OFFSET('DATA CLA'!$P$5,B6,0) -> 44039 | Y28: =IF(W28="N/A","N/A", IF(W28=0,0,IF(B6<33,W28*1000/X28,""))) -> 10.96755149
B29: =OFFSET('REF EA Name'!$B$2,B7,0) -> Angus | C29: =IF(OFFSET('DATA CLA'!$C$5,B7,0)="","N/A", IF(B7<33,OFFSET('DATA CLA'!$C$5,B7,0),"")) -> 272 | D29: =OFFSET('DATA CLA'!$K$5,B7,0) -> 22608 | E29: =IF(C29="N/A","N/A", IF(C29=0,0,IF(B7<33,C29*1000/D29,""))) -> 12.03113942 | F29: =IF(C29="N/A","N/A", IF(G29="N/A", "N/A",IF($B7=33,"",IF(C29=0,"",G29/C29-1)))) -> -0.04044117647 | G29: =IF(OFFSET('DATA CLA'!$D$5,B7,0)="","N/A", IF(B7<33,OFFSET('DATA CLA'!$D$5,B7,0),"")) -> 261 | H29: =OFFSET('DATA CLA'!$L$5,B7,0) -> 22523 | I29: =IF(G29="N/A","N/A", IF(G29=0,0,IF(B7<33,G29*1000/H29,""))) -> 11.58815433 | J29: =IF(G29="N/A","N/A", IF(K29="N/A", "N/A",IF($B7=33,"",IF(G29=0,"",K29/G29-1)))) -> -0.08812260536 | K29: =IF(OFFSET('DATA CLA'!$E$5,B7,0)="","N/A", IF(B7<33,OFFSET('DATA CLA'!$E$5,B7,0),"")) -> 238 | L29: =OFFSET('DATA CLA'!$M$5,B7,0) -> 22339 | M29: =IF(K29="N/A","N/A", IF(K29=0,0,IF(B7<33,K29*1000/L29,""))) -> 10.65401316 | N29: =IF(K29="N/A","N/A",IF(O29="N/A", "N/A", IF($B7=33,"",IF(K29=0,"",O29/K29-1)))) -> 0.07142857143 | O29: =IF(OFFSET('DATA CLA'!$F$5,B7,0)="","N/A", IF(B7<33,OFFSET('DATA CLA'!$F$5,B7,0),"")) -> 255 | P29: =OFFSET('DATA CLA'!$N$5,B7,0) -> 22034 | Q29: =IF(O29="N/A","N/A", IF(O29=0,0,IF(B7<33,O29*1000/P29,""))) -> 11.57302351 | R29: =IF(O29="N/A","N/A",IF(S29="N/A", "N/A", IF($B7=33,"",IF(O29=0,"",S29/O29-1)))) -> -0.01568627451 | S29: =IF(OFFSET('DATA CLA'!$G$5,B7,0)="","N/A", IF(B7<33,OFFSET('DATA CLA'!$G$5,B7,0),"")) -> 251 | T29: =OFFSET('DATA CLA'!$O$5,B7,0) -> 21759 | U29: =IF(S29="N/A","N/A", IF(S29=0,0,IF(B7<33,S29*1000/T29,""))) -> 11.53545659 | V29: =IF(S29="N/A", "N/A",IF(W29="N/A","N/A", IF($B7=33,"",IF(S29=0,"",W29/S29-1)))) -> -0.02788844622 | W29: =IF(OFFSET('DATA CLA'!$H$5,B7,0)="","N/A", IF(B7<33,OFFSET('DATA CLA'!$H$5,B7,0),"")) -> 244 | X29: =OFFSET('DATA CLA'!$P$5,B7,0) -> 21588 | Y29: =IF(W29="N/A","N/A", IF(W29=0,0,IF(B7<33,W29*1000/X29,""))) -> 11.3025755
B31: Comparator authorities | C31: =SUM(C25:C29) -> 1628 | D31: =SUM(D25:D29) -> 138885 | E31: =SUM(C25:C29)/SUM(D25:D29)*1000 -> 11.72192821 | F31: =IF(C31=0,"",SUM(G25:G29)/SUM(C25:C29)-1) -> 0.006142506143 | G31: =SUM(G25:G29) -> 1638 | H31: =SUM(H25:H29) -> 137676 | I31: =SUM(G25:G29)/SUM(H25:H29)*1000 -> 11.89749847 | J31: =IF(G31=0,"",SUM(K25:K29)/SUM(G25:G29)-1) -> 0.02136752137 | K31: =SUM(K25:K29) -> 1673 | L31: =SUM(L25:L29) -> 136687 | M31: =SUM(K25:K29)/SUM(L25:L29)*1000 -> 12.23964239 | N31: =IF(K31=0,"",SUM(O25:O29)/SUM(K25:K29)-1) -> 0.02928870293 | O31: =SUM(O25:O29) -> 1722 | P31: =SUM(P25:P29) -> 135728 | Q31: =SUM(O25:O29)/SUM(P25:P29)*1000 -> 12.68713898 | R31: =IF(O31=0,"",SUM(S25:S29)/SUM(O25:O29)-1) -> 0.02845528455 | S31: =SUM(S25:S29) -> 1771 | T31: =SUM(T25:T29) -> 133829 | U31: =SUM(S25:S29)/SUM(T25:T29)*1000 -> 13.23330519 | V31: =IF(S31=0,"",SUM(W25:W29)/SUM(S25:S29)-1) -> -0.0615471485 | W31: =SUM(W25:W29) -> 1662 | X31: =SUM(X25:X29) -> 132940 | Y31: =SUM(W25:W29)/SUM(X25:X29)*1000 -> 12.50188055
B33: Scotland | C33: ='DATA CLA'!C38 -> 15600 | D33: ='DATA CLA'!K38 -> 1034923 | E33: =C33*1000/D33 -> 15.07358518 | F33: =IF(C33=0,"",G33/C33-1) -> -0.01282051282 | G33: ='DATA CLA'!D38 -> 15400 | H33: ='DATA CLA'!L38 -> 1032698 | I33: =G33*1000/H33 -> 14.91239452 | J33: =IF(G33=0,"",K33/G33-1) -> -0.00538961039 | K33: ='DATA CLA'!E38 -> 15317 | L33: ='DATA CLA'!M38 -> 1031096 | M33: =K33*1000/L33 -> 14.85506684 | N33: =IF(K33=0,"",O33/K33-1) -> -0.02742051316 | O33: ='DATA CLA'!F38 -> 14897 | P33: ='DATA CLA'!$N$38 -> 1031761 | Q33: =O33*1000/P33 -> 14.4384213 | R33: =IF(O33=0,"",S33/O33-1) -> -0.02302477009 | S33: ='DATA CLA'!G38 -> 14554 | T33: ='DATA CLA'!$O$38 -> 1028798 | U33: =S33*1000/T33 -> 14.14660604 | V33: =IF(S33=0,"",W33/S33-1) -> -0.02006321286 | W33: ='DATA CLA'!H38 -> 14262 | X33: ='DATA CLA'!$P$38 -> 1029162 | Y33: =W33*1000/X33 -> 13.8578766
A35: Notes
A36: =IF('DATA CLA'!A40="","",'DATA CLA'!A40) -> Population figures source: NRS mid-year population estimates for 2013-2019.
A37: =IF('DATA CLA'!A41="","",'DATA CLA'!A41) -> Source: Scottish Government CLAS Returns
V40: =V22-V31 -> 0.0682585579 | Y40: =Y22-Y31 -> -2.203926408 | Z40: =IF(Y40<-0.5,"less than",IF(Y40>0.5,"greater than","similar to")) -> less than
V41: =V22-V33 -> 0.02677462226 | Y41: =Y22-Y33 -> -3.559922463 | Z41: =IF(Y41<-0.5,"less than",IF(Y41>0.5,"greater than","similar to")) -> less than
V43: =W22-S22 -> 1
V44: =IF(V43<0,"a decrease of ",IF(V43>=0,"an increase of ")) -> an increase of
V46: =IF(V31<0,"a decrease of ",IF(V31>=0,"an increase of ")) -> a decrease of
V47: =IF(V33<0,"a decrease of ",IF(V33>=0,"an increase of ")) -> a decrease of

Sheet CLA Accommodation
A1: ='DATA CLA Acc'!A1 -> Children Looked After: Type of Accommodation at 31 July 2016 to 2019
C2: select comparators:
B3: =J3 -> 28 | J3: =VLOOKUP('Select an authority'!$A$1,'REF CAs'!$A$1:$F$32,2,0) -> 28
B4: 15 | J4: =VLOOKUP('Select an authority'!$A$1,'REF CAs'!$A$1:$F$32,3,0) -> 7
B5: =J5 -> 26 | J5: =VLOOKUP('Select an authority'!$A$1,'REF CAs'!$A$1:$F$32,4,0) -> 26
B6: 9 | J6: =VLOOKUP('Select an authority'!$A$1,'REF CAs'!$A$1:$F$32,5,0) -> 16
B7: 17 | J7: =VLOOKUP('Select an authority'!$A$1,'REF CAs'!$A$1:$F$32,6,0) -> 3
B12: =IF(AA28="N/A","[text statement not available due to data being unavailable]",IF(AA28>0,"* In "&AA26&", "&ROUND(100*AA28,0)&"% of looked after children in "&B28&" were living at home with parents, "&AA52&ROUND(SQRT((100*AA48)^2),1)&"%-points over the previous year.","")) -> * In In the community, 31% of looked after children in Argyll & Bute were living at home with parents, an increase of 3.8%-points over the previous year.
B15: =IF(AA28>0,"* This compares with "&AA53&ROUND(SQRT((100*AA49)^2),1)&"%-points for comparator authorities, and "&AA54&ROUND(SQRT((100*AA50)^2),1)&"%-points for Scotland as a whole.","") -> * This compares with a decrease of 1.5%-points for comparator authorities, and a decrease of 1.5%-points for Scotland as a whole.
B18: =IF(AA28="N/A","[text statement not available due to data being unavailable]",IF(AA28>0,"* The percentage of children living at home with parents ("&ROUND(100*AA28,0)&"%) is "&AA67&" the comparator average ("&ROUND(100*AA37,0)&"%), and "&AA70&" the Scotland average ("&ROUND(100*AA39,0)&"%).","")) -> * The percentage of children living at home with parents (31%) is greater than the comparator average (20%), and greater than the Scotland average (25%).
C25: ='DATA CLA Acc'!B3 -> 2016 | K25: ='DATA CLA Acc'!K3 -> 2017 | S25: ='DATA CLA Acc'!T3 -> 2018 | AA25: ='DATA CLA Acc'!AC3 -> 2019
C26: In the community | H26: In residential accommodation | K26: In the community | P26: In residential accommodation | S26: In the community | X26: In residential accommodation | AA26: In the community | AF26: In residential accommodation
C27: At home with parents | D27: With friends / relatives | E27: With foster carers provided by LA | F27: With foster carers purchased by LA | G27: In other community1 | H27: In local authority home/ Voluntary Home | I27: In other residential care2 | K27: At home with parents | L27: With friends / relatives | M27: With foster carers provided by LA | N27: With foster carers purchased by LA | O27: In other community1 | P27: In local authority home/ Voluntary Home | Q27: In other residential care2 | S27: At home with parents | T27: With friends / relatives | U27: With foster carers provided by LA | V27: With foster carers purchased by LA | W27: In other community1 | X27: In local authority home/ Voluntary Home | Y27: In other residential care2 | AA27: At home with parents | AB27: With friends / relatives | AC27: With foster carers provided by LA | AD27: With foster carers purchased by LA | AE27: In other community1 | AF27: In local authority home/ Voluntary Home | AG27: In other residential care2
B28: =OFFSET('REF EA Name'!$B$2,'Select an authority'!$A$1,0) -> Argyll & Bute | C28: =IFERROR(VLOOKUP($B28,'DATA CLA Acc'!$A$7:$AJ$39,'DATA CLA Acc'!B$51,FALSE)/VLOOKUP($B28,'DATA CLA Acc'!$A$7:$AJ$39,9,FALSE),"*") -> 0.2944785276 | D28: =IFERROR(VLOOKUP($B28,'DATA CLA Acc'!$A$7:$AJ$39,'DATA CLA Acc'!C$51,FALSE)/VLOOKUP($B28,'DATA CLA Acc'!$A$7:$AJ$39,9,FALSE),"*") -> 0.2699386503 | E28: =IFERROR(VLOOKUP($B28,'DATA CLA Acc'!$A$7:$AJ$39,'DATA CLA Acc'!D$51,FALSE)/VLOOKUP($B28,'DATA CLA Acc'!$A$7:$AJ$39,9,FALSE),"*") -> 0.282208589 | F28: =IFERROR(VLOOKUP($B28,'DATA CLA Acc'!$A$7:$AJ$39,'DATA CLA Acc'!E$51,FALSE)/VLOOKUP($B28,'DATA CLA Acc'!$A$7:$AJ$39,9,FALSE),"*") -> * | G28: =IFERROR(VLOOKUP($B28,'DATA CLA Acc'!$A$7:$AJ$39,'DATA CLA Acc'!F$51,FALSE)/VLOOKUP($B28,'DATA CLA Acc'!$A$7:$AJ$39,9,FALSE),"*") -> * | H28: =IFERROR(VLOOKUP($B28,'DATA CLA Acc'!$A$7:$AJ$39,'DATA CLA Acc'!G$51,FALSE)/VLOOKUP($B28,'DATA CLA Acc'!$A$7:$AJ$39,9,FALSE),"*") -> 0.06134969325 | I28: =IFERROR(VLOOKUP($B28,'DATA CLA Acc'!$A$7:$AJ$39,'DATA CLA Acc'!H$51,FALSE)/VLOOKUP($B28,'DATA CLA Acc'!$A$7:$AJ$39,9,FALSE),"*") -> 0.06134969325 | K28: =IFERROR(VLOOKUP($B28,'DATA CLA Acc'!$A$7:$AJ$39,'DATA CLA Acc'!K$51,FALSE)/VLOOKUP($B28,'DATA CLA Acc'!$A$7:$AJ$39,18,FALSE),"*") -> 0.2971428571 | L28: =IFERROR(VLOOKUP($B28,'DATA CLA Acc'!$A$7:$AJ$39,'DATA CLA Acc'!L$51,FALSE)/VLOOKUP($B28,'DATA CLA Acc'!$A$7:$AJ$39,18,FALSE),"*") -> 0.3314285714 | M28: =IFERROR(VLOOKUP($B28,'DATA CLA Acc'!$A$7:$AJ$39,'DATA CLA Acc'!M$51,FALSE)/VLOOKUP($B28,'DATA CLA Acc'!$A$7:$AJ$39,18,FALSE),"*") -> 0.2114285714 | N28: =IFERROR(VLOOKUP($B28,'DATA CLA Acc'!$A$7:$AJ$39,'DATA CLA Acc'!N$51,FALSE)/VLOOKUP($B28,'DATA CLA Acc'!$A$7:$AJ$39,18,FALSE),"*") -> * | O28: =IFERROR(VLOOKUP($B28,'DATA CLA Acc'!$A$7:$AJ$39,'DATA CLA Acc'!O$51,FALSE)/VLOOKUP($B28,'DATA CLA Acc'!$A$7:$AJ$39,18,FALSE),"*") -> * | P28: =IFERROR(VLOOKUP($B28,'DATA CLA Acc'!$A$7:$AJ$39,'DATA CLA Acc'!P$51,FALSE)/VLOOKUP($B28,'DATA CLA Acc'!$A$7:$AJ$39,18,FALSE),"*") -> 0.07428571429 | Q28: =IFERROR(VLOOKUP($B28,'DATA CLA Acc'!$A$7:$AJ$39,'DATA CLA Acc'!Q$51,FALSE)/VLOOKUP($B28,'DATA CLA Acc'!$A$7:$AJ$39,18,FALSE),"*") -> 0.05142857143 | S28: =IFERROR(VLOOKUP($B28,'DATA CLA Acc'!$A$7:$AJ$39,'DATA CLA Acc'!T$51,FALSE)/VLOOKUP($B28,'DATA CLA Acc'!$A$7:$AJ$39,27,FALSE),"*") -> 0.2684563758 | T28: =IFERROR(VLOOKUP($B28,'DATA CLA Acc'!$A$7:$AJ$39,'DATA CLA Acc'!U$51,FALSE)/VLOOKUP($B28,'DATA CLA Acc'!$A$7:$AJ$39,27,FALSE),"*") -> 0.3020134228 | U28: =IFERROR(VLOOKUP($B28,'DATA CLA Acc'!$A$7:$AJ$39,'DATA CLA Acc'!V$51,FALSE)/VLOOKUP($B28,'DATA CLA Acc'!$A$7:$AJ$39,27,FALSE),"*") -> 0.2281879195 | V28: =IFERROR(VLOOKUP($B28,'DATA CLA Acc'!$A$7:$AJ$39,'DATA CLA Acc'!W$51,FALSE)/VLOOKUP($B28,'DATA CLA Acc'!$A$7:$AJ$39,27,FALSE),"*") -> * | W28: =IFERROR(VLOOKUP($B28,'DATA CLA Acc'!$A$7:$AJ$39,'DATA CLA Acc'!X$51,FALSE)/VLOOKUP($B28,'DATA CLA Acc'!$A$7:$AJ$39,27,FALSE),"*") -> * | X28: =IFERROR(VLOOKUP($B28,'DATA CLA Acc'!$A$7:$AJ$39,'DATA CLA Acc'!Y$51,FALSE)/VLOOKUP($B28,'DATA CLA Acc'!$A$7:$AJ$39,27,FALSE),"*") -> 0.1208053691 | Y28: =IFERROR(VLOOKUP($B28,'DATA CLA Acc'!$A$7:$AJ$39,'DATA CLA Acc'!Z$51,FALSE)/VLOOKUP($B28,'DATA CLA Acc'!$A$7:$AJ$39,27,FALSE),"*") -> 0.06040268456 | AA28: =IFERROR(VLOOKUP($B28,'DATA CLA Acc'!$A$7:$AJ$39,'DATA CLA Acc'!AC$51,FALSE)/VLOOKUP($B28,'DATA CLA Acc'!$A$7:$AJ$39,36,FALSE),"*") -> 0.3066666667 | AB28: =IFERROR(VLOOKUP($B28,'DATA CLA Acc'!$A$7:$AJ$39,'DATA CLA Acc'!AD$51,FALSE)/VLOOKUP($B28,'DATA CLA Acc'!$A$7:$AJ$39,36,FALSE),"*") -> 0.28 | AC28: =IFERROR(VLOOKUP($B28,'DATA CLA Acc'!$A$7:$AJ$39,'DATA CLA Acc'!AE$51,FALSE)/VLOOKUP($B28,'DATA CLA Acc'!$A$7:$AJ$39,36,FALSE),"*") -> 0.2133333333 | AD28: =IFERROR(VLOOKUP($B28,'DATA CLA Acc'!$A$7:$AJ$39,'DATA CLA Acc'!AF$51,FALSE)/VLOOKUP($B28,'DATA CLA Acc'!$A$7:$AJ$39,36,FALSE),"*") -> * | AE28: =IFERROR(VLOOKUP($B28,'DATA CLA Acc'!$A$7:$AJ$39,'DATA CLA Acc'!AG$51,FALSE)/VLOOKUP($B28,'DATA CLA Acc'!$A$7:$AJ$39,36,FALSE),"*") -> * | AF28: =IFERROR(VLOOKUP($B28,'DATA CLA Acc'!$A$7:$AJ$39,'DATA CLA Acc'!AH$51,FALSE)/VLOOKUP($B28,'DATA CLA Acc'!$A$7:$AJ$39,36,FALSE),"*") -> 0.1 | AG28: =IFERROR(VLOOKUP($B28,'DATA CLA Acc'!$A$7:$AJ$39,'DATA CLA Acc'!AI$51,FALSE)/VLOOKUP($B28,'DATA CLA Acc'!$A$7:$AJ$39,36,FALSE),"*") -> 0.06666666667
A30: Comparator Authorities:
B31: =OFFSET('REF EA Name'!$B$2, B3,0) -> South Ayrshire | C31: =IFERROR(VLOOKUP($B31,'DATA CLA Acc'!$A$7:$AJ$39,'DATA CLA Acc'!B$51,FALSE)/VLOOKUP($B31,'DATA CLA Acc'!$A$7:$AJ$39,9,FALSE),"*") -> 0.3229166667 | D31: =IFERROR(VLOOKUP($B31,'DATA CLA Acc'!$A$7:$AJ$39,'DATA CLA Acc'!C$51,FALSE)/VLOOKUP($B31,'DATA CLA Acc'!$A$7:$AJ$39,9,FALSE),"*") -> 0.2005208333 | E31: =IFERROR(VLOOKUP($B31,'DATA CLA Acc'!$A$7:$AJ$39,'DATA CLA Acc'!D$51,FALSE)/VLOOKUP($B31,'DATA CLA Acc'!$A$7:$AJ$39,9,FALSE),"*") -> 0.2526041667 | F31: =IFERROR(VLOOKUP($B31,'DATA CLA Acc'!$A$7:$AJ$39,'DATA CLA Acc'!E$51,FALSE)/VLOOKUP($B31,'DATA CLA Acc'!$A$7:$AJ$39,9,FALSE),"*") -> 0.125 | G31: =IFERROR(VLOOKUP($B31,'DATA CLA Acc'!$A$7:$AJ$39,'DATA CLA Acc'!F$51,FALSE)/VLOOKUP($B31,'DATA CLA Acc'!$A$7:$AJ$39,9,FALSE),"*") -> 0.0390625 | H31: =IFERROR(VLOOKUP($B31,'DATA CLA Acc'!$A$7:$AJ$39,'DATA CLA Acc'!G$51,FALSE)/VLOOKUP($B31,'DATA CLA Acc'!$A$7:$AJ$39,9,FALSE),"*") -> 0.01822916667 | I31: =IFERROR(VLOOKUP($B31,'DATA CLA Acc'!$A$7:$AJ$39,'DATA CLA Acc'!H$51,FALSE)/VLOOKUP($B31,'DATA CLA Acc'!$A$7:$AJ$39,9,FALSE),"*") -> 0.04166666667 | K31: =IFERROR(VLOOKUP($B31,'DATA CLA Acc'!$A$7:$AJ$39,'DATA CLA Acc'!K$51,FALSE)/VLOOKUP($B31,'DATA CLA Acc'!$A$7:$AJ$39,18,FALSE),"*") -> 0.3459459459 | L31: =IFERROR(VLOOKUP($B31,'DATA CLA Acc'!$A$7:$AJ$39,'DATA CLA Acc'!L$51,FALSE)/VLOOKUP($B31,'DATA CLA Acc'!$A$7:$AJ$39,18,FALSE),"*") -> 0.2513513514 | M31: =IFERROR(VLOOKUP($B31,'DATA CLA Acc'!$A$7:$AJ$39,'DATA CLA Acc'!M$51,FALSE)/VLOOKUP($B31,'DATA CLA Acc'!$A$7:$AJ$39,18,FALSE),"*") -> 0.2162162162 | N31: =IFERROR(VLOOKUP($B31,'DATA CLA Acc'!$A$7:$AJ$39,'DATA CLA Acc'!N$51,FALSE)/VLOOKUP($B31,'DATA CLA Acc'!$A$7:$AJ$39,18,FALSE),"*") -> 0.0972972973 | O31: =IFERROR(VLOOKUP($B31,'DATA CLA Acc'!$A$7:$AJ$39,'DATA CLA Acc'!O$51,FALSE)/VLOOKUP($B31,'DATA CLA Acc'!$A$7:$AJ$39,18,FALSE),"*") -> 0.03243243243 | P31: =IFERROR(VLOOKUP($B31,'DATA CLA Acc'!$A$7:$AJ$39,'DATA CLA Acc'!P$51,FALSE)/VLOOKUP($B31,'DATA CLA Acc'!$A$7:$AJ$39,18,FALSE),"*") -> 0.02162162162 | Q31: =IFERROR(VLOOKUP($B31,'DATA CLA Acc'!$A$7:$AJ$39,'DATA CLA Acc'!Q$51,FALSE)/VLOOKUP($B31,'DATA CLA Acc'!$A$7:$AJ$39,18,FALSE),"*") -> 0.03513513514 | S31: =IFERROR(VLOOKUP($B31,'DATA CLA Acc'!$A$7:$AJ$39,'DATA CLA Acc'!T$51,FALSE)/VLOOKUP($B31,'DATA CLA Acc'!$A$7:$AJ$39,27,FALSE),"*") -> 0.2732394366 | T31: =IFERROR(VLOOKUP($B31,'DATA CLA Acc'!$A$7:$AJ$39,'DATA CLA Acc'!U$51,FALSE)/VLOOKUP($B31,'DATA CLA Acc'!$A$7:$AJ$39,27,FALSE),"*") -> 0.2507042254 | U31: =IFERROR(VLOOKUP($B31,'DATA CLA Acc'!$A$7:$AJ$39,'DATA CLA Acc'!V$51,FALSE)/VLOOKUP($B31,'DATA CLA Acc'!$A$7:$AJ$39,27,FALSE),"*") -> 0.2450704225 | V31: =IFERROR(VLOOKUP($B31,'DATA CLA Acc'!$A$7:$AJ$39,'DATA CLA Acc'!W$51,FALSE)/VLOOKUP($B31,'DATA CLA Acc'!$A$7:$AJ$39,27,FALSE),"*") -> 0.1126760563 | W31: =IFERROR(VLOOKUP($B31,'DATA CLA Acc'!$A$7:$AJ$39,'DATA CLA Acc'!X$51,FALSE)/VLOOKUP($B31,'DATA CLA Acc'!$A$7:$AJ$39,27,FALSE),"*") -> 0.02253521127 | X31: =IFERROR(VLOOKUP($B31,'DATA CLA Acc'!$A$7:$AJ$39,'DATA CLA Acc'!Y$51,FALSE)/VLOOKUP($B31,'DATA CLA Acc'!$A$7:$AJ$39,27,FALSE),"*") -> 0.01971830986 | Y31: =IFERROR(VLOOKUP($B31,'DATA CLA Acc'!$A$7:$AJ$39,'DATA CLA Acc'!Z$51,FALSE)/VLOOKUP($B31,'DATA CLA Acc'!$A$7:$AJ$39,27,FALSE),"*") -> 0.07605633803 | AA31: =IFERROR(VLOOKUP($B31,'DATA CLA Acc'!$A$7:$AJ$39,'DATA CLA Acc'!AC$51,FALSE)/VLOOKUP($B31,'DATA CLA Acc'!$A$7:$AJ$39,36,FALSE),"*") -> 0.2057971014 | AB31: =IFERROR(VLOOKUP($B31,'DATA CLA Acc'!$A$7:$AJ$39,'DATA CLA Acc'!AD$51,FALSE)/VLOOKUP($B31,'DATA CLA Acc'!$A$7:$AJ$39,36,FALSE),"*") -> 0.2608695652 | AC31: =IFERROR(VLOOKUP($B31,'DATA CLA Acc'!$A$7:$AJ$39,'DATA CLA Acc'!AE$51,FALSE)/VLOOKUP($B31,'DATA CLA Acc'!$A$7:$AJ$39,36,FALSE),"*") -> 0.3246376812 | AD31: =IFERROR(VLOOKUP($B31,'DATA CLA Acc'!$A$7:$AJ$39,'DATA CLA Acc'!AF$51,FALSE)/VLOOKUP($B31,'DATA CLA Acc'!$A$7:$AJ$39,36,FALSE),"*") -> 0.07826086957 | AE31: =IFERROR(VLOOKUP($B31,'DATA CLA Acc'!$A$7:$AJ$39,'DATA CLA Acc'!AG$51,FALSE)/VLOOKUP($B31,'DATA CLA Acc'!$A$7:$AJ$39,36,FALSE),"*") -> 0.02898550725 | AF31: =IFERROR(VLOOKUP($B31,'DATA CLA Acc'!$A$7:$AJ$39,'DATA CLA Acc'!AH$51,FALSE)/VLOOKUP($B31,'DATA CLA Acc'!$A$7:$AJ$39,36,FALSE),"*") -> 0.0347826087 | AG31: =IFERROR(VLOOKUP($B31,'DATA CLA Acc'!$A$7:$AJ$39,'DATA CLA Acc'!AI$51,FALSE)/VLOOKUP($B31,'DATA CLA Acc'!$A$7:$AJ$39,36,FALSE),"*") -> 0.06666666667
B32: =OFFSET('REF EA Name'!$B$2,B4,0) -> Glasgow City | C32: =IFERROR(VLOOKUP($B32,'DATA CLA Acc'!$A$7:$AJ$39,'DATA CLA Acc'!B$51,FALSE)/VLOOKUP($B32,'DATA CLA Acc'!$A$7:$AJ$39,9,FALSE),"*") -> 0.1651487553 | D32: =IFERROR(VLOOKUP($B32,'DATA CLA Acc'!$A$7:$AJ$39,'DATA CLA Acc'!C$51,FALSE)/VLOOKUP($B32,'DATA CLA Acc'!$A$7:$AJ$39,9,FALSE),"*") -> 0.4116575592 | E32: =IFERROR(VLOOKUP($B32,'DATA CLA Acc'!$A$7:$AJ$39,'DATA CLA Acc'!D$51,FALSE)/VLOOKUP($B32,'DATA CLA Acc'!$A$7:$AJ$39,9,FALSE),"*") -> 0.2358834244 | F32: =IFERROR(VLOOKUP($B32,'DATA CLA Acc'!$A$7:$AJ$39,'DATA CLA Acc'!E$51,FALSE)/VLOOKUP($B32,'DATA CLA Acc'!$A$7:$AJ$39,9,FALSE),"*") -> 0.09805707347 | G32: =IFERROR(VLOOKUP($B32,'DATA CLA Acc'!$A$7:$AJ$39,'DATA CLA Acc'!F$51,FALSE)/VLOOKUP($B32,'DATA CLA Acc'!$A$7:$AJ$39,9,FALSE),"*") -> 0.002125075896 | H32: =IFERROR(VLOOKUP($B32,'DATA CLA Acc'!$A$7:$AJ$39,'DATA CLA Acc'!G$51,FALSE)/VLOOKUP($B32,'DATA CLA Acc'!$A$7:$AJ$39,9,FALSE),"*") -> 0.04401942927 | I32: =IFERROR(VLOOKUP($B32,'DATA CLA Acc'!$A$7:$AJ$39,'DATA CLA Acc'!H$51,FALSE)/VLOOKUP($B32,'DATA CLA Acc'!$A$7:$AJ$39,9,FALSE),"*") -> 0.04310868245 | K32: =IFERROR(VLOOKUP($B32,'DATA CLA Acc'!$A$7:$AJ$39,'DATA CLA Acc'!K$51,FALSE)/VLOOKUP($B32,'DATA CLA Acc'!$A$7:$AJ$39,18,FALSE),"*") -> 0.1736823488 | L32: =IFERROR(VLOOKUP($B32,'DATA CLA Acc'!$A$7:$AJ$39,'DATA CLA Acc'!L$51,FALSE)/VLOOKUP($B32,'DATA CLA Acc'!$A$7:$AJ$39,18,FALSE),"*") -> 0.4074991157 | M32: =IFERROR(VLOOKUP($B32,'DATA CLA Acc'!$A$7:$AJ$39,'DATA CLA Acc'!M$51,FALSE)/VLOOKUP($B32,'DATA CLA Acc'!$A$7:$AJ$39,18,FALSE),"*") -> 0.2352316944 | N32: =IFERROR(VLOOKUP($B32,'DATA CLA Acc'!$A$7:$AJ$39,'DATA CLA Acc'!N$51,FALSE)/VLOOKUP($B32,'DATA CLA Acc'!$A$7:$AJ$39,18,FALSE),"*") -> 0.1001061196 | O32: =IFERROR(VLOOKUP($B32,'DATA CLA Acc'!$A$7:$AJ$39,'DATA CLA Acc'!O$51,FALSE)/VLOOKUP($B32,'DATA CLA Acc'!$A$7:$AJ$39,18,FALSE),"*") -> * | P32: =IFERROR(VLOOKUP($B32,'DATA CLA Acc'!$A$7:$AJ$39,'DATA CLA Acc'!P$51,FALSE)/VLOOKUP($B32,'DATA CLA Acc'!$A$7:$AJ$39,18,FALSE),"*") -> 0.04740007075 | Q32: =IFERROR(VLOOKUP($B32,'DATA CLA Acc'!$A$7:$AJ$39,'DATA CLA Acc'!Q$51,FALSE)/VLOOKUP($B32,'DATA CLA Acc'!$A$7:$AJ$39,18,FALSE),"*") -> * | S32: =IFERROR(VLOOKUP($B32,'DATA CLA Acc'!$A$7:$AJ$39,'DATA CLA Acc'!T$51,FALSE)/VLOOKUP($B32,'DATA CLA Acc'!$A$7:$AJ$39,27,FALSE),"*") -> 0.1746691871 | T32: =IFERROR(VLOOKUP($B32,'DATA CLA Acc'!$A$7:$AJ$39,'DATA CLA Acc'!U$51,FALSE)/VLOOKUP($B32,'DATA CLA Acc'!$A$7:$AJ$39,27,FALSE),"*") -> 0.4241965974 | U32: =IFERROR(VLOOKUP($B32,'DATA CLA Acc'!$A$7:$AJ$39,'DATA CLA Acc'!V$51,FALSE)/VLOOKUP($B32,'DATA CLA Acc'!$A$7:$AJ$39,27,FALSE),"*") -> 0.2230623819 | V32: =IFERROR(VLOOKUP($B32,'DATA CLA Acc'!$A$7:$AJ$39,'DATA CLA Acc'!W$51,FALSE)/VLOOKUP($B32,'DATA CLA Acc'!$A$7:$AJ$39,27,FALSE),"*") -> 0.09262759924 | W32: =IFERROR(VLOOKUP($B32,'DATA CLA Acc'!$A$7:$AJ$39,'DATA CLA Acc'!X$51,FALSE)/VLOOKUP($B32,'DATA CLA Acc'!$A$7:$AJ$39,27,FALSE),"*") -> * | X32: =IFERROR(VLOOKUP($B32,'DATA CLA Acc'!$A$7:$AJ$39,'DATA CLA Acc'!Y$51,FALSE)/VLOOKUP($B32,'DATA CLA Acc'!$A$7:$AJ$39,27,FALSE),"*") -> 0.05633270321 | Y32: =IFERROR(VLOOKUP($B32,'DATA CLA Acc'!$A$7:$AJ$39,'DATA CLA Acc'!Z$51,FALSE)/VLOOKUP($B32,'DATA CLA Acc'!$A$7:$AJ$39,27,FALSE),"*") -> 0.02911153119 | AA32: =IFERROR(VLOOKUP($B32,'DATA CLA Acc'!$A$7:$AJ$39,'DATA CLA Acc'!AC$51,FALSE)/VLOOKUP($B32,'DATA CLA Acc'!$A$7:$AJ$39,36,FALSE),"*") -> 0.1581450654 | AB32: =IFERROR(VLOOKUP($B32,'DATA CLA Acc'!$A$7:$AJ$39,'DATA CLA Acc'!AD$51,FALSE)/VLOOKUP($B32,'DATA CLA Acc'!$A$7:$AJ$39,36,FALSE),"*") -> 0.4609591756 | AC32: =IFERROR(VLOOKUP($B32,'DATA CLA Acc'!$A$7:$AJ$39,'DATA CLA Acc'!AE$51,FALSE)/VLOOKUP($B32,'DATA CLA Acc'!$A$7:$AJ$39,36,FALSE),"*") -> 0.2179944511 | AD32: =IFERROR(VLOOKUP($B32,'DATA CLA Acc'!$A$7:$AJ$39,'DATA CLA Acc'!AF$51,FALSE)/VLOOKUP($B32,'DATA CLA Acc'!$A$7:$AJ$39,36,FALSE),"*") -> 0.08481965914 | AE32: =IFERROR(VLOOKUP($B32,'DATA CLA Acc'!$A$7:$AJ$39,'DATA CLA Acc'!AG$51,FALSE)/VLOOKUP($B32,'DATA CLA Acc'!$A$7:$AJ$39,36,FALSE),"*") -> * | AF32: =IFERROR(VLOOKUP($B32,'DATA CLA Acc'!$A$7:$AJ$39,'DATA CLA Acc'!AH$51,FALSE)/VLOOKUP($B32,'DATA CLA Acc'!$A$7:$AJ$39,36,FALSE),"*") -> 0.05390408244 | AG32: =IFERROR(VLOOKUP($B32,'DATA CLA Acc'!$A$7:$AJ$39,'DATA CLA Acc'!AI$51,FALSE)/VLOOKUP($B32,'DATA CLA Acc'!$A$7:$AJ$39,36,FALSE),"*") -> 0.02338485929
B33: =OFFSET('REF EA Name'!$B$2,B5,0) -> Scottish Borders | C33: =IFERROR(VLOOKUP($B33,'DATA CLA Acc'!$A$7:$AJ$39,'DATA CLA Acc'!B$51,FALSE)/VLOOKUP($B33,'DATA CLA Acc'!$A$7:$AJ$39,9,FALSE),"*") -> 0.123853211 | D33: =IFERROR(VLOOKUP($B33,'DATA CLA Acc'!$A$7:$AJ$39,'DATA CLA Acc'!C$51,FALSE)/VLOOKUP($B33,'DATA CLA Acc'!$A$7:$AJ$39,9,FALSE),"*") -> 0.2660550459 | E33: =IFERROR(VLOOKUP($B33,'DATA CLA Acc'!$A$7:$AJ$39,'DATA CLA Acc'!D$51,FALSE)/VLOOKUP($B33,'DATA CLA Acc'!$A$7:$AJ$39,9,FALSE),"*") -> 0.3577981651 | F33: =IFERROR(VLOOKUP($B33,'DATA CLA Acc'!$A$7:$AJ$39,'DATA CLA Acc'!E$51,FALSE)/VLOOKUP($B33,'DATA CLA Acc'!$A$7:$AJ$39,9,FALSE),"*") -> 0.0871559633 | G33: =IFERROR(VLOOKUP($B33,'DATA CLA Acc'!$A$7:$AJ$39,'DATA CLA Acc'!F$51,FALSE)/VLOOKUP($B33,'DATA CLA Acc'!$A$7:$AJ$39,9,FALSE),"*") -> 0.04128440367 | H33: =IFERROR(VLOOKUP($B33,'DATA CLA Acc'!$A$7:$AJ$39,'DATA CLA Acc'!G$51,FALSE)/VLOOKUP($B33,'DATA CLA Acc'!$A$7:$AJ$39,9,FALSE),"*") -> 0.02293577982 | I33: =IFERROR(VLOOKUP($B33,'DATA CLA Acc'!$A$7:$AJ$39,'DATA CLA Acc'!H$51,FALSE)/VLOOKUP($B33,'DATA CLA Acc'!$A$7:$AJ$39,9,FALSE),"*") -> 0.1009174312 | K33: =IFERROR(VLOOKUP($B33,'DATA CLA Acc'!$A$7:$AJ$39,'DATA CLA Acc'!K$51,FALSE)/VLOOKUP($B33,'DATA CLA Acc'!$A$7:$AJ$39,18,FALSE),"*") -> 0.2061403509 | L33: =IFERROR(VLOOKUP($B33,'DATA CLA Acc'!$A$7:$AJ$39,'DATA CLA Acc'!L$51,FALSE)/VLOOKUP($B33,'DATA CLA Acc'!$A$7:$AJ$39,18,FALSE),"*") -> 0.25 | M33: =IFERROR(VLOOKUP($B33,'DATA CLA Acc'!$A$7:$AJ$39,'DATA CLA Acc'!M$51,FALSE)/VLOOKUP($B33,'DATA CLA Acc'!$A$7:$AJ$39,18,FALSE),"*") -> 0.3421052632 | N33: =IFERROR(VLOOKUP($B33,'DATA CLA Acc'!$A$7:$AJ$39,'DATA CLA Acc'!N$51,FALSE)/VLOOKUP($B33,'DATA CLA Acc'!$A$7:$AJ$39,18,FALSE),"*") -> 0.06578947368 | O33: =IFERROR(VLOOKUP($B33,'DATA CLA Acc'!$A$7:$AJ$39,'DATA CLA Acc'!O$51,FALSE)/VLOOKUP($B33,'DATA CLA Acc'!$A$7:$AJ$39,18,FALSE),"*") -> * | P33: =IFERROR(VLOOKUP($B33,'DATA CLA Acc'!$A$7:$AJ$39,'DATA CLA Acc'!P$51,FALSE)/VLOOKUP($B33,'DATA CLA Acc'!$A$7:$AJ$39,18,FALSE),"*") -> * | Q33: =IFERROR(VLOOKUP($B33,'DATA CLA Acc'!$A$7:$AJ$39,'DATA CLA Acc'!Q$51,FALSE)/VLOOKUP($B33,'DATA CLA Acc'!$A$7:$AJ$39,18,FALSE),"*") -> 0.09649122807 | S33: =IFERROR(VLOOKUP($B33,'DATA CLA Acc'!$A$7:$AJ$39,'DATA CLA Acc'!T$51,FALSE)/VLOOKUP($B33,'DATA CLA Acc'!$A$7:$AJ$39,27,FALSE),"*") -> 0.2780487805 | T33: =IFERROR(VLOOKUP($B33,'DATA CLA Acc'!$A$7:$AJ$39,'DATA CLA Acc'!U$51,FALSE)/VLOOKUP($B33,'DATA CLA Acc'!$A$7:$AJ$39,27,FALSE),"*") -> 0.2341463415 | U33: =IFERROR(VLOOKUP($B33,'DATA CLA Acc'!$A$7:$AJ$39,'DATA CLA Acc'!V$51,FALSE)/VLOOKUP($B33,'DATA CLA Acc'!$A$7:$AJ$39,27,FALSE),"*") -> 0.3073170732 | V33: =IFERROR(VLOOKUP($B33,'DATA CLA Acc'!$A$7:$AJ$39,'DATA CLA Acc'!W$51,FALSE)/VLOOKUP($B33,'DATA CLA Acc'!$A$7:$AJ$39,27,FALSE),"*") -> 0.03902439024 | W33: =IFERROR(VLOOKUP($B33,'DATA CLA Acc'!$A$7:$AJ$39,'DATA CLA Acc'!X$51,FALSE)/VLOOKUP($B33,'DATA CLA Acc'!$A$7:$AJ$39,27,FALSE),"*") -> * | X33: =IFERROR(VLOOKUP($B33,'DATA CLA Acc'!$A$7:$AJ$39,'DATA CLA Acc'!Y$51,FALSE)/VLOOKUP($B33,'DATA CLA Acc'!$A$7:$AJ$39,27,FALSE),"*") -> * | Y33: =IFERROR(VLOOKUP($B33,'DATA CLA Acc'!$A$7:$AJ$39,'DATA CLA Acc'!Z$51,FALSE)/VLOOKUP($B33,'DATA CLA Acc'!$A$7:$AJ$39,27,FALSE),"*") -> 0.112195122 | AA33: =IFERROR(VLOOKUP($B33,'DATA CLA Acc'!$A$7:$AJ$39,'DATA CLA Acc'!AC$51,FALSE)/VLOOKUP($B33,'DATA CLA Acc'!$A$7:$AJ$39,36,FALSE),"*") -> 0.2820512821 | AB33: =IFERROR(VLOOKUP($B33,'DATA CLA Acc'!$A$7:$AJ$39,'DATA CLA Acc'!AD$51,FALSE)/VLOOKUP($B33,'DATA CLA Acc'!$A$7:$AJ$39,36,FALSE),"*") -> 0.2564102564 | AC33: =IFERROR(VLOOKUP($B33,'DATA CLA Acc'!$A$7:$AJ$39,'DATA CLA Acc'!AE$51,FALSE)/VLOOKUP($B33,'DATA CLA Acc'!$A$7:$AJ$39,36,FALSE),"*") -> 0.2923076923 | AD33: =IFERROR(VLOOKUP($B33,'DATA CLA Acc'!$A$7:$AJ$39,'DATA CLA Acc'!AF$51,FALSE)/VLOOKUP($B33,'DATA CLA Acc'!$A$7:$AJ$39,36,FALSE),"*") -> 0.0358974359 | AE33: =IFERROR(VLOOKUP($B33,'DATA CLA Acc'!$A$7:$AJ$39,'DATA CLA Acc'!AG$51,FALSE)/VLOOKUP($B33,'DATA CLA Acc'!$A$7:$AJ$39,36,FALSE),"*") -> * | AF33: =IFERROR(VLOOKUP($B33,'DATA CLA Acc'!$A$7:$AJ$39,'DATA CLA Acc'!AH$51,FALSE)/VLOOKUP($B33,'DATA CLA Acc'!$A$7:$AJ$39,36,FALSE),"*") -> * | AG33: =IFERROR(VLOOKUP($B33,'DATA CLA Acc'!$A$7:$AJ$39,'DATA CLA Acc'!AI$51,FALSE)/VLOOKUP($B33,'DATA CLA Acc'!$A$7:$AJ$39,36,FALSE),"*") -> 0.1025641026
B34: =OFFSET('REF EA Name'!$B$2,B6,0) -> East Ayrshire | C34: =IFERROR(VLOOKUP($B34,'DATA CLA Acc'!$A$7:$AJ$39,'DATA CLA Acc'!B$51,FALSE)/VLOOKUP($B34,'DATA CLA Acc'!$A$7:$AJ$39,9,FALSE),"*") -> 0.2764578834 | D34: =IFERROR(VLOOKUP($B34,'DATA CLA Acc'!$A$7:$AJ$39,'DATA CLA Acc'!C$51,FALSE)/VLOOKUP($B34,'DATA CLA Acc'!$A$7:$AJ$39,9,FALSE),"*") -> 0.2872570194 | E34: =IFERROR(VLOOKUP($B34,'DATA CLA Acc'!$A$7:$AJ$39,'DATA CLA Acc'!D$51,FALSE)/VLOOKUP($B34,'DATA CLA Acc'!$A$7:$AJ$39,9,FALSE),"*") -> 0.2419006479 | F34: =IFERROR(VLOOKUP($B34,'DATA CLA Acc'!$A$7:$AJ$39,'DATA CLA Acc'!E$51,FALSE)/VLOOKUP($B34,'DATA CLA Acc'!$A$7:$AJ$39,9,FALSE),"*") -> 0.08639308855 | G34: =IFERROR(VLOOKUP($B34,'DATA CLA Acc'!$A$7:$AJ$39,'DATA CLA Acc'!F$51,FALSE)/VLOOKUP($B34,'DATA CLA Acc'!$A$7:$AJ$39,9,FALSE),"*") -> 0.02591792657 | H34: =IFERROR(VLOOKUP($B34,'DATA CLA Acc'!$A$7:$AJ$39,'DATA CLA Acc'!G$51,FALSE)/VLOOKUP($B34,'DATA CLA Acc'!$A$7:$AJ$39,9,FALSE),"*") -> 0.03455723542 | I34: =IFERROR(VLOOKUP($B34,'DATA CLA Acc'!$A$7:$AJ$39,'DATA CLA Acc'!H$51,FALSE)/VLOOKUP($B34,'DATA CLA Acc'!$A$7:$AJ$39,9,FALSE),"*") -> 0.0475161987 | K34: =IFERROR(VLOOKUP($B34,'DATA CLA Acc'!$A$7:$AJ$39,'DATA CLA Acc'!K$51,FALSE)/VLOOKUP($B34,'DATA CLA Acc'!$A$7:$AJ$39,18,FALSE),"*") -> 0.2953367876 | L34: =IFERROR(VLOOKUP($B34,'DATA CLA Acc'!$A$7:$AJ$39,'DATA CLA Acc'!L$51,FALSE)/VLOOKUP($B34,'DATA CLA Acc'!$A$7:$AJ$39,18,FALSE),"*") -> 0.2538860104 | M34: =IFERROR(VLOOKUP($B34,'DATA CLA Acc'!$A$7:$AJ$39,'DATA CLA Acc'!M$51,FALSE)/VLOOKUP($B34,'DATA CLA Acc'!$A$7:$AJ$39,18,FALSE),"*") -> 0.2383419689 | N34: =IFERROR(VLOOKUP($B34,'DATA CLA Acc'!$A$7:$AJ$39,'DATA CLA Acc'!N$51,FALSE)/VLOOKUP($B34,'DATA CLA Acc'!$A$7:$AJ$39,18,FALSE),"*") -> 0.09844559585 | O34: =IFERROR(VLOOKUP($B34,'DATA CLA Acc'!$A$7:$AJ$39,'DATA CLA Acc'!O$51,FALSE)/VLOOKUP($B34,'DATA CLA Acc'!$A$7:$AJ$39,18,FALSE),"*") -> 0.01813471503 | P34: =IFERROR(VLOOKUP($B34,'DATA CLA Acc'!$A$7:$AJ$39,'DATA CLA Acc'!P$51,FALSE)/VLOOKUP($B34,'DATA CLA Acc'!$A$7:$AJ$39,18,FALSE),"*") -> 0.03886010363 | Q34: =IFERROR(VLOOKUP($B34,'DATA CLA Acc'!$A$7:$AJ$39,'DATA CLA Acc'!Q$51,FALSE)/VLOOKUP($B34,'DATA CLA Acc'!$A$7:$AJ$39,18,FALSE),"*") -> 0.05699481865 | S34: =IFERROR(VLOOKUP($B34,'DATA CLA Acc'!$A$7:$AJ$39,'DATA CLA Acc'!T$51,FALSE)/VLOOKUP($B34,'DATA CLA Acc'!$A$7:$AJ$39,27,FALSE),"*") -> 0.3092269327 | T34: =IFERROR(VLOOKUP($B34,'DATA CLA Acc'!$A$7:$AJ$39,'DATA CLA Acc'!U$51,FALSE)/VLOOKUP($B34,'DATA CLA Acc'!$A$7:$AJ$39,27,FALSE),"*") -> 0.2518703242 | U34: =IFERROR(VLOOKUP($B34,'DATA CLA Acc'!$A$7:$AJ$39,'DATA CLA Acc'!V$51,FALSE)/VLOOKUP($B34,'DATA CLA Acc'!$A$7:$AJ$39,27,FALSE),"*") -> 0.2394014963 | V34: =IFERROR(VLOOKUP($B34,'DATA CLA Acc'!$A$7:$AJ$39,'DATA CLA Acc'!W$51,FALSE)/VLOOKUP($B34,'DATA CLA Acc'!$A$7:$AJ$39,27,FALSE),"*") -> 0.06483790524 | W34: =IFERROR(VLOOKUP($B34,'DATA CLA Acc'!$A$7:$AJ$39,'DATA CLA Acc'!X$51,FALSE)/VLOOKUP($B34,'DATA CLA Acc'!$A$7:$AJ$39,27,FALSE),"*") -> 0.04488778055 | X34: =IFERROR(VLOOKUP($B34,'DATA CLA Acc'!$A$7:$AJ$39,'DATA CLA Acc'!Y$51,FALSE)/VLOOKUP($B34,'DATA CLA Acc'!$A$7:$AJ$39,27,FALSE),"*") -> 0.03740648379 | Y34: =IFERROR(VLOOKUP($B34,'DATA CLA Acc'!$A$7:$AJ$39,'DATA CLA Acc'!Z$51,FALSE)/VLOOKUP($B34,'DATA CLA Acc'!$A$7:$AJ$39,27,FALSE),"*") -> 0.05236907731 | AA34: =IFERROR(VLOOKUP($B34,'DATA CLA Acc'!$A$7:$AJ$39,'DATA CLA Acc'!AC$51,FALSE)/VLOOKUP($B34,'DATA CLA Acc'!$A$7:$AJ$39,36,FALSE),"*") -> 0.304 | AB34: =IFERROR(VLOOKUP($B34,'DATA CLA Acc'!$A$7:$AJ$39,'DATA CLA Acc'!AD$51,FALSE)/VLOOKUP($B34,'DATA CLA Acc'!$A$7:$AJ$39,36,FALSE),"*") -> 0.24 | AC34: =IFERROR(VLOOKUP($B34,'DATA CLA Acc'!$A$7:$AJ$39,'DATA CLA Acc'!AE$51,FALSE)/VLOOKUP($B34,'DATA CLA Acc'!$A$7:$AJ$39,36,FALSE),"*") -> 0.2773333333 | AD34: =IFERROR(VLOOKUP($B34,'DATA CLA Acc'!$A$7:$AJ$39,'DATA CLA Acc'!AF$51,FALSE)/VLOOKUP($B34,'DATA CLA Acc'!$A$7:$AJ$39,36,FALSE),"*") -> 0.06666666667 | AE34: =IFERROR(VLOOKUP($B34,'DATA CLA Acc'!$A$7:$AJ$39,'DATA CLA Acc'!AG$51,FALSE)/VLOOKUP($B34,'DATA CLA Acc'!$A$7:$AJ$39,36,FALSE),"*") -> 0.02666666667 | AF34: =IFERROR(VLOOKUP($B34,'DATA CLA Acc'!$A$7:$AJ$39,'DATA CLA Acc'!AH$51,FALSE)/VLOOKUP($B34,'DATA CLA Acc'!$A$7:$AJ$39,36,FALSE),"*") -> 0.04533333333 | AG34: =IFERROR(VLOOKUP($B34,'DATA CLA Acc'!$A$7:$AJ$39,'DATA CLA Acc'!AI$51,FALSE)/VLOOKUP($B34,'DATA CLA Acc'!$A$7:$AJ$39,36,FALSE),"*") -> 0.04
B35: =OFFSET('REF EA Name'!$B$2,B7,0) -> Inverclyde | C35: =IFERROR(VLOOKUP($B35,'DATA CLA Acc'!$A$7:$AJ$39,'DATA CLA Acc'!B$51,FALSE)/VLOOKUP($B35,'DATA CLA Acc'!$A$7:$AJ$39,9,FALSE),"*") -> 0.3816425121 | D35: =IFERROR(VLOOKUP($B35,'DATA CLA Acc'!$A$7:$AJ$39,'DATA CLA Acc'!C$51,FALSE)/VLOOKUP($B35,'DATA CLA Acc'!$A$7:$AJ$39,9,FALSE),"*") -> 0.2560386473 | E35: =IFERROR(VLOOKUP($B35,'DATA CLA Acc'!$A$7:$AJ$39,'DATA CLA Acc'!D$51,FALSE)/VLOOKUP($B35,'DATA CLA Acc'!$A$7:$AJ$39,9,FALSE),"*") -> 0.154589372 | F35: =IFERROR(VLOOKUP($B35,'DATA CLA Acc'!$A$7:$AJ$39,'DATA CLA Acc'!E$51,FALSE)/VLOOKUP($B35,'DATA CLA Acc'!$A$7:$AJ$39,9,FALSE),"*") -> 0.03381642512 | G35: =IFERROR(VLOOKUP($B35,'DATA CLA Acc'!$A$7:$AJ$39,'DATA CLA Acc'!F$51,FALSE)/VLOOKUP($B35,'DATA CLA Acc'!$A$7:$AJ$39,9,FALSE),"*") -> 0.02415458937 | H35: =IFERROR(VLOOKUP($B35,'DATA CLA Acc'!$A$7:$AJ$39,'DATA CLA Acc'!G$51,FALSE)/VLOOKUP($B35,'DATA CLA Acc'!$A$7:$AJ$39,9,FALSE),"*") -> 0.1062801932 | I35: =IFERROR(VLOOKUP($B35,'DATA CLA Acc'!$A$7:$AJ$39,'DATA CLA Acc'!H$51,FALSE)/VLOOKUP($B35,'DATA CLA Acc'!$A$7:$AJ$39,9,FALSE),"*") -> 0.04347826087 | K35: =IFERROR(VLOOKUP($B35,'DATA CLA Acc'!$A$7:$AJ$39,'DATA CLA Acc'!K$51,FALSE)/VLOOKUP($B35,'DATA CLA Acc'!$A$7:$AJ$39,18,FALSE),"*") -> 0.3944954128 | L35: =IFERROR(VLOOKUP($B35,'DATA CLA Acc'!$A$7:$AJ$39,'DATA CLA Acc'!L$51,FALSE)/VLOOKUP($B35,'DATA CLA Acc'!$A$7:$AJ$39,18,FALSE),"*") -> 0.2752293578 | M35: =IFERROR(VLOOKUP($B35,'DATA CLA Acc'!$A$7:$AJ$39,'DATA CLA Acc'!M$51,FALSE)/VLOOKUP($B35,'DATA CLA Acc'!$A$7:$AJ$39,18,FALSE),"*") -> 0.1651376147 | N35: =IFERROR(VLOOKUP($B35,'DATA CLA Acc'!$A$7:$AJ$39,'DATA CLA Acc'!N$51,FALSE)/VLOOKUP($B35,'DATA CLA Acc'!$A$7:$AJ$39,18,FALSE),"*") -> * | O35: =IFERROR(VLOOKUP($B35,'DATA CLA Acc'!$A$7:$AJ$39,'DATA CLA Acc'!O$51,FALSE)/VLOOKUP($B35,'DATA CLA Acc'!$A$7:$AJ$39,18,FALSE),"*") -> * | P35: =IFERROR(VLOOKUP($B35,'DATA CLA Acc'!$A$7:$AJ$39,'DATA CLA Acc'!P$51,FALSE)/VLOOKUP($B35,'DATA CLA Acc'!$A$7:$AJ$39,18,FALSE),"*") -> 0.09174311927 | Q35: =IFERROR(VLOOKUP($B35,'DATA CLA Acc'!$A$7:$AJ$39,'DATA CLA Acc'!Q$51,FALSE)/VLOOKUP($B35,'DATA CLA Acc'!$A$7:$AJ$39,18,FALSE),"*") -> 0.03211009174 | S35: =IFERROR(VLOOKUP($B35,'DATA CLA Acc'!$A$7:$AJ$39,'DATA CLA Acc'!T$51,FALSE)/VLOOKUP($B35,'DATA CLA Acc'!$A$7:$AJ$39,27,FALSE),"*") -> 0.432160804 | T35: =IFERROR(VLOOKUP($B35,'DATA CLA Acc'!$A$7:$AJ$39,'DATA CLA Acc'!U$51,FALSE)/VLOOKUP($B35,'DATA CLA Acc'!$A$7:$AJ$39,27,FALSE),"*") -> 0.2311557789 | U35: =IFERROR(VLOOKUP($B35,'DATA CLA Acc'!$A$7:$AJ$39,'DATA CLA Acc'!V$51,FALSE)/VLOOKUP($B35,'DATA CLA Acc'!$A$7:$AJ$39,27,FALSE),"*") -> 0.1507537688 | V35: =IFERROR(VLOOKUP($B35,'DATA CLA Acc'!$A$7:$AJ$39,'DATA CLA Acc'!W$51,FALSE)/VLOOKUP($B35,'DATA CLA Acc'!$A$7:$AJ$39,27,FALSE),"*") -> 0.02512562814 | W35: =IFERROR(VLOOKUP($B35,'DATA CLA Acc'!$A$7:$AJ$39,'DATA CLA Acc'!X$51,FALSE)/VLOOKUP($B35,'DATA CLA Acc'!$A$7:$AJ$39,27,FALSE),"*") -> 0.02512562814 | X35: =IFERROR(VLOOKUP($B35,'DATA CLA Acc'!$A$7:$AJ$39,'DATA CLA Acc'!Y$51,FALSE)/VLOOKUP($B35,'DATA CLA Acc'!$A$7:$AJ$39,27,FALSE),"*") -> 0.08542713568 | Y35: =IFERROR(VLOOKUP($B35,'DATA CLA Acc'!$A$7:$AJ$39,'DATA CLA Acc'!Z$51,FALSE)/VLOOKUP($B35,'DATA CLA Acc'!$A$7:$AJ$39,27,FALSE),"*") -> 0.05025125628 | AA35: =IFERROR(VLOOKUP($B35,'DATA CLA Acc'!$A$7:$AJ$39,'DATA CLA Acc'!AC$51,FALSE)/VLOOKUP($B35,'DATA CLA Acc'!$A$7:$AJ$39,36,FALSE),"*") -> 0.4780487805 | AB35: =IFERROR(VLOOKUP($B35,'DATA CLA Acc'!$A$7:$AJ$39,'DATA CLA Acc'!AD$51,FALSE)/VLOOKUP($B35,'DATA CLA Acc'!$A$7:$AJ$39,36,FALSE),"*") -> 0.2195121951 | AC35: =IFERROR(VLOOKUP($B35,'DATA CLA Acc'!$A$7:$AJ$39,'DATA CLA Acc'!AE$51,FALSE)/VLOOKUP($B35,'DATA CLA Acc'!$A$7:$AJ$39,36,FALSE),"*") -> 0.1219512195 | AD35: =IFERROR(VLOOKUP($B35,'DATA CLA Acc'!$A$7:$AJ$39,'DATA CLA Acc'!AF$51,FALSE)/VLOOKUP($B35,'DATA CLA Acc'!$A$7:$AJ$39,36,FALSE),"*") -> 0.0243902439 | AE35: =IFERROR(VLOOKUP($B35,'DATA CLA Acc'!$A$7:$AJ$39,'DATA CLA Acc'!AG$51,FALSE)/VLOOKUP($B35,'DATA CLA Acc'!$A$7:$AJ$39,36,FALSE),"*") -> * | AF35: =IFERROR(VLOOKUP($B35,'DATA CLA Acc'!$A$7:$AJ$39,'DATA CLA Acc'!AH$51,FALSE)/VLOOKUP($B35,'DATA CLA Acc'!$A$7:$AJ$39,36,FALSE),"*") -> 0.09268292683 | AG35: =IFERROR(VLOOKUP($B35,'DATA CLA Acc'!$A$7:$AJ$39,'DATA CLA Acc'!AI$51,FALSE)/VLOOKUP($B35,'DATA CLA Acc'!$A$7:$AJ$39,36,FALSE),"*") -> 0.04390243902
B37: Comparator authorities3 | C37: =SUM(IF(VLOOKUP($B31,'DATA CLA Acc'!$A$7:$AJ$38,'DATA CLA Acc'!B$51,FALSE)="*",0,VLOOKUP($B31,'DATA CLA Acc'!$A$7:$AJ$38,'DATA CLA Acc'!B$51,FALSE)),IF(VLOOKUP($B32,'DATA CLA Acc'!$A$7:$AJ$38,'DATA CLA Acc'!B$51,FALSE)="*",0,VLOOKUP($B32,'DATA CLA Acc'!$A$7:$AJ$38,'DATA CLA Acc'!B$51,FALSE)),IF(VLOOKUP($B33,'DATA CLA Acc'!$A$7:$AJ$38,'DATA CLA Acc'!B$51,FALSE)="*",0,VLOOKUP($B33,'DATA CLA Acc'!$A$7:$AJ$38,'DATA CLA Acc'!B$51,FALSE)),IF(VLOOKUP($B34,'DATA CLA Acc'!$A$7:$AJ$38,'DATA CLA Acc'!B$51,FALSE)="*",0,VLOOKUP($B34,'DATA CLA Acc'!$A$7:$AJ$38,'DATA CLA Acc'!B$51,FALSE)),IF(VLOOKUP($B35,'DATA CLA Acc'!$A$7:$AJ$38,'DATA CLA Acc'!B$51,FALSE)="*",0,VLOOKUP($B35,'DATA CLA Acc'!$A$7:$AJ$38,'DATA CLA Acc'!B$51,FALSE)))/SUM(VLOOKUP($B31,'DATA CLA Acc'!$A$7:$AJ$39,9,FALSE),VLOOKUP($B32,'DATA CLA Acc'!$A$7:$AJ$39,9,FALSE),VLOOKUP($B33,'DATA CLA Acc'!$A$7:$AJ$39,9,FALSE),VLOOKUP($B34,'DATA CLA Acc'!$A$7:$AJ$39,9,FALSE),VLOOKUP($B35,'DATA CLA Acc'!$A$7:$AJ$39,9,FALSE)) -> 0.1975470872 | D37: =SUM(IF(VLOOKUP($B31,'DATA CLA Acc'!$A$7:$AJ$38,'DATA CLA Acc'!C$51,FALSE)="*",0,VLOOKUP($B31,'DATA CLA Acc'!$A$7:$AJ$38,'DATA CLA Acc'!C$51,FALSE)),IF(VLOOKUP($B32,'DATA CLA Acc'!$A$7:$AJ$38,'DATA CLA Acc'!C$51,FALSE)="*",0,VLOOKUP($B32,'DATA CLA Acc'!$A$7:$AJ$38,'DATA CLA Acc'!C$51,FALSE)),IF(VLOOKUP($B33,'DATA CLA Acc'!$A$7:$AJ$38,'DATA CLA Acc'!C$51,FALSE)="*",0,VLOOKUP($B33,'DATA CLA Acc'!$A$7:$AJ$38,'DATA CLA Acc'!C$51,FALSE)),IF(VLOOKUP($B34,'DATA CLA Acc'!$A$7:$AJ$38,'DATA CLA Acc'!C$51,FALSE)="*",0,VLOOKUP($B34,'DATA CLA Acc'!$A$7:$AJ$38,'DATA CLA Acc'!C$51,FALSE)),IF(VLOOKUP($B35,'DATA CLA Acc'!$A$7:$AJ$38,'DATA CLA Acc'!C$51,FALSE)="*",0,VLOOKUP($B35,'DATA CLA Acc'!$A$7:$AJ$38,'DATA CLA Acc'!C$51,FALSE)))/SUM(VLOOKUP($B31,'DATA CLA Acc'!$A$7:$AJ$39,9,FALSE),VLOOKUP($B32,'DATA CLA Acc'!$A$7:$AJ$39,9,FALSE),VLOOKUP($B33,'DATA CLA Acc'!$A$7:$AJ$39,9,FALSE),VLOOKUP($B34,'DATA CLA Acc'!$A$7:$AJ$39,9,FALSE),VLOOKUP($B35,'DATA CLA Acc'!$A$7:$AJ$39,9,FALSE)) -> 0.3672798949 | E37: =SUM(IF(VLOOKUP($B31,'DATA CLA Acc'!$A$7:$AJ$38,'DATA CLA Acc'!D$51,FALSE)="*",0,VLOOKUP($B31,'DATA CLA Acc'!$A$7:$AJ$38,'DATA CLA Acc'!D$51,FALSE)),IF(VLOOKUP($B32,'DATA CLA Acc'!$A$7:$AJ$38,'DATA CLA Acc'!D$51,FALSE)="*",0,VLOOKUP($B32,'DATA CLA Acc'!$A$7:$AJ$38,'DATA CLA Acc'!D$51,FALSE)),IF(VLOOKUP($B33,'DATA CLA Acc'!$A$7:$AJ$38,'DATA CLA Acc'!D$51,FALSE)="*",0,VLOOKUP($B33,'DATA CLA Acc'!$A$7:$AJ$38,'DATA CLA Acc'!D$51,FALSE)),IF(VLOOKUP($B34,'DATA CLA Acc'!$A$7:$AJ$38,'DATA CLA Acc'!D$51,FALSE)="*",0,VLOOKUP($B34,'DATA CLA Acc'!$A$7:$AJ$38,'DATA CLA Acc'!D$51,FALSE)),IF(VLOOKUP($B35,'DATA CLA Acc'!$A$7:$AJ$38,'DATA CLA Acc'!D$51,FALSE)="*",0,VLOOKUP($B35,'DATA CLA Acc'!$A$7:$AJ$38,'DATA CLA Acc'!D$51,FALSE)))/SUM(VLOOKUP($B31,'DATA CLA Acc'!$A$7:$AJ$39,9,FALSE),VLOOKUP($B32,'DATA CLA Acc'!$A$7:$AJ$39,9,FALSE),VLOOKUP($B33,'DATA CLA Acc'!$A$7:$AJ$39,9,FALSE),VLOOKUP($B34,'DATA CLA Acc'!$A$7:$AJ$39,9,FALSE),VLOOKUP($B35,'DATA CLA Acc'!$A$7:$AJ$39,9,FALSE)) -> 0.2400350416 | F37: =SUM(IF(VLOOKUP($B31,'DATA CLA Acc'!$A$7:$AJ$38,'DATA CLA Acc'!E$51,FALSE)="*",0,VLOOKUP($B31,'DATA CLA Acc'!$A$7:$AJ$38,'DATA CLA Acc'!E$51,FALSE)),IF(VLOOKUP($B32,'DATA CLA Acc'!$A$7:$AJ$38,'DATA CLA Acc'!E$51,FALSE)="*",0,VLOOKUP($B32,'DATA CLA Acc'!$A$7:$AJ$38,'DATA CLA Acc'!E$51,FALSE)),IF(VLOOKUP($B33,'DATA CLA Acc'!$A$7:$AJ$38,'DATA CLA Acc'!E$51,FALSE)="*",0,VLOOKUP($B33,'DATA CLA Acc'!$A$7:$AJ$38,'DATA CLA Acc'!E$51,FALSE)),IF(VLOOKUP($B34,'DATA CLA Acc'!$A$7:$AJ$38,'DATA CLA Acc'!E$51,FALSE)="*",0,VLOOKUP($B34,'DATA CLA Acc'!$A$7:$AJ$38,'DATA CLA Acc'!E$51,FALSE)),IF(VLOOKUP($B35,'DATA CLA Acc'!$A$7:$AJ$38,'DATA CLA Acc'!E$51,FALSE)="*",0,VLOOKUP($B35,'DATA CLA Acc'!$A$7:$AJ$38,'DATA CLA Acc'!E$51,FALSE)))/SUM(VLOOKUP($B31,'DATA CLA Acc'!$A$7:$AJ$39,9,FALSE),VLOOKUP($B32,'DATA CLA Acc'!$A$7:$AJ$39,9,FALSE),VLOOKUP($B33,'DATA CLA Acc'!$A$7:$AJ$39,9,FALSE),VLOOKUP($B34,'DATA CLA Acc'!$A$7:$AJ$39,9,FALSE),VLOOKUP($B35,'DATA CLA Acc'!$A$7:$AJ$39,9,FALSE)) -> 0.09570740254 | G37: =SUM(IF(VLOOKUP($B31,'DATA CLA Acc'!$A$7:$AJ$38,'DATA CLA Acc'!F$51,FALSE)="*",0,VLOOKUP($B31,'DATA CLA Acc'!$A$7:$AJ$38,'DATA CLA Acc'!F$51,FALSE)),IF(VLOOKUP($B32,'DATA CLA Acc'!$A$7:$AJ$38,'DATA CLA Acc'!F$51,FALSE)="*",0,VLOOKUP($B32,'DATA CLA Acc'!$A$7:$AJ$38,'DATA CLA Acc'!F$51,FALSE)),IF(VLOOKUP($B33,'DATA CLA Acc'!$A$7:$AJ$38,'DATA CLA Acc'!F$51,FALSE)="*",0,VLOOKUP($B33,'DATA CLA Acc'!$A$7:$AJ$38,'DATA CLA Acc'!F$51,FALSE)),IF(VLOOKUP($B34,'DATA CLA Acc'!$A$7:$AJ$38,'DATA CLA Acc'!F$51,FALSE)="*",0,VLOOKUP($B34,'DATA CLA Acc'!$A$7:$AJ$38,'DATA CLA Acc'!F$51,FALSE)),IF(VLOOKUP($B35,'DATA CLA Acc'!$A$7:$AJ$38,'DATA CLA Acc'!F$51,FALSE)="*",0,VLOOKUP($B35,'DATA CLA Acc'!$A$7:$AJ$38,'DATA CLA Acc'!F$51,FALSE)))/SUM(VLOOKUP($B31,'DATA CLA Acc'!$A$7:$AJ$39,9,FALSE),VLOOKUP($B32,'DATA CLA Acc'!$A$7:$AJ$39,9,FALSE),VLOOKUP($B33,'DATA CLA Acc'!$A$7:$AJ$39,9,FALSE),VLOOKUP($B34,'DATA CLA Acc'!$A$7:$AJ$39,9,FALSE),VLOOKUP($B35,'DATA CLA Acc'!$A$7:$AJ$39,9,FALSE)) -> 0.01051248357 | H37: =SUM(IF(VLOOKUP($B31,'DATA CLA Acc'!$A$7:$AJ$38,'DATA CLA Acc'!G$51,FALSE)="*",0,VLOOKUP($B31,'DATA CLA Acc'!$A$7:$AJ$38,'DATA CLA Acc'!G$51,FALSE)),IF(VLOOKUP($B32,'DATA CLA Acc'!$A$7:$AJ$38,'DATA CLA Acc'!G$51,FALSE)="*",0,VLOOKUP($B32,'DATA CLA Acc'!$A$7:$AJ$38,'DATA CLA Acc'!G$51,FALSE)),IF(VLOOKUP($B33,'DATA CLA Acc'!$A$7:$AJ$38,'DATA CLA Acc'!G$51,FALSE)="*",0,VLOOKUP($B33,'DATA CLA Acc'!$A$7:$AJ$38,'DATA CLA Acc'!G$51,FALSE)),IF(VLOOKUP($B34,'DATA CLA Acc'!$A$7:$AJ$38,'DATA CLA Acc'!G$51,FALSE)="*",0,VLOOKUP($B34,'DATA CLA Acc'!$A$7:$AJ$38,'DATA CLA Acc'!G$51,FALSE)),IF(VLOOKUP($B35,'DATA CLA Acc'!$A$7:$AJ$38,'DATA CLA Acc'!G$51,FALSE)="*",0,VLOOKUP($B35,'DATA CLA Acc'!$A$7:$AJ$38,'DATA CLA Acc'!G$51,FALSE)))/SUM(VLOOKUP($B31,'DATA CLA Acc'!$A$7:$AJ$39,9,FALSE),VLOOKUP($B32,'DATA CLA Acc'!$A$7:$AJ$39,9,FALSE),VLOOKUP($B33,'DATA CLA Acc'!$A$7:$AJ$39,9,FALSE),VLOOKUP($B34,'DATA CLA Acc'!$A$7:$AJ$39,9,FALSE),VLOOKUP($B35,'DATA CLA Acc'!$A$7:$AJ$39,9,FALSE)) -> 0.04270696452 | I37: =SUM(IF(VLOOKUP($B31,'DATA CLA Acc'!$A$7:$AJ$38,'DATA CLA Acc'!H$51,FALSE)="*",0,VLOOKUP($B31,'DATA CLA Acc'!$A$7:$AJ$38,'DATA CLA Acc'!H$51,FALSE)),IF(VLOOKUP($B32,'DATA CLA Acc'!$A$7:$AJ$38,'DATA CLA Acc'!H$51,FALSE)="*",0,VLOOKUP($B32,'DATA CLA Acc'!$A$7:$AJ$38,'DATA CLA Acc'!H$51,FALSE)),IF(VLOOKUP($B33,'DATA CLA Acc'!$A$7:$AJ$38,'DATA CLA Acc'!H$51,FALSE)="*",0,VLOOKUP($B33,'DATA CLA Acc'!$A$7:$AJ$38,'DATA CLA Acc'!H$51,FALSE)),IF(VLOOKUP($B34,'DATA CLA Acc'!$A$7:$AJ$38,'DATA CLA Acc'!H$51,FALSE)="*",0,VLOOKUP($B34,'DATA CLA Acc'!$A$7:$AJ$38,'DATA CLA Acc'!H$51,FALSE)),IF(VLOOKUP($B35,'DATA CLA Acc'!$A$7:$AJ$38,'DATA CLA Acc'!H$51,FALSE)="*",0,VLOOKUP($B35,'DATA CLA Acc'!$A$7:$AJ$38,'DATA CLA Acc'!H$51,FALSE)))/SUM(VLOOKUP($B31,'DATA CLA Acc'!$A$7:$AJ$39,9,FALSE),VLOOKUP($B32,'DATA CLA Acc'!$A$7:$AJ$39,9,FALSE),VLOOKUP($B33,'DATA CLA Acc'!$A$7:$AJ$39,9,FALSE),VLOOKUP($B34,'DATA CLA Acc'!$A$7:$AJ$39,9,FALSE),VLOOKUP($B35,'DATA CLA Acc'!$A$7:$AJ$39,9,FALSE)) -> 0.04621112571 | K37: =SUM(IF(VLOOKUP($B31,'DATA CLA Acc'!$A$7:$AJ$38,'DATA CLA Acc'!K$51,FALSE)="*",0,VLOOKUP($B31,'DATA CLA Acc'!$A$7:$AJ$38,'DATA CLA Acc'!K$51,FALSE)),IF(VLOOKUP($B32,'DATA CLA Acc'!$A$7:$AJ$38,'DATA CLA Acc'!K$51,FALSE)="*",0,VLOOKUP($B32,'DATA CLA Acc'!$A$7:$AJ$38,'DATA CLA Acc'!K$51,FALSE)),IF(VLOOKUP($B33,'DATA CLA Acc'!$A$7:$AJ$38,'DATA CLA Acc'!K$51,FALSE)="*",0,VLOOKUP($B33,'DATA CLA Acc'!$A$7:$AJ$38,'DATA CLA Acc'!K$51,FALSE)),IF(VLOOKUP($B34,'DATA CLA Acc'!$A$7:$AJ$38,'DATA CLA Acc'!K$51,FALSE)="*",0,VLOOKUP($B34,'DATA CLA Acc'!$A$7:$AJ$38,'DATA CLA Acc'!K$51,FALSE)),IF(VLOOKUP($B35,'DATA CLA Acc'!$A$7:$AJ$38,'DATA CLA Acc'!K$51,FALSE)="*",0,VLOOKUP($B35,'DATA CLA Acc'!$A$7:$AJ$38,'DATA CLA Acc'!K$51,FALSE)))/SUM(VLOOKUP($B31,'DATA CLA Acc'!$A$7:$AJ$39,18,FALSE),VLOOKUP($B32,'DATA CLA Acc'!$A$7:$AJ$39,18,FALSE),VLOOKUP($B33,'DATA CLA Acc'!$A$7:$AJ$39,18,FALSE),VLOOKUP($B34,'DATA CLA Acc'!$A$7:$AJ$39,18,FALSE),VLOOKUP($B35,'DATA CLA Acc'!$A$7:$AJ$39,18,FALSE)) -> 0.2149416729 | L37: =SUM(IF(VLOOKUP($B31,'DATA CLA Acc'!$A$7:$AJ$38,'DATA CLA Acc'!L$51,FALSE)="*",0,VLOOKUP($B31,'DATA CLA Acc'!$A$7:$AJ$38,'DATA CLA Acc'!L$51,FALSE)),IF(VLOOKUP($B32,'DATA CLA Acc'!$A$7:$AJ$38,'DATA CLA Acc'!L$51,FALSE)="*",0,VLOOKUP($B32,'DATA CLA Acc'!$A$7:$AJ$38,'DATA CLA Acc'!L$51,FALSE)),IF(VLOOKUP($B33,'DATA CLA Acc'!$A$7:$AJ$38,'DATA CLA Acc'!L$51,FALSE)="*",0,VLOOKUP($B33,'DATA CLA Acc'!$A$7:$AJ$38,'DATA CLA Acc'!L$51,FALSE)),IF(VLOOKUP($B34,'DATA CLA Acc'!$A$7:$AJ$38,'DATA CLA Acc'!L$51,FALSE)="*",0,VLOOKUP($B34,'DATA CLA Acc'!$A$7:$AJ$38,'DATA CLA Acc'!L$51,FALSE)),IF(VLOOKUP($B35,'DATA CLA Acc'!$A$7:$AJ$38,'DATA CLA Acc'!L$51,FALSE)="*",0,VLOOKUP($B35,'DATA CLA Acc'!$A$7:$AJ$38,'DATA CLA Acc'!L$51,FALSE)))/SUM(VLOOKUP($B31,'DATA CLA Acc'!$A$7:$AJ$39,18,FALSE),VLOOKUP($B32,'DATA CLA Acc'!$A$7:$AJ$39,18,FALSE),VLOOKUP($B33,'DATA CLA Acc'!$A$7:$AJ$39,18,FALSE),VLOOKUP($B34,'DATA CLA Acc'!$A$7:$AJ$39,18,FALSE),VLOOKUP($B35,'DATA CLA Acc'!$A$7:$AJ$39,18,FALSE)) -> 0.3623727972 | M37: =SUM(IF(VLOOKUP($B31,'DATA CLA Acc'!$A$7:$AJ$38,'DATA CLA Acc'!M$51,FALSE)="*",0,VLOOKUP($B31,'DATA CLA Acc'!$A$7:$AJ$38,'DATA CLA Acc'!M$51,FALSE)),IF(VLOOKUP($B32,'DATA CLA Acc'!$A$7:$AJ$38,'DATA CLA Acc'!M$51,FALSE)="*",0,VLOOKUP($B32,'DATA CLA Acc'!$A$7:$AJ$38,'DATA CLA Acc'!M$51,FALSE)),IF(VLOOKUP($B33,'DATA CLA Acc'!$A$7:$AJ$38,'DATA CLA Acc'!M$51,FALSE)="*",0,VLOOKUP($B33,'DATA CLA Acc'!$A$7:$AJ$38,'DATA CLA Acc'!M$51,FALSE)),IF(VLOOKUP($B34,'DATA CLA Acc'!$A$7:$AJ$38,'DATA CLA Acc'!M$51,FALSE)="*",0,VLOOKUP($B34,'DATA CLA Acc'!$A$7:$AJ$38,'DATA CLA Acc'!M$51,FALSE)),IF(VLOOKUP($B35,'DATA CLA Acc'!$A$7:$AJ$38,'DATA CLA Acc'!M$51,FALSE)="*",0,VLOOKUP($B35,'DATA CLA Acc'!$A$7:$AJ$38,'DATA CLA Acc'!M$51,FALSE)))/SUM(VLOOKUP($B31,'DATA CLA Acc'!$A$7:$AJ$39,18,FALSE),VLOOKUP($B32,'DATA CLA Acc'!$A$7:$AJ$39,18,FALSE),VLOOKUP($B33,'DATA CLA Acc'!$A$7:$AJ$39,18,FALSE),VLOOKUP($B34,'DATA CLA Acc'!$A$7:$AJ$39,18,FALSE),VLOOKUP($B35,'DATA CLA Acc'!$A$7:$AJ$39,18,FALSE)) -> 0.2360387193 | N37: =SUM(IF(VLOOKUP($B31,'DATA CLA Acc'!$A$7:$AJ$38,'DATA CLA Acc'!N$51,FALSE)="*",0,VLOOKUP($B31,'DATA CLA Acc'!$A$7:$AJ$38,'DATA CLA Acc'!N$51,FALSE)),IF(VLOOKUP($B32,'DATA CLA Acc'!$A$7:$AJ$38,'DATA CLA Acc'!N$51,FALSE)="*",0,VLOOKUP($B32,'DATA CLA Acc'!$A$7:$AJ$38,'DATA CLA Acc'!N$51,FALSE)),IF(VLOOKUP($B33,'DATA CLA Acc'!$A$7:$AJ$38,'DATA CLA Acc'!N$51,FALSE)="*",0,VLOOKUP($B33,'DATA CLA Acc'!$A$7:$AJ$38,'DATA CLA Acc'!N$51,FALSE)),IF(VLOOKUP($B34,'DATA CLA Acc'!$A$7:$AJ$38,'DATA CLA Acc'!N$51,FALSE)="*",0,VLOOKUP($B34,'DATA CLA Acc'!$A$7:$AJ$38,'DATA CLA Acc'!N$51,FALSE)),IF(VLOOKUP($B35,'DATA CLA Acc'!$A$7:$AJ$38,'DATA CLA Acc'!N$51,FALSE)="*",0,VLOOKUP($B35,'DATA CLA Acc'!$A$7:$AJ$38,'DATA CLA Acc'!N$51,FALSE)))/SUM(VLOOKUP($B31,'DATA CLA Acc'!$A$7:$AJ$39,18,FALSE),VLOOKUP($B32,'DATA CLA Acc'!$A$7:$AJ$39,18,FALSE),VLOOKUP($B33,'DATA CLA Acc'!$A$7:$AJ$39,18,FALSE),VLOOKUP($B34,'DATA CLA Acc'!$A$7:$AJ$39,18,FALSE),VLOOKUP($B35,'DATA CLA Acc'!$A$7:$AJ$39,18,FALSE)) -> 0.09233060313 | O37: =SUM(IF(VLOOKUP($B31,'DATA CLA Acc'!$A$7:$AJ$38,'DATA CLA Acc'!O$51,FALSE)="*",0,VLOOKUP($B31,'DATA CLA Acc'!$A$7:$AJ$38,'DATA CLA Acc'!O$51,FALSE)),IF(VLOOKUP($B32,'DATA CLA Acc'!$A$7:$AJ$38,'DATA CLA Acc'!O$51,FALSE)="*",0,VLOOKUP($B32,'DATA CLA Acc'!$A$7:$AJ$38,'DATA CLA Acc'!O$51,FALSE)),IF(VLOOKUP($B33,'DATA CLA Acc'!$A$7:$AJ$38,'DATA CLA Acc'!O$51,FALSE)="*",0,VLOOKUP($B33,'DATA CLA Acc'!$A$7:$AJ$38,'DATA CLA Acc'!O$51,FALSE)),IF(VLOOKUP($B34,'DATA CLA Acc'!$A$7:$AJ$38,'DATA CLA Acc'!O$51,FALSE)="*",0,VLOOKUP($B34,'DATA CLA Acc'!$A$7:$AJ$38,'DATA CLA Acc'!O$51,FALSE)),IF(VLOOKUP($B35,'DATA CLA Acc'!$A$7:$AJ$38,'DATA CLA Acc'!O$51,FALSE)="*",0,VLOOKUP($B35,'DATA CLA Acc'!$A$7:$AJ$38,'DATA CLA Acc'!O$51,FALSE)))/SUM(VLOOKUP($B31,'DATA CLA Acc'!$A$7:$AJ$39,18,FALSE),VLOOKUP($B32,'DATA CLA Acc'!$A$7:$AJ$39,18,FALSE),VLOOKUP($B33,'DATA CLA Acc'!$A$7:$AJ$39,18,FALSE),VLOOKUP($B34,'DATA CLA Acc'!$A$7:$AJ$39,18,FALSE),VLOOKUP($B35,'DATA CLA Acc'!$A$7:$AJ$39,18,FALSE)) -> 0.004715810375 | P37: =SUM(IF(VLOOKUP($B31,'DATA CLA Acc'!$A$7:$AJ$38,'DATA CLA Acc'!P$51,FALSE)="*",0,VLOOKUP($B31,'DATA CLA Acc'!$A$7:$AJ$38,'DATA CLA Acc'!P$51,FALSE)),IF(VLOOKUP($B32,'DATA CLA Acc'!$A$7:$AJ$38,'DATA CLA Acc'!P$51,FALSE)="*",0,VLOOKUP($B32,'DATA CLA Acc'!$A$7:$AJ$38,'DATA CLA Acc'!P$51,FALSE)),IF(VLOOKUP($B33,'DATA CLA Acc'!$A$7:$AJ$38,'DATA CLA Acc'!P$51,FALSE)="*",0,VLOOKUP($B33,'DATA CLA Acc'!$A$7:$AJ$38,'DATA CLA Acc'!P$51,FALSE)),IF(VLOOKUP($B34,'DATA CLA Acc'!$A$7:$AJ$38,'DATA CLA Acc'!P$51,FALSE)="*",0,VLOOKUP($B34,'DATA CLA Acc'!$A$7:$AJ$38,'DATA CLA Acc'!P$51,FALSE)),IF(VLOOKUP($B35,'DATA CLA Acc'!$A$7:$AJ$38,'DATA CLA Acc'!P$51,FALSE)="*",0,VLOOKUP($B35,'DATA CLA Acc'!$A$7:$AJ$38,'DATA CLA Acc'!P$51,FALSE)))/SUM(VLOOKUP($B31,'DATA CLA Acc'!$A$7:$AJ$39,18,FALSE),VLOOKUP($B32,'DATA CLA Acc'!$A$7:$AJ$39,18,FALSE),VLOOKUP($B33,'DATA CLA Acc'!$A$7:$AJ$39,18,FALSE),VLOOKUP($B34,'DATA CLA Acc'!$A$7:$AJ$39,18,FALSE),VLOOKUP($B35,'DATA CLA Acc'!$A$7:$AJ$39,18,FALSE)) -> 0.04393149665 | Q37: =SUM(IF(VLOOKUP($B31,'DATA CLA Acc'!$A$7:$AJ$38,'DATA CLA Acc'!Q$51,FALSE)="*",0,VLOOKUP($B31,'DATA CLA Acc'!$A$7:$AJ$38,'DATA CLA Acc'!Q$51,FALSE)),IF(VLOOKUP($B32,'DATA CLA Acc'!$A$7:$AJ$38,'DATA CLA Acc'!Q$51,FALSE)="*",0,VLOOKUP($B32,'DATA CLA Acc'!$A$7:$AJ$38,'DATA CLA Acc'!Q$51,FALSE)),IF(VLOOKUP($B33,'DATA CLA Acc'!$A$7:$AJ$38,'DATA CLA Acc'!Q$51,FALSE)="*",0,VLOOKUP($B33,'DATA CLA Acc'!$A$7:$AJ$38,'DATA CLA Acc'!Q$51,FALSE)),IF(VLOOKUP($B34,'DATA CLA Acc'!$A$7:$AJ$38,'DATA CLA Acc'!Q$51,FALSE)="*",0,VLOOKUP($B34,'DATA CLA Acc'!$A$7:$AJ$38,'DATA CLA Acc'!Q$51,FALSE)),IF(VLOOKUP($B35,'DATA CLA Acc'!$A$7:$AJ$38,'DATA CLA Acc'!Q$51,FALSE)="*",0,VLOOKUP($B35,'DATA CLA Acc'!$A$7:$AJ$38,'DATA CLA Acc'!Q$51,FALSE)))/SUM(VLOOKUP($B31,'DATA CLA Acc'!$A$7:$AJ$39,18,FALSE),VLOOKUP($B32,'DATA CLA Acc'!$A$7:$AJ$39,18,FALSE),VLOOKUP($B33,'DATA CLA Acc'!$A$7:$AJ$39,18,FALSE),VLOOKUP($B34,'DATA CLA Acc'!$A$7:$AJ$39,18,FALSE),VLOOKUP($B35,'DATA CLA Acc'!$A$7:$AJ$39,18,FALSE)) -> 0.01588483495 | S37: =SUM(IF(VLOOKUP($B31,'DATA CLA Acc'!$A$7:$AJ$38,'DATA CLA Acc'!T$51,FALSE)="*",0,VLOOKUP($B31,'DATA CLA Acc'!$A$7:$AJ$38,'DATA CLA Acc'!T$51,FALSE)),IF(VLOOKUP($B32,'DATA CLA Acc'!$A$7:$AJ$38,'DATA CLA Acc'!T$51,FALSE)="*",0,VLOOKUP($B32,'DATA CLA Acc'!$A$7:$AJ$38,'DATA CLA Acc'!T$51,FALSE)),IF(VLOOKUP($B33,'DATA CLA Acc'!$A$7:$AJ$38,'DATA CLA Acc'!T$51,FALSE)="*",0,VLOOKUP($B33,'DATA CLA Acc'!$A$7:$AJ$38,'DATA CLA Acc'!T$51,FALSE)),IF(VLOOKUP($B34,'DATA CLA Acc'!$A$7:$AJ$38,'DATA CLA Acc'!T$51,FALSE)="*",0,VLOOKUP($B34,'DATA CLA Acc'!$A$7:$AJ$38,'DATA CLA Acc'!T$51,FALSE)),IF(VLOOKUP($B35,'DATA CLA Acc'!$A$7:$AJ$38,'DATA CLA Acc'!T$51,FALSE)="*",0,VLOOKUP($B35,'DATA CLA Acc'!$A$7:$AJ$38,'DATA CLA Acc'!T$51,FALSE)))/SUM(VLOOKUP($B31,'DATA CLA Acc'!$A$7:$AJ$39,27,FALSE),VLOOKUP($B32,'DATA CLA Acc'!$A$7:$AJ$39,27,FALSE),VLOOKUP($B33,'DATA CLA Acc'!$A$7:$AJ$39,27,FALSE),VLOOKUP($B34,'DATA CLA Acc'!$A$7:$AJ$39,27,FALSE),VLOOKUP($B35,'DATA CLA Acc'!$A$7:$AJ$39,27,FALSE)) -> 0.2170827858 | T37: =SUM(IF(VLOOKUP($B31,'DATA CLA Acc'!$A$7:$AJ$38,'DATA CLA Acc'!U$51,FALSE)="*",0,VLOOKUP($B31,'DATA CLA Acc'!$A$7:$AJ$38,'DATA CLA Acc'!U$51,FALSE)),IF(VLOOKUP($B32,'DATA CLA Acc'!$A$7:$AJ$38,'DATA CLA Acc'!U$51,FALSE)="*",0,VLOOKUP($B32,'DATA CLA Acc'!$A$7:$AJ$38,'DATA CLA Acc'!U$51,FALSE)),IF(VLOOKUP($B33,'DATA CLA Acc'!$A$7:$AJ$38,'DATA CLA Acc'!U$51,FALSE)="*",0,VLOOKUP($B33,'DATA CLA Acc'!$A$7:$AJ$38,'DATA CLA Acc'!U$51,FALSE)),IF(VLOOKUP($B34,'DATA CLA Acc'!$A$7:$AJ$38,'DATA CLA Acc'!U$51,FALSE)="*",0,VLOOKUP($B34,'DATA CLA Acc'!$A$7:$AJ$38,'DATA CLA Acc'!U$51,FALSE)),IF(VLOOKUP($B35,'DATA CLA Acc'!$A$7:$AJ$38,'DATA CLA Acc'!U$51,FALSE)="*",0,VLOOKUP($B35,'DATA CLA Acc'!$A$7:$AJ$38,'DATA CLA Acc'!U$51,FALSE)))/SUM(VLOOKUP($B31,'DATA CLA Acc'!$A$7:$AJ$39,27,FALSE),VLOOKUP($B32,'DATA CLA Acc'!$A$7:$AJ$39,27,FALSE),VLOOKUP($B33,'DATA CLA Acc'!$A$7:$AJ$39,27,FALSE),VLOOKUP($B34,'DATA CLA Acc'!$A$7:$AJ$39,27,FALSE),VLOOKUP($B35,'DATA CLA Acc'!$A$7:$AJ$39,27,FALSE)) -> 0.3695137976 | U37: =SUM(IF(VLOOKUP($B31,'DATA CLA Acc'!$A$7:$AJ$38,'DATA CLA Acc'!V$51,FALSE)="*",0,VLOOKUP($B31,'DATA CLA Acc'!$A$7:$AJ$38,'DATA CLA Acc'!V$51,FALSE)),IF(VLOOKUP($B32,'DATA CLA Acc'!$A$7:$AJ$38,'DATA CLA Acc'!V$51,FALSE)="*",0,VLOOKUP($B32,'DATA CLA Acc'!$A$7:$AJ$38,'DATA CLA Acc'!V$51,FALSE)),IF(VLOOKUP($B33,'DATA CLA Acc'!$A$7:$AJ$38,'DATA CLA Acc'!V$51,FALSE)="*",0,VLOOKUP($B33,'DATA CLA Acc'!$A$7:$AJ$38,'DATA CLA Acc'!V$51,FALSE)),IF(VLOOKUP($B34,'DATA CLA Acc'!$A$7:$AJ$38,'DATA CLA Acc'!V$51,FALSE)="*",0,VLOOKUP($B34,'DATA CLA Acc'!$A$7:$AJ$38,'DATA CLA Acc'!V$51,FALSE)),IF(VLOOKUP($B35,'DATA CLA Acc'!$A$7:$AJ$38,'DATA CLA Acc'!V$51,FALSE)="*",0,VLOOKUP($B35,'DATA CLA Acc'!$A$7:$AJ$38,'DATA CLA Acc'!V$51,FALSE)))/SUM(VLOOKUP($B31,'DATA CLA Acc'!$A$7:$AJ$39,27,FALSE),VLOOKUP($B32,'DATA CLA Acc'!$A$7:$AJ$39,27,FALSE),VLOOKUP($B33,'DATA CLA Acc'!$A$7:$AJ$39,27,FALSE),VLOOKUP($B34,'DATA CLA Acc'!$A$7:$AJ$39,27,FALSE),VLOOKUP($B35,'DATA CLA Acc'!$A$7:$AJ$39,27,FALSE)) -> 0.2275952694 | V37: =SUM(IF(VLOOKUP($B31,'DATA CLA Acc'!$A$7:$AJ$38,'DATA CLA Acc'!W$51,FALSE)="*",0,VLOOKUP($B31,'DATA CLA Acc'!$A$7:$AJ$38,'DATA CLA Acc'!W$51,FALSE)),IF(VLOOKUP($B32,'DATA CLA Acc'!$A$7:$AJ$38,'DATA CLA Acc'!W$51,FALSE)="*",0,VLOOKUP($B32,'DATA CLA Acc'!$A$7:$AJ$38,'DATA CLA Acc'!W$51,FALSE)),IF(VLOOKUP($B33,'DATA CLA Acc'!$A$7:$AJ$38,'DATA CLA Acc'!W$51,FALSE)="*",0,VLOOKUP($B33,'DATA CLA Acc'!$A$7:$AJ$38,'DATA CLA Acc'!W$51,FALSE)),IF(VLOOKUP($B34,'DATA CLA Acc'!$A$7:$AJ$38,'DATA CLA Acc'!W$51,FALSE)="*",0,VLOOKUP($B34,'DATA CLA Acc'!$A$7:$AJ$38,'DATA CLA Acc'!W$51,FALSE)),IF(VLOOKUP($B35,'DATA CLA Acc'!$A$7:$AJ$38,'DATA CLA Acc'!W$51,FALSE)="*",0,VLOOKUP($B35,'DATA CLA Acc'!$A$7:$AJ$38,'DATA CLA Acc'!W$51,FALSE)))/SUM(VLOOKUP($B31,'DATA CLA Acc'!$A$7:$AJ$39,27,FALSE),VLOOKUP($B32,'DATA CLA Acc'!$A$7:$AJ$39,27,FALSE),VLOOKUP($B33,'DATA CLA Acc'!$A$7:$AJ$39,27,FALSE),VLOOKUP($B34,'DATA CLA Acc'!$A$7:$AJ$39,27,FALSE),VLOOKUP($B35,'DATA CLA Acc'!$A$7:$AJ$39,27,FALSE)) -> 0.08515111695 | W37: =SUM(IF(VLOOKUP($B31,'DATA CLA Acc'!$A$7:$AJ$38,'DATA CLA Acc'!X$51,FALSE)="*",0,VLOOKUP($B31,'DATA CLA Acc'!$A$7:$AJ$38,'DATA CLA Acc'!X$51,FALSE)),IF(VLOOKUP($B32,'DATA CLA Acc'!$A$7:$AJ$38,'DATA CLA Acc'!X$51,FALSE)="*",0,VLOOKUP($B32,'DATA CLA Acc'!$A$7:$AJ$38,'DATA CLA Acc'!X$51,FALSE)),IF(VLOOKUP($B33,'DATA CLA Acc'!$A$7:$AJ$38,'DATA CLA Acc'!X$51,FALSE)="*",0,VLOOKUP($B33,'DATA CLA Acc'!$A$7:$AJ$38,'DATA CLA Acc'!X$51,FALSE)),IF(VLOOKUP($B34,'DATA CLA Acc'!$A$7:$AJ$38,'DATA CLA Acc'!X$51,FALSE)="*",0,VLOOKUP($B34,'DATA CLA Acc'!$A$7:$AJ$38,'DATA CLA Acc'!X$51,FALSE)),IF(VLOOKUP($B35,'DATA CLA Acc'!$A$7:$AJ$38,'DATA CLA Acc'!X$51,FALSE)="*",0,VLOOKUP($B35,'DATA CLA Acc'!$A$7:$AJ$38,'DATA CLA Acc'!X$51,FALSE)))/SUM(VLOOKUP($B31,'DATA CLA Acc'!$A$7:$AJ$39,27,FALSE),VLOOKUP($B32,'DATA CLA Acc'!$A$7:$AJ$39,27,FALSE),VLOOKUP($B33,'DATA CLA Acc'!$A$7:$AJ$39,27,FALSE),VLOOKUP($B34,'DATA CLA Acc'!$A$7:$AJ$39,27,FALSE),VLOOKUP($B35,'DATA CLA Acc'!$A$7:$AJ$39,27,FALSE)) -> 0.00814717477 | X37: =SUM(IF(VLOOKUP($B31,'DATA CLA Acc'!$A$7:$AJ$38,'DATA CLA Acc'!Y$51,FALSE)="*",0,VLOOKUP($B31,'DATA CLA Acc'!$A$7:$AJ$38,'DATA CLA Acc'!Y$51,FALSE)),IF(VLOOKUP($B32,'DATA CLA Acc'!$A$7:$AJ$38,'DATA CLA Acc'!Y$51,FALSE)="*",0,VLOOKUP($B32,'DATA CLA Acc'!$A$7:$AJ$38,'DATA CLA Acc'!Y$51,FALSE)),IF(VLOOKUP($B33,'DATA CLA Acc'!$A$7:$AJ$38,'DATA CLA Acc'!Y$51,FALSE)="*",0,VLOOKUP($B33,'DATA CLA Acc'!$A$7:$AJ$38,'DATA CLA Acc'!Y$51,FALSE)),IF(VLOOKUP($B34,'DATA CLA Acc'!$A$7:$AJ$38,'DATA CLA Acc'!Y$51,FALSE)="*",0,VLOOKUP($B34,'DATA CLA Acc'!$A$7:$AJ$38,'DATA CLA Acc'!Y$51,FALSE)),IF(VLOOKUP($B35,'DATA CLA Acc'!$A$7:$AJ$38,'DATA CLA Acc'!Y$51,FALSE)="*",0,VLOOKUP($B35,'DATA CLA Acc'!$A$7:$AJ$38,'DATA CLA Acc'!Y$51,FALSE)))/SUM(VLOOKUP($B31,'DATA CLA Acc'!$A$7:$AJ$39,27,FALSE),VLOOKUP($B32,'DATA CLA Acc'!$A$7:$AJ$39,27,FALSE),VLOOKUP($B33,'DATA CLA Acc'!$A$7:$AJ$39,27,FALSE),VLOOKUP($B34,'DATA CLA Acc'!$A$7:$AJ$39,27,FALSE),VLOOKUP($B35,'DATA CLA Acc'!$A$7:$AJ$39,27,FALSE)) -> 0.0494086728 | Y37: =SUM(IF(VLOOKUP($B31,'DATA CLA Acc'!$A$7:$AJ$38,'DATA CLA Acc'!Z$51,FALSE)="*",0,VLOOKUP($B31,'DATA CLA Acc'!$A$7:$AJ$38,'DATA CLA Acc'!Z$51,FALSE)),IF(VLOOKUP($B32,'DATA CLA Acc'!$A$7:$AJ$38,'DATA CLA Acc'!Z$51,FALSE)="*",0,VLOOKUP($B32,'DATA CLA Acc'!$A$7:$AJ$38,'DATA CLA Acc'!Z$51,FALSE)),IF(VLOOKUP($B33,'DATA CLA Acc'!$A$7:$AJ$38,'DATA CLA Acc'!Z$51,FALSE)="*",0,VLOOKUP($B33,'DATA CLA Acc'!$A$7:$AJ$38,'DATA CLA Acc'!Z$51,FALSE)),IF(VLOOKUP($B34,'DATA CLA Acc'!$A$7:$AJ$38,'DATA CLA Acc'!Z$51,FALSE)="*",0,VLOOKUP($B34,'DATA CLA Acc'!$A$7:$AJ$38,'DATA CLA Acc'!Z$51,FALSE)),IF(VLOOKUP($B35,'DATA CLA Acc'!$A$7:$AJ$38,'DATA CLA Acc'!Z$51,FALSE)="*",0,VLOOKUP($B35,'DATA CLA Acc'!$A$7:$AJ$38,'DATA CLA Acc'!Z$51,FALSE)))/SUM(VLOOKUP($B31,'DATA CLA Acc'!$A$7:$AJ$39,27,FALSE),VLOOKUP($B32,'DATA CLA Acc'!$A$7:$AJ$39,27,FALSE),VLOOKUP($B33,'DATA CLA Acc'!$A$7:$AJ$39,27,FALSE),VLOOKUP($B34,'DATA CLA Acc'!$A$7:$AJ$39,27,FALSE),VLOOKUP($B35,'DATA CLA Acc'!$A$7:$AJ$39,27,FALSE)) -> 0.04152431012 | AA37: =SUM(IF(VLOOKUP($B31,'DATA CLA Acc'!$A$7:$AJ$38,'DATA CLA Acc'!AC$51,FALSE)="*",0,VLOOKUP($B31,'DATA CLA Acc'!$A$7:$AJ$38,'DATA CLA Acc'!AC$51,FALSE)),IF(VLOOKUP($B32,'DATA CLA Acc'!$A$7:$AJ$38,'DATA CLA Acc'!AC$51,FALSE)="*",0,VLOOKUP($B32,'DATA CLA Acc'!$A$7:$AJ$38,'DATA CLA Acc'!AC$51,FALSE)),IF(VLOOKUP($B33,'DATA CLA Acc'!$A$7:$AJ$38,'DATA CLA Acc'!AC$51,FALSE)="*",0,VLOOKUP($B33,'DATA CLA Acc'!$A$7:$AJ$38,'DATA CLA Acc'!AC$51,FALSE)),IF(VLOOKUP($B34,'DATA CLA Acc'!$A$7:$AJ$38,'DATA CLA Acc'!AC$51,FALSE)="*",0,VLOOKUP($B34,'DATA CLA Acc'!$A$7:$AJ$38,'DATA CLA Acc'!AC$51,FALSE)),IF(VLOOKUP($B35,'DATA CLA Acc'!$A$7:$AJ$38,'DATA CLA Acc'!AC$51,FALSE)="*",0,VLOOKUP($B35,'DATA CLA Acc'!$A$7:$AJ$38,'DATA CLA Acc'!AC$51,FALSE)))/SUM(VLOOKUP($B31,'DATA CLA Acc'!$A$7:$AJ$39,36,FALSE),VLOOKUP($B32,'DATA CLA Acc'!$A$7:$AJ$39,36,FALSE),VLOOKUP($B33,'DATA CLA Acc'!$A$7:$AJ$39,36,FALSE),VLOOKUP($B34,'DATA CLA Acc'!$A$7:$AJ$39,36,FALSE),VLOOKUP($B35,'DATA CLA Acc'!$A$7:$AJ$39,36,FALSE)) -> 0.2023057919 | AB37: =SUM(IF(VLOOKUP($B31,'DATA CLA Acc'!$A$7:$AJ$38,'DATA CLA Acc'!AD$51,FALSE)="*",0,VLOOKUP($B31,'DATA CLA Acc'!$A$7:$AJ$38,'DATA CLA Acc'!AD$51,FALSE)),IF(VLOOKUP($B32,'DATA CLA Acc'!$A$7:$AJ$38,'DATA CLA Acc'!AD$51,FALSE)="*",0,VLOOKUP($B32,'DATA CLA Acc'!$A$7:$AJ$38,'DATA CLA Acc'!AD$51,FALSE)),IF(VLOOKUP($B33,'DATA CLA Acc'!$A$7:$AJ$38,'DATA CLA Acc'!AD$51,FALSE)="*",0,VLOOKUP($B33,'DATA CLA Acc'!$A$7:$AJ$38,'DATA CLA Acc'!AD$51,FALSE)),IF(VLOOKUP($B34,'DATA CLA Acc'!$A$7:$AJ$38,'DATA CLA Acc'!AD$51,FALSE)="*",0,VLOOKUP($B34,'DATA CLA Acc'!$A$7:$AJ$38,'DATA CLA Acc'!AD$51,FALSE)),IF(VLOOKUP($B35,'DATA CLA Acc'!$A$7:$AJ$38,'DATA CLA Acc'!AD$51,FALSE)="*",0,VLOOKUP($B35,'DATA CLA Acc'!$A$7:$AJ$38,'DATA CLA Acc'!AD$51,FALSE)))/SUM(VLOOKUP($B31,'DATA CLA Acc'!$A$7:$AJ$39,36,FALSE),VLOOKUP($B32,'DATA CLA Acc'!$A$7:$AJ$39,36,FALSE),VLOOKUP($B33,'DATA CLA Acc'!$A$7:$AJ$39,36,FALSE),VLOOKUP($B34,'DATA CLA Acc'!$A$7:$AJ$39,36,FALSE),VLOOKUP($B35,'DATA CLA Acc'!$A$7:$AJ$39,36,FALSE)) -> 0.3947296184 | AC37: =SUM(IF(VLOOKUP($B31,'DATA CLA Acc'!$A$7:$AJ$38,'DATA CLA Acc'!AE$51,FALSE)="*",0,VLOOKUP($B31,'DATA CLA Acc'!$A$7:$AJ$38,'DATA CLA Acc'!AE$51,FALSE)),IF(VLOOKUP($B32,'DATA CLA Acc'!$A$7:$AJ$38,'DATA CLA Acc'!AE$51,FALSE)="*",0,VLOOKUP($B32,'DATA CLA Acc'!$A$7:$AJ$38,'DATA CLA Acc'!AE$51,FALSE)),IF(VLOOKUP($B33,'DATA CLA Acc'!$A$7:$AJ$38,'DATA CLA Acc'!AE$51,FALSE)="*",0,VLOOKUP($B33,'DATA CLA Acc'!$A$7:$AJ$38,'DATA CLA Acc'!AE$51,FALSE)),IF(VLOOKUP($B34,'DATA CLA Acc'!$A$7:$AJ$38,'DATA CLA Acc'!AE$51,FALSE)="*",0,VLOOKUP($B34,'DATA CLA Acc'!$A$7:$AJ$38,'DATA CLA Acc'!AE$51,FALSE)),IF(VLOOKUP($B35,'DATA CLA Acc'!$A$7:$AJ$38,'DATA CLA Acc'!AE$51,FALSE)="*",0,VLOOKUP($B35,'DATA CLA Acc'!$A$7:$AJ$38,'DATA CLA Acc'!AE$51,FALSE)))/SUM(VLOOKUP($B31,'DATA CLA Acc'!$A$7:$AJ$39,36,FALSE),VLOOKUP($B32,'DATA CLA Acc'!$A$7:$AJ$39,36,FALSE),VLOOKUP($B33,'DATA CLA Acc'!$A$7:$AJ$39,36,FALSE),VLOOKUP($B34,'DATA CLA Acc'!$A$7:$AJ$39,36,FALSE),VLOOKUP($B35,'DATA CLA Acc'!$A$7:$AJ$39,36,FALSE)) -> 0.2327751853 | AD37: =SUM(IF(VLOOKUP($B31,'DATA CLA Acc'!$A$7:$AJ$38,'DATA CLA Acc'!AF$51,FALSE)="*",0,VLOOKUP($B31,'DATA CLA Acc'!$A$7:$AJ$38,'DATA CLA Acc'!AF$51,FALSE)),IF(VLOOKUP($B32,'DATA CLA Acc'!$A$7:$AJ$38,'DATA CLA Acc'!AF$51,FALSE)="*",0,VLOOKUP($B32,'DATA CLA Acc'!$A$7:$AJ$38,'DATA CLA Acc'!AF$51,FALSE)),IF(VLOOKUP($B33,'DATA CLA Acc'!$A$7:$AJ$38,'DATA CLA Acc'!AF$51,FALSE)="*",0,VLOOKUP($B33,'DATA CLA Acc'!$A$7:$AJ$38,'DATA CLA Acc'!AF$51,FALSE)),IF(VLOOKUP($B34,'DATA CLA Acc'!$A$7:$AJ$38,'DATA CLA Acc'!AF$51,FALSE)="*",0,VLOOKUP($B34,'DATA CLA Acc'!$A$7:$AJ$38,'DATA CLA Acc'!AF$51,FALSE)),IF(VLOOKUP($B35,'DATA CLA Acc'!$A$7:$AJ$38,'DATA CLA Acc'!AF$51,FALSE)="*",0,VLOOKUP($B35,'DATA CLA Acc'!$A$7:$AJ$38,'DATA CLA Acc'!AF$51,FALSE)))/SUM(VLOOKUP($B31,'DATA CLA Acc'!$A$7:$AJ$39,36,FALSE),VLOOKUP($B32,'DATA CLA Acc'!$A$7:$AJ$39,36,FALSE),VLOOKUP($B33,'DATA CLA Acc'!$A$7:$AJ$39,36,FALSE),VLOOKUP($B34,'DATA CLA Acc'!$A$7:$AJ$39,36,FALSE),VLOOKUP($B35,'DATA CLA Acc'!$A$7:$AJ$39,36,FALSE)) -> 0.07631073291 | AE37: =SUM(IF(VLOOKUP($B31,'DATA CLA Acc'!$A$7:$AJ$38,'DATA CLA Acc'!AG$51,FALSE)="*",0,VLOOKUP($B31,'DATA CLA Acc'!$A$7:$AJ$38,'DATA CLA Acc'!AG$51,FALSE)),IF(VLOOKUP($B32,'DATA CLA Acc'!$A$7:$AJ$38,'DATA CLA Acc'!AG$51,FALSE)="*",0,VLOOKUP($B32,'DATA CLA Acc'!$A$7:$AJ$38,'DATA CLA Acc'!AG$51,FALSE)),IF(VLOOKUP($B33,'DATA CLA Acc'!$A$7:$AJ$38,'DATA CLA Acc'!AG$51,FALSE)="*",0,VLOOKUP($B33,'DATA CLA Acc'!$A$7:$AJ$38,'DATA CLA Acc'!AG$51,FALSE)),IF(VLOOKUP($B34,'DATA CLA Acc'!$A$7:$AJ$38,'DATA CLA Acc'!AG$51,FALSE)="*",0,VLOOKUP($B34,'DATA CLA Acc'!$A$7:$AJ$38,'DATA CLA Acc'!AG$51,FALSE)),IF(VLOOKUP($B35,'DATA CLA Acc'!$A$7:$AJ$38,'DATA CLA Acc'!AG$51,FALSE)="*",0,VLOOKUP($B35,'DATA CLA Acc'!$A$7:$AJ$38,'DATA CLA Acc'!AG$51,FALSE)))/SUM(VLOOKUP($B31,'DATA CLA Acc'!$A$7:$AJ$39,36,FALSE),VLOOKUP($B32,'DATA CLA Acc'!$A$7:$AJ$39,36,FALSE),VLOOKUP($B33,'DATA CLA Acc'!$A$7:$AJ$39,36,FALSE),VLOOKUP($B34,'DATA CLA Acc'!$A$7:$AJ$39,36,FALSE),VLOOKUP($B35,'DATA CLA Acc'!$A$7:$AJ$39,36,FALSE)) -> 0.005489980785 | AF37: =SUM(IF(VLOOKUP($B31,'DATA CLA Acc'!$A$7:$AJ$38,'DATA CLA Acc'!AH$51,FALSE)="*",0,VLOOKUP($B31,'DATA CLA Acc'!$A$7:$AJ$38,'DATA CLA Acc'!AH$51,FALSE)),IF(VLOOKUP($B32,'DATA CLA Acc'!$A$7:$AJ$38,'DATA CLA Acc'!AH$51,FALSE)="*",0,VLOOKUP($B32,'DATA CLA Acc'!$A$7:$AJ$38,'DATA CLA Acc'!AH$51,FALSE)),IF(VLOOKUP($B33,'DATA CLA Acc'!$A$7:$AJ$38,'DATA CLA Acc'!AH$51,FALSE)="*",0,VLOOKUP($B33,'DATA CLA Acc'!$A$7:$AJ$38,'DATA CLA Acc'!AH$51,FALSE)),IF(VLOOKUP($B34,'DATA CLA Acc'!$A$7:$AJ$38,'DATA CLA Acc'!AH$51,FALSE)="*",0,VLOOKUP($B34,'DATA CLA Acc'!$A$7:$AJ$38,'DATA CLA Acc'!AH$51,FALSE)),IF(VLOOKUP($B35,'DATA CLA Acc'!$A$7:$AJ$38,'DATA CLA Acc'!AH$51,FALSE)="*",0,VLOOKUP($B35,'DATA CLA Acc'!$A$7:$AJ$38,'DATA CLA Acc'!AH$51,FALSE)))/SUM(VLOOKUP($B31,'DATA CLA Acc'!$A$7:$AJ$39,36,FALSE),VLOOKUP($B32,'DATA CLA Acc'!$A$7:$AJ$39,36,FALSE),VLOOKUP($B33,'DATA CLA Acc'!$A$7:$AJ$39,36,FALSE),VLOOKUP($B34,'DATA CLA Acc'!$A$7:$AJ$39,36,FALSE),VLOOKUP($B35,'DATA CLA Acc'!$A$7:$AJ$39,36,FALSE)) -> 0.05050782322 | AG37: =SUM(IF(VLOOKUP($B31,'DATA CLA Acc'!$A$7:$AJ$38,'DATA CLA Acc'!AI$51,FALSE)="*",0,VLOOKUP($B31,'DATA CLA Acc'!$A$7:$AJ$38,'DATA CLA Acc'!AI$51,FALSE)),IF(VLOOKUP($B32,'DATA CLA Acc'!$A$7:$AJ$38,'DATA CLA Acc'!AI$51,FALSE)="*",0,VLOOKUP($B32,'DATA CLA Acc'!$A$7:$AJ$38,'DATA CLA Acc'!AI$51,FALSE)),IF(VLOOKUP($B33,'DATA CLA Acc'!$A$7:$AJ$38,'DATA CLA Acc'!AI$51,FALSE)="*",0,VLOOKUP($B33,'DATA CLA Acc'!$A$7:$AJ$38,'DATA CLA Acc'!AI$51,FALSE)),IF(VLOOKUP($B34,'DATA CLA Acc'!$A$7:$AJ$38,'DATA CLA Acc'!AI$51,FALSE)="*",0,VLOOKUP($B34,'DATA CLA Acc'!$A$7:$AJ$38,'DATA CLA Acc'!AI$51,FALSE)),IF(VLOOKUP($B35,'DATA CLA Acc'!$A$7:$AJ$38,'DATA CLA Acc'!AI$51,FALSE)="*",0,VLOOKUP($B35,'DATA CLA Acc'!$A$7:$AJ$38,'DATA CLA Acc'!AI$51,FALSE)))/SUM(VLOOKUP($B31,'DATA CLA Acc'!$A$7:$AJ$39,36,FALSE),VLOOKUP($B32,'DATA CLA Acc'!$A$7:$AJ$39,36,FALSE),VLOOKUP($B33,'DATA CLA Acc'!$A$7:$AJ$39,36,FALSE),VLOOKUP($B34,'DATA CLA Acc'!$A$7:$AJ$39,36,FALSE),VLOOKUP($B35,'DATA CLA Acc'!$A$7:$AJ$39,36,FALSE)) -> 0.03458687895
B39: Scotland | C39: =IFERROR(VLOOKUP($B39,'DATA CLA Acc'!$A$7:$AJ$39,'DATA CLA Acc'!B$51,FALSE)/VLOOKUP($B39,'DATA CLA Acc'!$A$7:$AJ$39,9,FALSE),"*") -> 0.2526604426 | D39: =IFERROR(VLOOKUP($B39,'DATA CLA Acc'!$A$7:$AJ$39,'DATA CLA Acc'!C$51,FALSE)/VLOOKUP($B39,'DATA CLA Acc'!$A$7:$AJ$39,9,FALSE),"*") -> 0.2793627995 | E39: =IFERROR(VLOOKUP($B39,'DATA CLA Acc'!$A$7:$AJ$39,'DATA CLA Acc'!D$51,FALSE)/VLOOKUP($B39,'DATA CLA Acc'!$A$7:$AJ$39,9,FALSE),"*") -> 0.2497878175 | F39: =IFERROR(VLOOKUP($B39,'DATA CLA Acc'!$A$7:$AJ$39,'DATA CLA Acc'!E$51,FALSE)/VLOOKUP($B39,'DATA CLA Acc'!$A$7:$AJ$39,9,FALSE),"*") -> 0.1022393419 | G39: =IFERROR(VLOOKUP($B39,'DATA CLA Acc'!$A$7:$AJ$39,'DATA CLA Acc'!F$51,FALSE)/VLOOKUP($B39,'DATA CLA Acc'!$A$7:$AJ$39,9,FALSE),"*") -> 0.01952079389 | H39: =IFERROR(VLOOKUP($B39,'DATA CLA Acc'!$A$7:$AJ$39,'DATA CLA Acc'!G$51,FALSE)/VLOOKUP($B39,'DATA CLA Acc'!$A$7:$AJ$39,9,FALSE),"*") -> 0.04681073317 | I39: =IFERROR(VLOOKUP($B39,'DATA CLA Acc'!$A$7:$AJ$39,'DATA CLA Acc'!H$51,FALSE)/VLOOKUP($B39,'DATA CLA Acc'!$A$7:$AJ$39,9,FALSE),"*") -> 0.04961807142 | K39: =IFERROR(VLOOKUP($B39,'DATA CLA Acc'!$A$7:$AJ$39,'DATA CLA Acc'!K$51,FALSE)/VLOOKUP($B39,'DATA CLA Acc'!$A$7:$AJ$39,18,FALSE),"*") -> 0.2528025777 | L39: =IFERROR(VLOOKUP($B39,'DATA CLA Acc'!$A$7:$AJ$39,'DATA CLA Acc'!L$51,FALSE)/VLOOKUP($B39,'DATA CLA Acc'!$A$7:$AJ$39,18,FALSE),"*") -> 0.2777740485 | M39: =IFERROR(VLOOKUP($B39,'DATA CLA Acc'!$A$7:$AJ$39,'DATA CLA Acc'!M$51,FALSE)/VLOOKUP($B39,'DATA CLA Acc'!$A$7:$AJ$39,18,FALSE),"*") -> 0.235550782 | N39: =IFERROR(VLOOKUP($B39,'DATA CLA Acc'!$A$7:$AJ$39,'DATA CLA Acc'!N$51,FALSE)/VLOOKUP($B39,'DATA CLA Acc'!$A$7:$AJ$39,18,FALSE),"*") -> 0.1170034235 | O39: =IFERROR(VLOOKUP($B39,'DATA CLA Acc'!$A$7:$AJ$39,'DATA CLA Acc'!O$51,FALSE)/VLOOKUP($B39,'DATA CLA Acc'!$A$7:$AJ$39,18,FALSE),"*") -> 0.01557360542 | P39: =IFERROR(VLOOKUP($B39,'DATA CLA Acc'!$A$7:$AJ$39,'DATA CLA Acc'!P$51,FALSE)/VLOOKUP($B39,'DATA CLA Acc'!$A$7:$AJ$39,18,FALSE),"*") -> 0.05007719675 | Q39: =IFERROR(VLOOKUP($B39,'DATA CLA Acc'!$A$7:$AJ$39,'DATA CLA Acc'!Q$51,FALSE)/VLOOKUP($B39,'DATA CLA Acc'!$A$7:$AJ$39,18,FALSE),"*") -> 0.05121836611 | S39: =IFERROR(VLOOKUP($B39,'DATA CLA Acc'!$A$7:$AJ$39,'DATA CLA Acc'!T$51,FALSE)/VLOOKUP($B39,'DATA CLA Acc'!$A$7:$AJ$39,36,FALSE),"*") -> 0.2656710139 | T39: =IFERROR(VLOOKUP($B39,'DATA CLA Acc'!$A$7:$AJ$39,'DATA CLA Acc'!U$51,FALSE)/VLOOKUP($B39,'DATA CLA Acc'!$A$7:$AJ$39,36,FALSE),"*") -> 0.2855840696 | U39: =IFERROR(VLOOKUP($B39,'DATA CLA Acc'!$A$7:$AJ$39,'DATA CLA Acc'!V$51,FALSE)/VLOOKUP($B39,'DATA CLA Acc'!$A$7:$AJ$39,36,FALSE),"*") -> 0.2421119058 | V39: =IFERROR(VLOOKUP($B39,'DATA CLA Acc'!$A$7:$AJ$39,'DATA CLA Acc'!W$51,FALSE)/VLOOKUP($B39,'DATA CLA Acc'!$A$7:$AJ$39,36,FALSE),"*") -> 0.1045435423 | W39: =IFERROR(VLOOKUP($B39,'DATA CLA Acc'!$A$7:$AJ$39,'DATA CLA Acc'!X$51,FALSE)/VLOOKUP($B39,'DATA CLA Acc'!$A$7:$AJ$39,36,FALSE),"*") -> 0.0165474688 | X39: =IFERROR(VLOOKUP($B39,'DATA CLA Acc'!$A$7:$AJ$39,'DATA CLA Acc'!Y$51,FALSE)/VLOOKUP($B39,'DATA CLA Acc'!$A$7:$AJ$39,36,FALSE),"*") -> 0.05055391951 | Y39: =IFERROR(VLOOKUP($B39,'DATA CLA Acc'!$A$7:$AJ$39,'DATA CLA Acc'!Z$51,FALSE)/VLOOKUP($B39,'DATA CLA Acc'!$A$7:$AJ$39,27,FALSE),"*") -> 0.05434931977 | AA39: =IFERROR(VLOOKUP($B39,'DATA CLA Acc'!$A$7:$AJ$39,'DATA CLA Acc'!AC$51,FALSE)/VLOOKUP($B39,'DATA CLA Acc'!$A$7:$AJ$39,36,FALSE),"*") -> 0.2502454074 | AB39: =IFERROR(VLOOKUP($B39,'DATA CLA Acc'!$A$7:$AJ$39,'DATA CLA Acc'!AD$51,FALSE)/VLOOKUP($B39,'DATA CLA Acc'!$A$7:$AJ$39,36,FALSE),"*") -> 0.2927359417 | AC39: =IFERROR(VLOOKUP($B39,'DATA CLA Acc'!$A$7:$AJ$39,'DATA CLA Acc'!AE$51,FALSE)/VLOOKUP($B39,'DATA CLA Acc'!$A$7:$AJ$39,36,FALSE),"*") -> 0.2338381714 | AD39: =IFERROR(VLOOKUP($B39,'DATA CLA Acc'!$A$7:$AJ$39,'DATA CLA Acc'!AF$51,FALSE)/VLOOKUP($B39,'DATA CLA Acc'!$A$7:$AJ$39,36,FALSE),"*") -> 0.1025802833 | AE39: =IFERROR(VLOOKUP($B39,'DATA CLA Acc'!$A$7:$AJ$39,'DATA CLA Acc'!AG$51,FALSE)/VLOOKUP($B39,'DATA CLA Acc'!$A$7:$AJ$39,36,FALSE),"*") -> 0.01907165895 | AF39: =IFERROR(VLOOKUP($B39,'DATA CLA Acc'!$A$7:$AJ$39,'DATA CLA Acc'!AH$51,FALSE)/VLOOKUP($B39,'DATA CLA Acc'!$A$7:$AJ$39,36,FALSE),"*") -> 0.04964240639 | AG39: =IFERROR(VLOOKUP($B39,'DATA CLA Acc'!$A$7:$AJ$39,'DATA CLA Acc'!AI$51,FALSE)/VLOOKUP($B39,'DATA CLA Acc'!$A$7:$AJ$39,36,FALSE),"*") -> 0.05188613098
A41: Notes
A42: In other community includes with prospective adopters.
A43: Other Residential Care includes crisis care, secure accommodation and residential school.
A44: Where data has been suppressed for an authority, for the purposes of aggregating to the group of comparator authorities it has been assumed to be 0. Therefore, the percentages for the aggregated comparator authorities category may be slightly lower than the true figure for placement types where data has been suppressed for one of the individual comparator authorities. | Z44: =IF('DATA CLA Acc'!A44="","",'DATA CLA Acc'!A44) -> Source: Scottish Government CLAS Returns
T48: =T28-L28 -> -0.02941514861 | U48: =U28-M28 -> 0.01675934803 | V48: =V28-N28 ->  | W48: =W28-O28 ->  | AA48: =AA28-S28 -> 0.03821029083 | AB48: =AB28-T28 -> -0.02201342282 | AC48: =AC28-U28 -> -0.01485458613 | AD48: =AD28-V28 ->  | AE48: =AE28-W28 -> 
T49: =T37-L37 -> 0.007141000415 | U49: =U37-M37 -> -0.008443449903 | V49: =V37-N37 -> -0.007179486176 | W49: =W37-O37 -> 0.003431364395 | AA49: =AA37-S37 -> -0.01477699388 | AB49: =AB37-T37 -> 0.02521582081 | AC49: =AC37-U37 -> 0.005179915904 | AD49: =AD37-V37 -> -0.008840384039 | AE49: =AE37-W37 -> -0.002657193985
T50: =T39-L39 -> 0.007810021089 | U50: =U39-M39 -> 0.006561123727 | V50: =V39-N39 -> -0.01245988123 | W50: =W39-O39 -> 0.0009738633743 | AA50: =AA39-S39 -> -0.01542560651 | AB50: =AB39-T39 -> 0.007151872108 | AC50: =AC39-U39 -> -0.008273734399 | AD50: =AD39-V39 -> -0.00196325901 | AE50: =AE39-W39 -> 0.002524190156
B51: Comparator authorities
B52: Scotland | T52: =IF(T48<0,"a decrease of ",IF(T48>=0,"an increase of ")) -> a decrease of | U52: an increase of | AA52: =IF(AA48<0,"a decrease of ",IF(AA48>=0,"an increase of ")) -> an increase of | AB52: =IF(AB48<0,"a decrease of ",IF(AB48>=0,"An increase of ")) -> a decrease of | AC52: =IF(AC48<0,"a decrease of ",IF(AC48>=0,"an increase of ")) -> a decrease of
T53: an increase of | U53: a decrease of | V53: a decrease of | W53: an increase of | AA53: =IF(AA49<0,"a decrease of ",IF(AA49>=0,"an increase of ")) -> a decrease of | AB53: an increase of | AC53: an increase of | AD53: a decrease of | AE53: a decrease of
T54: an increase of | U54: an increase of | V54: a decrease of | W54: an increase of | AA54: =IF(AA50<0,"a decrease of ",IF(AA50>=0,"an increase of ")) -> a decrease of | AB54: an increase of | AC54: a decrease of | AD54: a decrease of | AE54: an increase of
D56: =IF(D31="*","",D31*$C31) -> 0.0647515191 | E56: =IF(E31="*","",E31*$C31) -> 0.08157009549 | F56: =IF(F31="*","",F31*$C31) -> 0.04036458333 | G56: =IF(G31="*","",G31*$C31) -> 0.01261393229 | L56: =IF(L31="*","",L31*$K31) -> 0.08695398101 | M56: =IF(M31="*","",M31*$K31) -> 0.07479912345 | N56: =IF(N31="*","",N31*$K31) -> 0.03365960555 | O56: =IF(O31="*","",O31*$K31) -> 0.01121986852 | T56: =IF(T31="*","",T31*$S31) -> 0.06850228129 | U56: =IF(U31="*","",U31*$S31) -> 0.06696290419 | V56: =IF(V31="*","",V31*$S31) -> 0.03078754215 | W56: =IF(W31="*","",W31*$S31) -> 0.006157508431 | AA56: =IF(AA31="*","",AA31*$AA31) -> 0.04235244696 | AB56: =IF(AB31="*","",AB31*$AA31) -> 0.05368620038 | AC56: =IF(AC31="*","",AC31*$AA31) -> 0.0668094938 | AD56: =IF(AD31="*","",AD31*$AA31) -> 0.01610586011 | AE56: =IF(AE31="*","",AE31*$AA31) -> 0.005965133375
D57: =IF(D32="*","",D32*$C32) -> 0.06798473352 | E57: =IF(E32="*","",E32*$C32) -> 0.03895585394 | F57: 0.01619400363 | G57: 0.0003509536391 | L57: =IF(L32="*","",L32*$K32) -> 0.07077540354 | M57: 0.04085559319 | N57: 0.01738666597 | T57: =IF(T32="*","",T32*$S32) -> 0.07409407485 | U57: 0.03896212492 | V57: 0.01617918747 | AA57: =IF(AA32="*","",AA32*$AA32) -> 0.02500986171 | AB57: =IF(AB32="*","",AB32*$AA32) -> 0.07289841897 | AC57: 0.03447474672 | AD57: 0.01341381054
D58: =IF(D33="*","",D33*$C33) -> 0.03295177174 | E58: 0.04431445165 | F58: 0.01079454591 | G58: 0.005113205959 | L58: 0.05153508772 | M58: 0.07052169898 | N58: 0.01356186519 | T58: 0.0651041047 | U58: 0.08544913742 | V58: 0.01085068412 | AA58: =IF(AA33="*","",AA33*$AA33) -> 0.07955292571 | AB58: 0.07232084155 | AC58: 0.08244575937 | AD58: 0.01012491782
D59: =IF(D34="*","",D34*$C34) -> 0.07941446758 | E59: 0.06687534112 | F59: 0.0238840504 | G59: 0.00716521512 | L59: 0.07498187871 | M59: 0.07039115144 | N59: 0.02907460603 | O59: 0.005355848479 | T59: 0.07788508778 | U59: 0.07402939036 | V59: 0.02004962656 | W59: 0.01388051069 | AA59: =IF(AA34="*","",AA34*$AA34) -> 0.092416 | AB59: 0.07296 | AC59: 0.08430933333 | AD59: 0.02026666667 | AE59: 0.008106666667
D60: =IF(D35="*","",D35*$C35) -> 0.09771523256 | E60: 0.05899787626 | F60: 0.01290578543 | G60: 0.009218418166 | L60: 0.1085767191 | M60: 0.06514603148 | T60: 0.09989646726 | U60: 0.06514986995 | V60: 0.01085831166 | W60: 0.01085831166 | AA60: =IF(AA35="*","",AA35*$AA35) -> 0.2285306365 | AB60: 0.1049375372 | AC60: 0.05829863177 | AD60: 0.01165972635
T63: =T28-T37 -> -0.06750037482 | U63: =U28-U37 -> 0.0005926500807 | V63: =V28-V37 ->  | W63: =W28-W37 ->  | AA63: =AA28-AA37 -> 0.1043608747 | AB63: =AB28-AB37 -> -0.1147296184 | AC63: =AC28-AC37 -> -0.01944185195 | AD63: =AD28-AD37 ->  | AE63: =AE28-AE37 -> 
T65: =T28-T39 -> 0.01642935326 | U65: =U28-U39 -> -0.0139239863 | V65: =V28-V39 ->  | W65: =W28-W39 ->  | AA65: =AA28-AA39 -> 0.05642125929 | AB65: =AB28-AB39 -> -0.01273594166 | AC65: =AC28-AC39 -> -0.02050483803 | AD65: =AD28-AD39 ->  | AE65: =AE28-AE39 -> 
T67: =IF(T63<-0.02,"less than",IF(T63>0.02,"greater than","similar to")) -> less than | AA67: =IF(AA63<-0.02,"less than",IF(AA63>0.02,"greater than","similar to")) -> greater than | AB67: =IF(AB63<-0.02,"less than",IF(AB63>0.02,"greater than","similar to")) -> less than
T70: =IF(T65<-0.02,"less than",IF(T65>0.02,"greater than","similar to")) -> similar to | AA70: =IF(AA65<-0.02,"less than",IF(AA65>0.02,"greater than","similar to")) -> greater than | AB70: =IF(AB65<-0.02,"less than",IF(AB65>0.02,"greater than","similar to")) -> similar to

Sheet CLA Disability
A1: ='DATA CLA DIS'!A1 -> Children Looked After: by disability status at 31 July 2016 to 2019
C2: select comparators:
B3: =J3 -> 28 | J3: =VLOOKUP('Select an authority'!$A$1,'REF CAs'!$A$1:$F$32,2,0) -> 28
B4: =J4 -> 7 | J4: =VLOOKUP('Select an authority'!$A$1,'REF CAs'!$A$1:$F$32,3,0) -> 7
B5: =J5 -> 26 | J5: =VLOOKUP('Select an authority'!$A$1,'REF CAs'!$A$1:$F$32,4,0) -> 26
B6: =J6 -> 16 | J6: =VLOOKUP('Select an authority'!$A$1,'REF CAs'!$A$1:$F$32,5,0) -> 16
B7: =J7 -> 3 | J7: =VLOOKUP('Select an authority'!$A$1,'REF CAs'!$A$1:$F$32,6,0) -> 3
B12: =IF(L24="N/A","[text statement not available due to data being unavailable]",IF(P24="N/A","[text statement not available due to due to data being unavailable]",IF(L24="*","[text statement not available due to suppression of data for confidentiality]",IF(P24="*","[text statement not available due to suppression of data for confidentiality]","* In "&O22&", the percentage of looked after children with a disability in "&B24&" was "&ROUND(100*Q24,0)&"%, "&N46&ROUND(SQRT((100*N40)^2),1)&"%-points over the previous year.")))) -> * In 2019, the percentage of looked after children with a disability in Argyll & Bute was 23%, an increase of 3.2%-points over the previous year.
B15: =IF(L33="N/A","[text statement not available due to data being unavailable]",IF(P33="N/A","[text statement not available due to data being unavailable]",IF(L33=0,"[text statement not available due to suppression of data for confidentiality]",IF(P33=0,"[text statement not available due to suppression of data for confidentiality]","* This compares with "&N47&ROUND(SQRT((100*N41)^2),1)&"%-points for comparator authorities, and "&N48&ROUND(SQRT((100*N42)^2),1)&"%-points for Scotland as a whole.")))) -> * This compares with a decrease of 2.6%-points for comparator authorities, and an increase of 0.3%-points for Scotland as a whole.
B18: =IF(P24="N/A","[text statement not available due to data being unavailable]",IF(P33="N/A","[text statement not available due to data being unavailable]",IF(P24="*","[text statement not available due to suppression of data for confidentiality]",IF(P33=0,"[text statement not available due to suppression of data for confidentiality]","* The percentage looked after children with a disability ("&ROUND(100*Q24,0)&"%) is "&Q45&" the comparator average ("&ROUND(100*Q33,0)&"%), and "&Q49&" the Scotland average ("&ROUND(100*Q35,0)&"%).")))) -> * The percentage looked after children with a disability (23%) is greater than the comparator average (10%), and greater than the Scotland average (11%).
C22: ='DATA CLA DIS'!B4 -> 2016 | G22: ='DATA CLA DIS'!E4 -> 2017 | K22: ='DATA CLA DIS'!H4 -> 2018 | O22: ='DATA CLA DIS'!K4 -> 2019
C23: ='DATA CLA DIS'!B5 -> No. of children looked after | D23: ='DATA CLA DIS'!C5 -> No. of children looked after with known additional support needs | E23: ='DATA CLA DIS'!D5 -> % of children looked after with known additional support needs | G23: ='DATA CLA DIS'!E5 -> No. of children looked after | H23: ='DATA CLA DIS'!F5 -> No. of children looked after with a disability | I23: ='DATA CLA DIS'!G5 -> % of children looked after with a disability | K23: ='DATA CLA DIS'!H5 -> No. of children looked after | L23: ='DATA CLA DIS'!I5 -> No. of children looked after with a disability | M23: ='DATA CLA DIS'!J5 -> % of children looked after with a disability | O23: ='DATA CLA DIS'!K5 -> No. of children looked after | P23: ='DATA CLA DIS'!L5 -> No. of children looked after with a disability | Q23: ='DATA CLA DIS'!M5 -> % of children looked after with a disability
B24: =OFFSET('REF EA Name'!$B$2,'Select an authority'!$A$1,0) -> Argyll & Bute | C24: =IF(OFFSET('DATA CLA DIS'!$B$5,'Select an authority'!$A$1,0)="","N/A",OFFSET('DATA CLA DIS'!$B$5,'Select an authority'!$A$1,0)) -> 163 | D24: =IF(OFFSET('DATA CLA DIS'!$C$5,'Select an authority'!$A$1,0)="","N/A",IF(OFFSET('DATA CLA DIS'!$C$5,'Select an authority'!$A$1,0)<5,"*",OFFSET('DATA CLA DIS'!$C$5,'Select an authority'!$A$1,0))) -> 36 | E24: =IF(OFFSET('DATA CLA DIS'!$D$5,'Select an authority'!$A$1,0)="","N/A",IF(D24="*","",OFFSET('DATA CLA DIS'!$D$5,'Select an authority'!$A$1,0))) -> 0.22 | G24: =IF(OFFSET('DATA CLA DIS'!$E$5,'Select an authority'!$A$1,0)="","N/A",OFFSET('DATA CLA DIS'!$E$5,'Select an authority'!$A$1,0)) -> 175 | H24: =IF(OFFSET('DATA CLA DIS'!$F$5,'Select an authority'!$A$1,0)="","N/A",IF(OFFSET('DATA CLA DIS'!$F$5,'Select an authority'!$A$1,0)<5,"*",OFFSET('DATA CLA DIS'!$F$5,'Select an authority'!$A$1,0))) -> 36 | I24: =IF(OFFSET('DATA CLA DIS'!$G$5,'Select an authority'!$A$1,0)="","N/A",IF(H24="*","",OFFSET('DATA CLA DIS'!$G$5,'Select an authority'!$A$1,0))) -> 0.2057142857 | K24: =IF(OFFSET('DATA CLA DIS'!$H$5,'Select an authority'!$A$1,0)="","N/A",OFFSET('DATA CLA DIS'!$H$5,'Select an authority'!$A$1,0)) -> 149 | L24: =IF(OFFSET('DATA CLA DIS'!$I$5,'Select an authority'!$A$1,0)="","N/A",IF(OFFSET('DATA CLA DIS'!$I$5,'Select an authority'!$A$1,0)<5,"*",OFFSET('DATA CLA DIS'!$I$5,'Select an authority'!$A$1,0))) -> 29 | M24: =IF(OFFSET('DATA CLA DIS'!$J$5,'Select an authority'!$A$1,0)="","N/A",IF(L24="*","",OFFSET('DATA CLA DIS'!$J$5,'Select an authority'!$A$1,0))) -> 0.1946308725 | O24: =IF(OFFSET('DATA CLA DIS'!$K$5,'Select an authority'!$A$1,0)="","N/A",(OFFSET('DATA CLA DIS'!$K$5,'Select an authority'!$A$1,0))) -> 150 | P24: =IF(OFFSET('DATA CLA DIS'!$L$5,'Select an authority'!$A$1,0)="","N/A",IF(OFFSET('DATA CLA DIS'!$L$5,'Select an authority'!$A$1,0)<5,"*",OFFSET('DATA CLA DIS'!$L$5,'Select an authority'!$A$1,0))) -> 34 | Q24: =IF(OFFSET('DATA CLA DIS'!$M$5,'Select an authority'!$A$1,0)="","N/A",IF(P24="*","",OFFSET('DATA CLA DIS'!$M$5,'Select an authority'!$A$1,0))) -> 0.2266666667
A26: Comparator Authorities:
B27: =OFFSET('REF EA Name'!$B$2, B3,0) -> South Ayrshire | C27: =IF(OFFSET('DATA CLA DIS'!$B$5,$B3,0)="","N/A",IF($B3<33,OFFSET('DATA CLA DIS'!$B$5,$B3,0),"")) -> 384 | D27: =IF(OFFSET('DATA CLA DIS'!$C$5,$B3,0)="","N/A",IF($B3=33,"",OFFSET('DATA CLA DIS'!$C$5,$B3,0))) -> 84 | E27: =IF(OFFSET('DATA CLA DIS'!$D$5,$B3,0)="","N/A",IF($B3=33,"",OFFSET('DATA CLA DIS'!$D$5,$B3,0))) -> 0.22 | G27: =IF(OFFSET('DATA CLA DIS'!$E$5,$B3,0)="","N/A",IF($B3<33,OFFSET('DATA CLA DIS'!$E$5,$B3,0),"")) -> 370 | H27: =IF(OFFSET('DATA CLA DIS'!$F$5,$B3,0)="","N/A",IF($B3=33,"",OFFSET('DATA CLA DIS'!$F$5,$B3,0))) -> 73 | I27: =IF(OFFSET('DATA CLA DIS'!$G$5,$B3,0)="","N/A",IF($B3=33,"",OFFSET('DATA CLA DIS'!$G$5,$B3,0))) -> 0.1972972973 | K27: =IF(OFFSET('DATA CLA DIS'!$H$5,$B3,0)="","N/A",IF($B3<33,OFFSET('DATA CLA DIS'!$H$5,$B3,0),"")) -> 355 | L27: =IF(OFFSET('DATA CLA DIS'!$I$5,$B3,0)="","N/A",IF($B3=33,"",OFFSET('DATA CLA DIS'!$I$5,$B3,0))) -> 68 | M27: =IF(OFFSET('DATA CLA DIS'!$J$5,$B3,0)="","N/A",IF($B3=33,"",OFFSET('DATA CLA DIS'!$J$5,$B3,0))) -> 0.1915492958 | O27: =IF(OFFSET('DATA CLA DIS'!$K$5,$B3,0)="","N/A",IF($B3<33,OFFSET('DATA CLA DIS'!$K$5,$B3,0),"")) -> 345 | P27: =IF(OFFSET('DATA CLA DIS'!$L$5,$B3,0)="","N/A",IF($B3=33,"",OFFSET('DATA CLA DIS'!$L$5,$B3,0))) -> 58 | Q27: =IF(OFFSET('DATA CLA DIS'!$M$5,$B3,0)="","N/A",IF($B3=33,"",OFFSET('DATA CLA DIS'!$M$5,$B3,0))) -> 0.168115942
B28: =OFFSET('REF EA Name'!$B$2,B4,0) -> Dumfries and Galloway | C28: =IF(OFFSET('DATA CLA DIS'!$B$5,$B4,0)="","N/A",IF($B4<33,OFFSET('DATA CLA DIS'!$B$5,$B4,0),"")) -> 393 | D28: =IF(OFFSET('DATA CLA DIS'!$C$5,$B4,0)="","N/A",IF($B4=33,"",OFFSET('DATA CLA DIS'!$C$5,$B4,0))) -> 23 | E28: =IF(OFFSET('DATA CLA DIS'!$D$5,$B4,0)="","N/A",IF($B4=33,"",OFFSET('DATA CLA DIS'!$D$5,$B4,0))) -> 0.06 | G28: =IF(OFFSET('DATA CLA DIS'!$E$5,$B4,0)="","N/A",IF($B4<33,OFFSET('DATA CLA DIS'!$E$5,$B4,0),"")) -> 382 | H28: =IF(OFFSET('DATA CLA DIS'!$F$5,$B4,0)="","N/A",IF($B4=33,"",OFFSET('DATA CLA DIS'!$F$5,$B4,0))) -> 11 | I28: =IF(OFFSET('DATA CLA DIS'!$G$5,$B4,0)="","N/A",IF($B4=33,"",OFFSET('DATA CLA DIS'!$G$5,$B4,0))) -> 0.02879581152 | K28: =IF(OFFSET('DATA CLA DIS'!$H$5,$B4,0)="","N/A",IF($B4<33,OFFSET('DATA CLA DIS'!$H$5,$B4,0),"")) -> 439 | L28: =IF(OFFSET('DATA CLA DIS'!$I$5,$B4,0)="","N/A",IF($B4=33,"",OFFSET('DATA CLA DIS'!$I$5,$B4,0))) -> 13 | M28: =IF(OFFSET('DATA CLA DIS'!$J$5,$B4,0)="","N/A",IF($B4=33,"",OFFSET('DATA CLA DIS'!$J$5,$B4,0))) -> 0.02961275626 | O28: =IF(OFFSET('DATA CLA DIS'!$K$5,$B4,0)="","N/A",IF($B4<33,OFFSET('DATA CLA DIS'!$K$5,$B4,0),"")) -> 395 | P28: =IF(OFFSET('DATA CLA DIS'!$L$5,$B4,0)="","N/A",IF($B4=33,"",OFFSET('DATA CLA DIS'!$L$5,$B4,0))) -> 11 | Q28: =IF(OFFSET('DATA CLA DIS'!$M$5,$B4,0)="","N/A",IF($B4=33,"",OFFSET('DATA CLA DIS'!$M$5,$B4,0))) -> 0.02784810127
B29: =OFFSET('REF EA Name'!$B$2,B5,0) -> Scottish Borders | C29: =IF(OFFSET('DATA CLA DIS'!$B$5,$B5,0)="","N/A",IF($B5<33,OFFSET('DATA CLA DIS'!$B$5,$B5,0),"")) -> 218 | D29: =IF(OFFSET('DATA CLA DIS'!$C$5,$B5,0)="","N/A",IF($B5=33,"",OFFSET('DATA CLA DIS'!$C$5,$B5,0))) -> 17 | E29: =IF(OFFSET('DATA CLA DIS'!$D$5,$B5,0)="","N/A",IF($B5=33,"",OFFSET('DATA CLA DIS'!$D$5,$B5,0))) -> 0.08 | G29: =IF(OFFSET('DATA CLA DIS'!$E$5,$B5,0)="","N/A",IF($B5<33,OFFSET('DATA CLA DIS'!$E$5,$B5,0),"")) -> 228 | H29: =IF(OFFSET('DATA CLA DIS'!$F$5,$B5,0)="","N/A",IF($B5=33,"",OFFSET('DATA CLA DIS'!$F$5,$B5,0))) -> 14 | I29: =IF(OFFSET('DATA CLA DIS'!$G$5,$B5,0)="","N/A",IF($B5=33,"",OFFSET('DATA CLA DIS'!$G$5,$B5,0))) -> 0.06140350877 | K29: =IF(OFFSET('DATA CLA DIS'!$H$5,$B5,0)="","N/A",IF($B5<33,OFFSET('DATA CLA DIS'!$H$5,$B5,0),"")) -> 205 | L29: =IF(OFFSET('DATA CLA DIS'!$I$5,$B5,0)="","N/A",IF($B5=33,"",OFFSET('DATA CLA DIS'!$I$5,$B5,0))) -> 14 | M29: =IF(OFFSET('DATA CLA DIS'!$J$5,$B5,0)="","N/A",IF($B5=33,"",OFFSET('DATA CLA DIS'!$J$5,$B5,0))) -> 0.06829268293 | O29: =IF(OFFSET('DATA CLA DIS'!$K$5,$B5,0)="","N/A",IF($B5<33,OFFSET('DATA CLA DIS'!$K$5,$B5,0),"")) -> 195 | P29: =IF(OFFSET('DATA CLA DIS'!$L$5,$B5,0)="","N/A",IF($B5=33,"",OFFSET('DATA CLA DIS'!$L$5,$B5,0))) -> 15 | Q29: =IF(OFFSET('DATA CLA DIS'!$M$5,$B5,0)="","N/A",IF($B5=33,"",OFFSET('DATA CLA DIS'!$M$5,$B5,0))) -> 0.07692307692
B30: =OFFSET('REF EA Name'!$B$2,B6,0) -> Highland | C30: =IF(OFFSET('DATA CLA DIS'!$B$5,$B6,0)="","N/A",IF($B6<33,OFFSET('DATA CLA DIS'!$B$5,$B6,0),"")) -> 440 | D30: =IF(OFFSET('DATA CLA DIS'!$C$5,$B6,0)="","N/A",IF($B6=33,"",OFFSET('DATA CLA DIS'!$C$5,$B6,0))) -> 83 | E30: =IF(OFFSET('DATA CLA DIS'!$D$5,$B6,0)="","N/A",IF($B6=33,"",OFFSET('DATA CLA DIS'!$D$5,$B6,0))) -> 0.19 | G30: =IF(OFFSET('DATA CLA DIS'!$E$5,$B6,0)="","N/A",IF($B6<33,OFFSET('DATA CLA DIS'!$E$5,$B6,0),"")) -> 487 | H30: =IF(OFFSET('DATA CLA DIS'!$F$5,$B6,0)="","N/A",IF($B6=33,"",OFFSET('DATA CLA DIS'!$F$5,$B6,0))) -> 58 | I30: =IF(OFFSET('DATA CLA DIS'!$G$5,$B6,0)="","N/A",IF($B6=33,"",OFFSET('DATA CLA DIS'!$G$5,$B6,0))) -> 0.1190965092 | K30: =IF(OFFSET('DATA CLA DIS'!$H$5,$B6,0)="","N/A",IF($B6<33,OFFSET('DATA CLA DIS'!$H$5,$B6,0),"")) -> 521 | L30: =IF(OFFSET('DATA CLA DIS'!$I$5,$B6,0)="","N/A",IF($B6=33,"",OFFSET('DATA CLA DIS'!$I$5,$B6,0))) -> 71 | M30: =IF(OFFSET('DATA CLA DIS'!$J$5,$B6,0)="","N/A",IF($B6=33,"",OFFSET('DATA CLA DIS'!$J$5,$B6,0))) -> 0.1362763916 | O30: =IF(OFFSET('DATA CLA DIS'!$K$5,$B6,0)="","N/A",IF($B6<33,OFFSET('DATA CLA DIS'!$K$5,$B6,0),"")) -> 483 | P30: =IF(OFFSET('DATA CLA DIS'!$L$5,$B6,0)="","N/A",IF($B6=33,"",OFFSET('DATA CLA DIS'!$L$5,$B6,0))) -> 37 | Q30: =IF(OFFSET('DATA CLA DIS'!$M$5,$B6,0)="","N/A",IF($B6=33,"",OFFSET('DATA CLA DIS'!$M$5,$B6,0))) -> 0.07660455487
B31: =OFFSET('REF EA Name'!$B$2,B7,0) -> Angus | C31: =IF(OFFSET('DATA CLA DIS'!$B$5,$B7,0)="","N/A",IF($B7<33,OFFSET('DATA CLA DIS'!$B$5,$B7,0),"")) -> 238 | D31: =IF(OFFSET('DATA CLA DIS'!$C$5,$B7,0)="","N/A",IF($B7=33,"",OFFSET('DATA CLA DIS'!$C$5,$B7,0))) -> 46 | E31: =IF(OFFSET('DATA CLA DIS'!$D$5,$B7,0)="","N/A",IF($B7=33,"",OFFSET('DATA CLA DIS'!$D$5,$B7,0))) -> 0.19 | G31: =IF(OFFSET('DATA CLA DIS'!$E$5,$B7,0)="","N/A",IF($B7<33,OFFSET('DATA CLA DIS'!$E$5,$B7,0),"")) -> 255 | H31: =IF(OFFSET('DATA CLA DIS'!$F$5,$B7,0)="","N/A",IF($B7=33,"",OFFSET('DATA CLA DIS'!$F$5,$B7,0))) -> 64 | I31: =IF(OFFSET('DATA CLA DIS'!$G$5,$B7,0)="","N/A",IF($B7=33,"",OFFSET('DATA CLA DIS'!$G$5,$B7,0))) -> 0.2509803922 | K31: =IF(OFFSET('DATA CLA DIS'!$H$5,$B7,0)="","N/A",IF($B7<33,OFFSET('DATA CLA DIS'!$H$5,$B7,0),"")) -> 251 | L31: =IF(OFFSET('DATA CLA DIS'!$I$5,$B7,0)="","N/A",IF($B7=33,"",OFFSET('DATA CLA DIS'!$I$5,$B7,0))) -> 58 | M31: =IF(OFFSET('DATA CLA DIS'!$J$5,$B7,0)="","N/A",IF($B7=33,"",OFFSET('DATA CLA DIS'!$J$5,$B7,0))) -> 0.2310756972 | O31: =IF(OFFSET('DATA CLA DIS'!$K$5,$B7,0)="","N/A",IF($B7<33,OFFSET('DATA CLA DIS'!$K$5,$B7,0),"")) -> 244 | P31: =IF(OFFSET('DATA CLA DIS'!$L$5,$B7,0)="","N/A",IF($B7=33,"",OFFSET('DATA CLA DIS'!$L$5,$B7,0))) -> 46 | Q31: =IF(OFFSET('DATA CLA DIS'!$M$5,$B7,0)="","N/A",IF($B7=33,"",OFFSET('DATA CLA DIS'!$M$5,$B7,0))) -> 0.1885245902
B33: Comparator authorities | C33: =SUM(C27:C31) -> 1673 | D33: =SUM(D27:D31) -> 253 | E33: =IF(D33=0,0,D33/(SUMIF(D27,">0",C27)+SUMIF(D28,">0",C28)+SUMIF(D29,">0",C29)+SUMIF(D30,">0",C30)+SUMIF(D31,">0",C31))) -> 0.1512253437 | G33: =SUM(G27:G31) -> 1722 | H33: =SUM(H27:H31) -> 220 | I33: =IF(H33=0,0,H33/(SUMIF(H27,">0",G27)+SUMIF(H28,">0",G28)+SUMIF(H29,">0",G29)+SUMIF(H30,">0",G30)+SUMIF(H31,">0",G31))) -> 0.1277584204 | K33: =SUM(K27:K31) -> 1771 | L33: =SUM(L27:L31) -> 224 | M33: =IF(L33=0,0,L33/(SUMIF(L27,">0",K27)+SUMIF(L28,">0",K28)+SUMIF(L29,">0",K29)+SUMIF(L30,">0",K30)+SUMIF(L31,">0",K31))) -> 0.1264822134 | O33: =SUM(O27:O31) -> 1662 | P33: =SUM(P27:P31) -> 167 | Q33: =IF(P33=0,0,P33/(SUMIF(P27,">0",O27)+SUMIF(P28,">0",O28)+SUMIF(P29,">0",O29)+SUMIF(P30,">0",O30)+SUMIF(P31,">0",O31))) -> 0.1004813478
B35: Scotland | C35: ='DATA CLA DIS'!B38 -> 15317 | D35: ='DATA CLA DIS'!C38 -> 1797 | E35: ='DATA CLA DIS'!D38 -> 0.12 | G35: ='DATA CLA DIS'!E38 -> 14897 | H35: ='DATA CLA DIS'!F38 -> 1636 | I35: ='DATA CLA DIS'!G38 -> 0.1098207693 | K35: ='DATA CLA DIS'!H38 -> 14554 | L35: ='DATA CLA DIS'!I38 -> 1523 | M35: ='DATA CLA DIS'!J38 -> 0.1046447712 | O35: ='DATA CLA DIS'!K38 -> 14262 | P35: ='DATA CLA DIS'!L38 -> 1535 | Q35: ='DATA CLA DIS'!M38 -> 0.1076286636
A37: Notes
A38: =IF('DATA CLA Acc'!A41="","",'DATA CLA Acc'!A41) -> Cells containing * represent numbers that are supressed to maintain confidentiality.
A39: =IF('DATA CLA Acc'!A42="","",'DATA CLA Acc'!A42) -> 
M40: =M24-I24 -> -0.01108341323 | N40: =Q24-M24 -> 0.03203579418
M41: =M33-I33 -> -0.001276207003 | N41: =Q33-M33 -> -0.02600086566 | P41: =M24-M33 -> 0.06814865904 | Q41: =Q24-Q33 -> 0.1261853189
M42: =M35-I35 -> -0.005175998085 | N42: =Q35-M35 -> 0.002983892385
P43: =M24-M35 -> 0.08998610129 | Q43: =Q24-Q35 -> 0.1190380031
P45: =IF(P41<-0.02,"less than",IF(P41>0.02,"greater than","similar to")) -> greater than | Q45: =IF(Q41<-0.02,"less than",IF(Q41>0.02,"greater than","similar to")) -> greater than
M46: =IF(M40<0,"a decrease of ",IF(M40>=0,"an increase of ")) -> a decrease of | N46: an increase of
M47: a decrease of | N47: a decrease of
M48: a decrease of | N48: an increase of
P49: =IF(P43<-0.02,"less than",IF(P43>0.02,"greater than","similar to")) -> greater than | Q49: =IF(Q43<-0.02,"less than",IF(Q43>0.02,"greater than","similar to")) -> greater than

Sheet CLA 3placements
A1: ='DATA CLA 3P'!A1 -> Children Looked After: Number with 3 or more placements during the past year for those looked at 31 July 2016 to 2019
C2: select comparators:
B3: =J3 -> 28 | J3: =VLOOKUP('Select an authority'!$A$1,'REF CAs'!$A$1:$F$32,2,0) -> 28 | Y3: =VLOOKUP('Select an authority'!$A$1,'REF CAs'!$A$1:$F$32,2,0) -> 28
B4: =J4 -> 7 | J4: =VLOOKUP('Select an authority'!$A$1,'REF CAs'!$A$1:$F$32,3,0) -> 7 | Y4: =VLOOKUP('Select an authority'!$A$1,'REF CAs'!$A$1:$F$32,3,0) -> 7
B5: =J5 -> 26 | J5: =VLOOKUP('Select an authority'!$A$1,'REF CAs'!$A$1:$F$32,4,0) -> 26 | Y5: =VLOOKUP('Select an authority'!$A$1,'REF CAs'!$A$1:$F$32,4,0) -> 26
B6: =J6 -> 16 | J6: =VLOOKUP('Select an authority'!$A$1,'REF CAs'!$A$1:$F$32,5,0) -> 16 | Y6: =VLOOKUP('Select an authority'!$A$1,'REF CAs'!$A$1:$F$32,5,0) -> 16
B7: =J7 -> 3 | J7: =VLOOKUP('Select an authority'!$A$1,'REF CAs'!$A$1:$F$32,6,0) -> 3 | Y7: =VLOOKUP('Select an authority'!$A$1,'REF CAs'!$A$1:$F$32,6,0) -> 3
B12: =IF($P$22="N/A","[text statement not available due to data being unavailable]",IF(U22="N/A","[text statement not available due to data being unavailable]",IF($P$22="*","[text statement not available due to suppression of data for confidentiality]",IF(U22="*","[text statement not available due to suppression of data for confidentiality]","* In "&$S$20&", "&ROUND(100*$U$22,0)&"% of children looked after in "&$B$22&" have had 3 or more placements during the past year, "&T40&ROUND(SQRT((100*S40)^2),1)&" %-points over the previous year.")))) -> * In 2019, 6% of children looked after in Argyll & Bute have had 3 or more placements during the past year, an increase of 2 %-points over the previous year.
B14: =IF($U$31="N/A","[text statement not available due to data being unavailable]",IF(U33="N/A","[text statement not available due to data being unavailable]",IF($U$31="*","[text statement not available due to suppression of data for confidentiality]",IF(U33="*","[text statement not available due to suppression of data for confidentiality]","* This compares with "&$T$41&" of "&ROUND(SQRT((100*$S$41)^2),1)&"%-points for comparator authorities, and "&$T$42&" of "&ROUND(SQRT((100*S42)^2),1)&"%-points for Scotland as a whole.")))) -> * This compares with a decrease of of 2.1%-points for comparator authorities, and an increase of of 0.3%-points for Scotland as a whole.
B17: =IF(U22="N/A","[text statement not available due to data being unavailable]",IF(U22="*","[text statement not available due to suppression of data for confidentiality]","* The percentage of children who have had 3 or more placements during the past year ("&ROUND(100*U22,0)&"%) is "&T37&" the comparator average of "&ROUND(100*U31,0)&"% and "&T38&" the Scotland average of "&ROUND(100*U33,0)&"%")) -> * The percentage of children who have had 3 or more placements during the past year (6%) is similar to the comparator average of 6% and similar to the Scotland average of 5%
D20: ='DATA CLA 3P'!C3 -> 2016 | I20: ='DATA CLA 3P'!G3 -> 2017 | N20: ='DATA CLA 3P'!K3 -> 2018 | S20: ='DATA CLA 3P'!O3 -> 2019
D21: ='DATA CLA 3P'!C4 -> Number of children looked after | E21: ='DATA CLA 3P'!D4 -> Number with 3 or more placements | F21: ='DATA CLA 3P'!E4 -> Percentage with 3 or more placements | I21: ='DATA CLA 3P'!G4 -> Number of children looked after | J21: ='DATA CLA 3P'!H4 -> Number with 3 or more placements | K21: ='DATA CLA 3P'!I4 -> Percentage with 3 or more placements | N21: ='DATA CLA 3P'!K4 -> Number of children looked after | O21: ='DATA CLA 3P'!L4 -> Number with 3 or more placements | P21: ='DATA CLA 3P'!M4 -> Percentage with 3 or more placements | S21: ='DATA CLA 3P'!O4 -> Number of children looked after | T21: ='DATA CLA 3P'!P4 -> Number with 3 or more placements | U21: ='DATA CLA 3P'!Q4 -> Percentage with 3 or more placements
B22: =OFFSET('REF EA Name'!$B$2,'Select an authority'!$A$1,0) -> Argyll & Bute | D22: =IF(OFFSET('DATA CLA 3P'!$C5,'Select an authority'!$A$1,0)="","N/A",IF(OFFSET('DATA CLA 3P'!$C5,'Select an authority'!$A$1,0)=0,"0",OFFSET('DATA CLA 3P'!$C5,'Select an authority'!$A$1,0))) -> 163 | E22: =IF(OFFSET('DATA CLA 3P'!$D5,'Select an authority'!$A$1,0)="","N/A",IF(OFFSET('DATA CLA 3P'!$D5,'Select an authority'!$A$1,0)=0,"0",OFFSET('DATA CLA 3P'!$D5,'Select an authority'!$A$1,0))) -> 7 | F22: =IF(OFFSET('DATA CLA 3P'!$E5,'Select an authority'!$A$1,0)="","N/A",IF(OFFSET('DATA CLA 3P'!$E5,'Select an authority'!$A$1,0)=0,"0",OFFSET('DATA CLA 3P'!$E5,'Select an authority'!$A$1,0))) -> 0.04294478528 | I22: =IF(OFFSET('DATA CLA 3P'!$G5,'Select an authority'!$A$1,0)="","N/A",IF(OFFSET('DATA CLA 3P'!$G5,'Select an authority'!$A$1,0)=0,"0",OFFSET('DATA CLA 3P'!$G5,'Select an authority'!$A$1,0))) -> 175 | J22: =IF(OFFSET('DATA CLA 3P'!$H5,'Select an authority'!$A$1,0)="","N/A",IF(OFFSET('DATA CLA 3P'!$H5,'Select an authority'!$A$1,0)=0,"0",OFFSET('DATA CLA 3P'!$H5,'Select an authority'!$A$1,0))) -> 14 | K22: =IF(OFFSET('DATA CLA 3P'!$I5,'Select an authority'!$A$1,0)="","N/A",IF(OFFSET('DATA CLA 3P'!$I5,'Select an authority'!$A$1,0)=0,"0",OFFSET('DATA CLA 3P'!$I5,'Select an authority'!$A$1,0))) -> 0.08 | N22: =IF(OFFSET('DATA CLA 3P'!$K5,'Select an authority'!$A$1,0)="","N/A",IF(OFFSET('DATA CLA 3P'!$K5,'Select an authority'!$A$1,0)=0,"0",OFFSET('DATA CLA 3P'!$K5,'Select an authority'!$A$1,0))) -> 149 | O22: =IF(OFFSET('DATA CLA 3P'!$L5,'Select an authority'!$A$1,0)="","N/A",IF(OFFSET('DATA CLA 3P'!$L5,'Select an authority'!$A$1,0)=0,"0",OFFSET('DATA CLA 3P'!$L5,'Select an authority'!$A$1,0))) -> 6 | P22: =IF(OFFSET('DATA CLA 3P'!$M5,'Select an authority'!$A$1,0)="","N/A",IF(OFFSET('DATA CLA 3P'!$M5,'Select an authority'!$A$1,0)=0,"0",OFFSET('DATA CLA 3P'!$M5,'Select an authority'!$A$1,0))) -> 0.04026845638 | S22: =IF(OFFSET('DATA CLA 3P'!$O$5,'Select an authority'!$A$1,0)="","N/A",IF(OFFSET('DATA CLA 3P'!$O$5,'Select an authority'!$A$1,0)=0,"0",OFFSET('DATA CLA 3P'!$O$5,'Select an authority'!$A$1,0))) -> 150 | T22: =IF(OFFSET('DATA CLA 3P'!$P$5,'Select an authority'!$A$1,0)="","N/A",IF(OFFSET('DATA CLA 3P'!$P$5,'Select an authority'!$A$1,0)=0,"0",OFFSET('DATA CLA 3P'!$P$5,'Select an authority'!$A$1,0))) -> 9 | U22: =IF(OFFSET('DATA CLA 3P'!$Q5,'Select an authority'!$A$1,0)="","N/A",IF(OFFSET('DATA CLA 3P'!$Q5,'Select an authority'!$A$1,0)=0,"0",OFFSET('DATA CLA 3P'!$Q5,'Select an authority'!$A$1,0))) -> 0.06
A24: Comparator Authorities:
B25: =OFFSET('REF EA Name'!$B$2, B3,0) -> South Ayrshire | D25: =IF(OFFSET('DATA CLA 3P'!$C$5,$B3,0)="","N/A",IF($B3=33,"",IF(OFFSET('DATA CLA 3P'!$C$5,$B3,0)=0,"0",OFFSET('DATA CLA 3P'!$C$5,$B3,0)))) -> 384 | E25: =IF(OFFSET('DATA CLA 3P'!$D$5,$B3,0)="","N/A",IF($B3=33,"",IF(OFFSET('DATA CLA 3P'!$D$5,$B3,0)=0,"0",OFFSET('DATA CLA 3P'!$D$5,$B3,0)))) -> 8 | F25: =IF(OFFSET('DATA CLA 3P'!$E$5,$B3,0)="","N/A",IF($B3=33,"",IF(OFFSET('DATA CLA 3P'!$E$5,$B3,0)=0,"0",OFFSET('DATA CLA 3P'!$E$5,$B3,0)))) -> 0.02083333333 | I25: =IF(OFFSET('DATA CLA 3P'!$G$5,$B3,0)="","N/A",IF($B3=33,"",IF(OFFSET('DATA CLA 3P'!$G$5,$B3,0)=0,"0",OFFSET('DATA CLA 3P'!$G$5,$B3,0)))) -> 370 | J25: =IF(OFFSET('DATA CLA 3P'!$H$5,$B3,0)="","N/A",IF($B3=33,"",IF(OFFSET('DATA CLA 3P'!$H$5,$B3,0)=0,"0",OFFSET('DATA CLA 3P'!$H$5,$B3,0)))) -> 23 | K25: =IF(OFFSET('DATA CLA 3P'!$I$5,$B3,0)="","N/A",IF($B3=33,"",IF(OFFSET('DATA CLA 3P'!$I$5,$B3,0)=0,"0",OFFSET('DATA CLA 3P'!$I$5,$B3,0)))) -> 0.06216216216 | N25: =IF(OFFSET('DATA CLA 3P'!$K$5,$B3,0)="","N/A",IF($B3=33,"",IF(OFFSET('DATA CLA 3P'!$K$5,$B3,0)=0,"0",OFFSET('DATA CLA 3P'!$K$5,$B3,0)))) -> 355 | O25: =IF(OFFSET('DATA CLA 3P'!$L$5,$B3,0)="","N/A",IF($B3=33,"",IF(OFFSET('DATA CLA 3P'!$L$5,$B3,0)=0,"0",OFFSET('DATA CLA 3P'!$L$5,$B3,0)))) -> 24 | P25: =IF(OFFSET('DATA CLA 3P'!$M$5,$B3,0)="","N/A",IF($B3=33,"",IF(OFFSET('DATA CLA 3P'!$M$5,$B3,0)=0,"0",OFFSET('DATA CLA 3P'!$M$5,$B3,0)))) -> 0.0676056338 | S25: =IF(OFFSET('DATA CLA 3P'!$O$5,$B3,0)="","N/A",IF($B3=33,"",IF(OFFSET('DATA CLA 3P'!$O$5,$B3,0)=0,"0",OFFSET('DATA CLA 3P'!$O$5,$B3,0)))) -> 345 | T25: =IF(OFFSET('DATA CLA 3P'!$P$5,$B3,0)="","N/A",IF($B3=33,"",IF(OFFSET('DATA CLA 3P'!$P$5,$B3,0)=0,"0",OFFSET('DATA CLA 3P'!$P$5,$B3,0)))) -> 16 | U25: =IF(OFFSET('DATA CLA 3P'!$Q$5,$B3,0)="","N/A",IF($B3=33,"",IF(OFFSET('DATA CLA 3P'!$Q$5,$B3,0)=0,"0",OFFSET('DATA CLA 3P'!$Q$5,$B3,0)))) -> 0.04637681159
B26: =OFFSET('REF EA Name'!$B$2,B4,0) -> Dumfries and Galloway | D26: =IF(OFFSET('DATA CLA 3P'!$C$5,$B4,0)="","N/A",IF($B4=33,"",IF(OFFSET('DATA CLA 3P'!$C$5,$B4,0)=0,"0",OFFSET('DATA CLA 3P'!$C$5,$B4,0)))) -> 393 | E26: =IF(OFFSET('DATA CLA 3P'!$D$5,$B4,0)="","N/A",IF($B4=33,"",IF(OFFSET('DATA CLA 3P'!$D$5,$B4,0)=0,"0",OFFSET('DATA CLA 3P'!$D$5,$B4,0)))) -> 35 | F26: =IF(OFFSET('DATA CLA 3P'!$E$5,$B4,0)="","N/A",IF($B4=33,"",IF(OFFSET('DATA CLA 3P'!$E$5,$B4,0)=0,"0",OFFSET('DATA CLA 3P'!$E$5,$B4,0)))) -> 0.08905852417 | I26: =IF(OFFSET('DATA CLA 3P'!$G$5,$B4,0)="","N/A",IF($B4=33,"",IF(OFFSET('DATA CLA 3P'!$G$5,$B4,0)=0,"0",OFFSET('DATA CLA 3P'!$G$5,$B4,0)))) -> 382 | J26: =IF(OFFSET('DATA CLA 3P'!$H$5,$B4,0)="","N/A",IF($B4=33,"",IF(OFFSET('DATA CLA 3P'!$H$5,$B4,0)=0,"0",OFFSET('DATA CLA 3P'!$H$5,$B4,0)))) -> 26 | K26: =IF(OFFSET('DATA CLA 3P'!$I$5,$B4,0)="","N/A",IF($B4=33,"",IF(OFFSET('DATA CLA 3P'!$I$5,$B4,0)=0,"0",OFFSET('DATA CLA 3P'!$I$5,$B4,0)))) -> 0.06806282723 | N26: =IF(OFFSET('DATA CLA 3P'!$K$5,$B4,0)="","N/A",IF($B4=33,"",IF(OFFSET('DATA CLA 3P'!$K$5,$B4,0)=0,"0",OFFSET('DATA CLA 3P'!$K$5,$B4,0)))) -> 439 | O26: =IF(OFFSET('DATA CLA 3P'!$L$5,$B4,0)="","N/A",IF($B4=33,"",IF(OFFSET('DATA CLA 3P'!$L$5,$B4,0)=0,"0",OFFSET('DATA CLA 3P'!$L$5,$B4,0)))) -> 27 | P26: =IF(OFFSET('DATA CLA 3P'!$M$5,$B4,0)="","N/A",IF($B4=33,"",IF(OFFSET('DATA CLA 3P'!$M$5,$B4,0)=0,"0",OFFSET('DATA CLA 3P'!$M$5,$B4,0)))) -> 0.06150341686 | S26: =IF(OFFSET('DATA CLA 3P'!$O$5,$B4,0)="","N/A",IF($B4=33,"",IF(OFFSET('DATA CLA 3P'!$O$5,$B4,0)=0,"0",OFFSET('DATA CLA 3P'!$O$5,$B4,0)))) -> 395 | T26: =IF(OFFSET('DATA CLA 3P'!$P$5,$B4,0)="","N/A",IF($B4=33,"",IF(OFFSET('DATA CLA 3P'!$P$5,$B4,0)=0,"0",OFFSET('DATA CLA 3P'!$P$5,$B4,0)))) -> 19 | U26: =IF(OFFSET('DATA CLA 3P'!$Q$5,$B4,0)="","N/A",IF($B4=33,"",IF(OFFSET('DATA CLA 3P'!$Q$5,$B4,0)=0,"0",OFFSET('DATA CLA 3P'!$Q$5,$B4,0)))) -> 0.04810126582
B27: =OFFSET('REF EA Name'!$B$2,B5,0) -> Scottish Borders | D27: =IF(OFFSET('DATA CLA 3P'!$C$5,$B5,0)="","N/A",IF($B5=33,"",IF(OFFSET('DATA CLA 3P'!$C$5,$B5,0)=0,"0",OFFSET('DATA CLA 3P'!$C$5,$B5,0)))) -> 218 | E27: =IF(OFFSET('DATA CLA 3P'!$D$5,$B5,0)="","N/A",IF($B5=33,"",IF(OFFSET('DATA CLA 3P'!$D$5,$B5,0)=0,"0",OFFSET('DATA CLA 3P'!$D$5,$B5,0)))) -> * | F27: =IF(OFFSET('DATA CLA 3P'!$E$5,$B5,0)="","N/A",IF($B5=33,"",IF(OFFSET('DATA CLA 3P'!$E$5,$B5,0)=0,"0",OFFSET('DATA CLA 3P'!$E$5,$B5,0)))) -> * | I27: =IF(OFFSET('DATA CLA 3P'!$G$5,$B5,0)="","N/A",IF($B5=33,"",IF(OFFSET('DATA CLA 3P'!$G$5,$B5,0)=0,"0",OFFSET('DATA CLA 3P'!$G$5,$B5,0)))) -> 228 | J27: =IF(OFFSET('DATA CLA 3P'!$H$5,$B5,0)="","N/A",IF($B5=33,"",IF(OFFSET('DATA CLA 3P'!$H$5,$B5,0)=0,"0",OFFSET('DATA CLA 3P'!$H$5,$B5,0)))) -> * | K27: =IF(OFFSET('DATA CLA 3P'!$I$5,$B5,0)="","N/A",IF($B5=33,"",IF(OFFSET('DATA CLA 3P'!$I$5,$B5,0)=0,"0",OFFSET('DATA CLA 3P'!$I$5,$B5,0)))) -> * | N27: =IF(OFFSET('DATA CLA 3P'!$K$5,$B5,0)="","N/A",IF($B5=33,"",IF(OFFSET('DATA CLA 3P'!$K$5,$B5,0)=0,"0",OFFSET('DATA CLA 3P'!$K$5,$B5,0)))) -> 205 | O27: =IF(OFFSET('DATA CLA 3P'!$L$5,$B5,0)="","N/A",IF($B5=33,"",IF(OFFSET('DATA CLA 3P'!$L$5,$B5,0)=0,"0",OFFSET('DATA CLA 3P'!$L$5,$B5,0)))) -> * | P27: =IF(OFFSET('DATA CLA 3P'!$M$5,$B5,0)="","N/A",IF($B5=33,"",IF(OFFSET('DATA CLA 3P'!$M$5,$B5,0)=0,"0",OFFSET('DATA CLA 3P'!$M$5,$B5,0)))) -> * | S27: =IF(OFFSET('DATA CLA 3P'!$O$5,$B5,0)="","N/A",IF($B5=33,"",IF(OFFSET('DATA CLA 3P'!$O$5,$B5,0)=0,"0",OFFSET('DATA CLA 3P'!$O$5,$B5,0)))) -> 195 | T27: =IF(OFFSET('DATA CLA 3P'!$P$5,$B5,0)="","N/A",IF($B5=33,"",IF(OFFSET('DATA CLA 3P'!$P$5,$B5,0)=0,"0",OFFSET('DATA CLA 3P'!$P$5,$B5,0)))) -> 5 | U27: =IF(OFFSET('DATA CLA 3P'!$Q$5,$B5,0)="","N/A",IF($B5=33,"",IF(OFFSET('DATA CLA 3P'!$Q$5,$B5,0)=0,"0",OFFSET('DATA CLA 3P'!$Q$5,$B5,0)))) -> 0.02564102564
B28: =OFFSET('REF EA Name'!$B$2,B6,0) -> Highland | D28: =IF(OFFSET('DATA CLA 3P'!$C$5,$B6,0)="","N/A",IF($B6=33,"",IF(OFFSET('DATA CLA 3P'!$C$5,$B6,0)=0,"0",OFFSET('DATA CLA 3P'!$C$5,$B6,0)))) -> 440 | E28: =IF(OFFSET('DATA CLA 3P'!$D$5,$B6,0)="","N/A",IF($B6=33,"",IF(OFFSET('DATA CLA 3P'!$D$5,$B6,0)=0,"0",OFFSET('DATA CLA 3P'!$D$5,$B6,0)))) -> 66 | F28: =IF(OFFSET('DATA CLA 3P'!$E$5,$B6,0)="","N/A",IF($B6=33,"",IF(OFFSET('DATA CLA 3P'!$E$5,$B6,0)=0,"0",OFFSET('DATA CLA 3P'!$E$5,$B6,0)))) -> 0.15 | I28: =IF(OFFSET('DATA CLA 3P'!$G$5,$B6,0)="","N/A",IF($B6=33,"",IF(OFFSET('DATA CLA 3P'!$G$5,$B6,0)=0,"0",OFFSET('DATA CLA 3P'!$G$5,$B6,0)))) -> 487 | J28: =IF(OFFSET('DATA CLA 3P'!$H$5,$B6,0)="","N/A",IF($B6=33,"",IF(OFFSET('DATA CLA 3P'!$H$5,$B6,0)=0,"0",OFFSET('DATA CLA 3P'!$H$5,$B6,0)))) -> 67 | K28: =IF(OFFSET('DATA CLA 3P'!$I$5,$B6,0)="","N/A",IF($B6=33,"",IF(OFFSET('DATA CLA 3P'!$I$5,$B6,0)=0,"0",OFFSET('DATA CLA 3P'!$I$5,$B6,0)))) -> 0.1375770021 | N28: =IF(OFFSET('DATA CLA 3P'!$K$5,$B6,0)="","N/A",IF($B6=33,"",IF(OFFSET('DATA CLA 3P'!$K$5,$B6,0)=0,"0",OFFSET('DATA CLA 3P'!$K$5,$B6,0)))) -> 521 | O28: =IF(OFFSET('DATA CLA 3P'!$L$5,$B6,0)="","N/A",IF($B6=33,"",IF(OFFSET('DATA CLA 3P'!$L$5,$B6,0)=0,"0",OFFSET('DATA CLA 3P'!$L$5,$B6,0)))) -> 49 | P28: =IF(OFFSET('DATA CLA 3P'!$M$5,$B6,0)="","N/A",IF($B6=33,"",IF(OFFSET('DATA CLA 3P'!$M$5,$B6,0)=0,"0",OFFSET('DATA CLA 3P'!$M$5,$B6,0)))) -> 0.09404990403 | S28: =IF(OFFSET('DATA CLA 3P'!$O$5,$B6,0)="","N/A",IF($B6=33,"",IF(OFFSET('DATA CLA 3P'!$O$5,$B6,0)=0,"0",OFFSET('DATA CLA 3P'!$O$5,$B6,0)))) -> 483 | T28: =IF(OFFSET('DATA CLA 3P'!$P$5,$B6,0)="","N/A",IF($B6=33,"",IF(OFFSET('DATA CLA 3P'!$P$5,$B6,0)=0,"0",OFFSET('DATA CLA 3P'!$P$5,$B6,0)))) -> 46 | U28: =IF(OFFSET('DATA CLA 3P'!$Q$5,$B6,0)="","N/A",IF($B6=33,"",IF(OFFSET('DATA CLA 3P'!$Q$5,$B6,0)=0,"0",OFFSET('DATA CLA 3P'!$Q$5,$B6,0)))) -> 0.09523809524
B29: =OFFSET('REF EA Name'!$B$2,B7,0) -> Angus | D29: =IF(OFFSET('DATA CLA 3P'!$C$5,$B7,0)="","N/A",IF($B7=33,"",IF(OFFSET('DATA CLA 3P'!$C$5,$B7,0)=0,"0",OFFSET('DATA CLA 3P'!$C$5,$B7,0)))) -> 238 | E29: =IF(OFFSET('DATA CLA 3P'!$D$5,$B7,0)="","N/A",IF($B7=33,"",IF(OFFSET('DATA CLA 3P'!$D$5,$B7,0)=0,"0",OFFSET('DATA CLA 3P'!$D$5,$B7,0)))) -> 24 | F29: =IF(OFFSET('DATA CLA 3P'!$E$5,$B7,0)="","N/A",IF($B7=33,"",IF(OFFSET('DATA CLA 3P'!$E$5,$B7,0)=0,"0",OFFSET('DATA CLA 3P'!$E$5,$B7,0)))) -> 0.1008403361 | I29: =IF(OFFSET('DATA CLA 3P'!$G$5,$B7,0)="","N/A",IF($B7=33,"",IF(OFFSET('DATA CLA 3P'!$G$5,$B7,0)=0,"0",OFFSET('DATA CLA 3P'!$G$5,$B7,0)))) -> 255 | J29: =IF(OFFSET('DATA CLA 3P'!$H$5,$B7,0)="","N/A",IF($B7=33,"",IF(OFFSET('DATA CLA 3P'!$H$5,$B7,0)=0,"0",OFFSET('DATA CLA 3P'!$H$5,$B7,0)))) -> 19 | K29: =IF(OFFSET('DATA CLA 3P'!$I$5,$B7,0)="","N/A",IF($B7=33,"",IF(OFFSET('DATA CLA 3P'!$I$5,$B7,0)=0,"0",OFFSET('DATA CLA 3P'!$I$5,$B7,0)))) -> 0.07450980392 | N29: =IF(OFFSET('DATA CLA 3P'!$K$5,$B7,0)="","N/A",IF($B7=33,"",IF(OFFSET('DATA CLA 3P'!$K$5,$B7,0)=0,"0",OFFSET('DATA CLA 3P'!$K$5,$B7,0)))) -> 251 | O29: =IF(OFFSET('DATA CLA 3P'!$L$5,$B7,0)="","N/A",IF($B7=33,"",IF(OFFSET('DATA CLA 3P'!$L$5,$B7,0)=0,"0",OFFSET('DATA CLA 3P'!$L$5,$B7,0)))) -> 31 | P29: =IF(OFFSET('DATA CLA 3P'!$M$5,$B7,0)="","N/A",IF($B7=33,"",IF(OFFSET('DATA CLA 3P'!$M$5,$B7,0)=0,"0",OFFSET('DATA CLA 3P'!$M$5,$B7,0)))) -> 0.1235059761 | S29: =IF(OFFSET('DATA CLA 3P'!$O$5,$B7,0)="","N/A",IF($B7=33,"",IF(OFFSET('DATA CLA 3P'!$O$5,$B7,0)=0,"0",OFFSET('DATA CLA 3P'!$O$5,$B7,0)))) -> 244 | T29: =IF(OFFSET('DATA CLA 3P'!$P$5,$B7,0)="","N/A",IF($B7=33,"",IF(OFFSET('DATA CLA 3P'!$P$5,$B7,0)=0,"0",OFFSET('DATA CLA 3P'!$P$5,$B7,0)))) -> 18 | U29: =IF(OFFSET('DATA CLA 3P'!$Q$5,$B7,0)="","N/A",IF($B7=33,"",IF(OFFSET('DATA CLA 3P'!$Q$5,$B7,0)=0,"0",OFFSET('DATA CLA 3P'!$Q$5,$B7,0)))) -> 0.0737704918
B31: Comparator authorities | D31: =SUM(D25:D29) -> 1673 | E31: =SUM(E25:E29) -> 133 | F31: =IF(E31=0,0,E31/(SUMIF(E25,">0",$D25)+SUMIF(E26,">0",$D26)+SUMIF(E27,">0",$D27)+SUMIF(E28,">0",$D28)+SUMIF(E29,">0",$D29))) -> 0.09140893471 | I31: =SUM(I25:I29) -> 1722 | J31: =SUM(J25:J29) -> 135 | K31: =IF(J31=0,0,J31/(SUMIF(J25,">0",$I25)+SUMIF(J26,">0",$I26)+SUMIF(J27,">0",$I27)+SUMIF(J28,">0",$I28)+SUMIF(J29,">0",$I29))) -> 0.09036144578 | N31: =SUM(N25:N29) -> 1771 | O31: =SUM(O25:O29) -> 131 | P31: =IF(O31=0,0,O31/(SUMIF(O25,">0",$N25)+SUMIF(O26,">0",$N26)+SUMIF(O27,">0",$N27)+SUMIF(O28,">0",$N28)+SUMIF(O29,">0",$N29))) -> 0.08365261814 | S31: =SUM(S25:S29) -> 1662 | T31: =SUM(T25:T29) -> 104 | U31: =IF(T31=0,0,T31/(SUMIF(T25,">0",$S25)+SUMIF(T26,">0",$S26)+SUMIF(T27,">0",$S27)+SUMIF(T28,">0",$S28)+SUMIF(T29,">0",$S29))) -> 0.06257521059
B33: Scotland | D33: ='DATA CLA 3P'!C$38 -> 15317 | E33: ='DATA CLA 3P'!D$38 -> 833 | F33: ='DATA CLA 3P'!E$38 -> 0.05438401776 | I33: ='DATA CLA 3P'!G$38 -> 14897 | J33: ='DATA CLA 3P'!H$38 -> 815 | K33: ='DATA CLA 3P'!I$38 -> 0.05470900181 | N33: ='DATA CLA 3P'!K$38 -> 14554 | O33: ='DATA CLA 3P'!L$38 -> 718 | P33: ='DATA CLA 3P'!M$38 -> 0.04933351656 | S33: ='DATA CLA 3P'!$O$38 -> 14262 | T33: ='DATA CLA 3P'!$P$38 -> 742 | U33: ='DATA CLA 3P'!$Q$38 -> 0.05202636376
A35: Notes
A36: =IF('DATA CLA 3P'!A41="","",'DATA CLA 3P'!A41) -> The figures refer to the number of placements a child has between the 1st August and 31st July of each year. | O36: =K22-F22 -> 0.03705521472 | P36: =IF(O36<0,"a decrease of ",IF(O36>=0,"an increase of ")) -> an increase of
A37: =IF('DATA CLA 3P'!A43="","",'DATA CLA 3P'!A43) -> Source: Scottish Government CLAS Returns | F37: =F22-F31 -> -0.04846414943 | G37: =IF(F37<-0.05,"less than",IF(F37>0.05,"greater than","similar to")) -> similar to | K37: =K22-K31 -> -0.01036144578 | L37: =IF(K37<-0.05,"less than",IF(K37>0.05,"greater than","similar to")) -> similar to | O37: =K31-F31 -> -0.001047488925 | P37: =IF(O37<0,"a decrease of ",IF(O37>=0,"an increase of ")) -> a decrease of | S37: =U22-U31 -> -0.00257521059 | T37: =IF(S37<-0.05,"less than",IF(S37>0.05,"greater than","similar to")) -> similar to
F38: =F22-F33 -> -0.01143923248 | G38: =IF(F38<-0.05,"less than",IF(F38>0.05,"greater than","similar to")) -> similar to | K38: =K22-K33 -> 0.02529099819 | L38: =IF(K38<-0.05,"less than",IF(K38>0.05,"greater than","similar to")) -> similar to | S38: =U22-U33 -> 0.007973636236 | T38: =IF(S38<-0.05,"less than",IF(S38>0.05,"greater than","similar to")) -> similar to
K39: =P22-P31 -> -0.04338416176 | L39: =IF(K39<-0.05,"less than",IF(K39>0.05,"greater than","similar to")) -> similar to | O39: =K33-F33 -> 0.0003249840544 | P39: =IF(O39<0,"a decrease of ",IF(O39>=0,"an increase of ")) -> an increase of
K40: =P22-P33 -> -0.009065060183 | L40: =IF(K40<-0.05,"less than",IF(K40>0.05,"greater than","similar to")) -> similar to | S40: =U22-P22 -> 0.01973154362 | T40: =IF(S40<0,"a decrease of ",IF(S40>=0,"an increase of ")) -> an increase of
O41: =P22-K22 -> -0.03973154362 | P41: =IF(O41<0,"a decrease of ",IF(O41>=0,"an increase of ")) -> a decrease of | S41: =U31-P31 -> -0.02107740755 | T41: =IF(S41<0,"a decrease of ",IF(S41>=0,"an increase of ")) -> a decrease of
O42: =P31-K31 -> -0.006708827648 | P42: =IF(O42<0,"a decrease of ",IF(O42>=0,"an increase of ")) -> a decrease of | S42: =U33-P33 -> 0.002692847205 | T42: =IF(S42<0,"a decrease of ",IF(S42>=0,"an increase of ")) -> an increase of
O43: =P33-K33 -> -0.005375485253 | P43: =IF(O43<0,"a decrease of ",IF(O43>=0,"an increase of ")) -> a decrease of

Sheet DATA CLA
A1: Children Looked After: Number Looked After at 31 July 2013 to 2019
A3: Total number of children looked after at 31 July 2013-2019 | J3: Population Aged 0-17 | R3: Total number of children looked after at 31 July 2013-2019 - rate per 1000, 0-17 population
A5: Council | B5: 2013 | C5: 2014 | D5: 2015 | E5: 2016 | F5: 2017 | G5: 2018 | H5: 2019 | J5: 2013 | K5: 2014 | L5: 2015 | M5: 2016 | N5: 2017 | O5: 2018 | P5: 2019 | R5: Council | S5: 2013 | T5: 2014 | U5: 2015 | V5: 2016 | W5: 2017 | X5: 2018 | Y5: 2019
A6: Aberdeen City | B6: 606 | C6: 577 | D6: 549 | E6: 553 | F6: 590 | G6: 549 | H6: 542 | J6: 37060 | K6: 37182 | L6: 37519 | M6: 37775 | N6: 38001 | O6: 38418 | P6: 38966 | R6: Aberdeen City | S6: =IFERROR(B6*1000/J6,"*") -> 16.35186185 | T6: =IFERROR(C6*1000/K6,"*") -> 15.51826152 | U6: =IFERROR(D6*1000/L6,"*") -> 14.63258616 | V6: =IFERROR(E6*1000/M6,"*") -> 14.63931171 | W6: =IFERROR(F6*1000/N6,"*") -> 15.52590721 | X6: =IFERROR(G6*1000/O6,"*") -> 14.29017648 | Y6: =IFERROR(H6*1000/P6,"*") -> 13.90956218
A7: Aberdeenshire | B7: 425 | C7: 403 | D7: 411 | E7: 411 | F7: 395 | G7: 409 | H7: 403 | J7: 54048 | K7: 54291 | L7: 54806 | M7: 54944 | N7: 54908 | O7: 54594 | P7: 54634 | R7: Aberdeenshire | S7: =IFERROR(B7*1000/J7,"*") -> 7.863380699 | T7: 7.422961448 | U7: 7.499178922 | V7: 7.480343623 | W7: 7.193851533 | X7: 7.491665751 | Y7: 7.376359044
A8: Angus | B8: 253 | C8: 272 | D8: 261 | E8: 238 | F8: 255 | G8: 251 | H8: 244 | J8: 22800 | K8: 22608 | L8: 22523 | M8: 22339 | N8: 22034 | O8: 21759 | P8: 21588 | R8: Angus | S8: 11.09649123 | T8: 12.03113942 | U8: 11.58815433 | V8: 10.65401316 | W8: 11.57302351 | X8: 11.53545659 | Y8: 11.3025755
A9: Argyll & Bute | B9: 200 | C9: 175 | D9: 167 | E9: 163 | F9: 175 | G9: 149 | H9: 150 | J9: 16175 | K9: 15932 | L9: 15639 | M9: 15323 | N9: 15141 | O9: 14742 | P9: 14566 | R9: Argyll & Bute | S9: 12.36476043 | T9: 10.98418278 | U9: 10.67843212 | V9: 10.6376036 | W9: 11.55802127 | X9: 10.10717677 | Y9: 10.29795414
A10: City of Edinburgh | B10: 1402 | C10: 1415 | D10: 1419 | E10: 1368 | F10: 1349 | G10: 1309 | H10: 1234 | J10: 82479 | K10: 83504 | L10: 84213 | M10: 85026 | N10: 86107 | O10: 86866 | P10: 87481 | R10: City of Edinburgh | S10: 16.99826623 | T10: 16.94529603 | U10: 16.85013003 | V10: 16.08919625 | W10: 15.6665544 | X10: 15.06918702 | Y10: 14.10592014
A11: Clackmannanshire | B11: 183 | C11: 184 | D11: 198 | E11: 233 | F11: 213 | G11: 211 | H11: 185 | J11: 10480 | K11: 10443 | L11: 10307 | M11: 10246 | N11: 10258 | O11: 10126 | P11: 10027 | R11: Clackmannanshire | S11: 17.46183206 | T11: 17.61945801 | U11: 19.21024546 | V11: 22.74058169 | W11: 20.76428154 | X11: 20.83744815 | Y11: 18.4501845
A12: Dumfries and Galloway | B12: 375 | C12: 387 | D12: 409 | E12: 393 | F12: 382 | G12: 439 | H12: 395 | J12: 28333 | K12: 27802 | L12: 27399 | M12: 27034 | N12: 26707 | O12: 26328 | P12: 26168 | R12: Dumfries and Galloway | S12: 13.23544983 | T12: 13.91986188 | U12: 14.9275521 | V12: 14.53724939 | W12: 14.30336616 | X12: 16.67426314 | Y12: 15.09477224
A13: Dundee City | B13: 696 | C13: 617 | D13: 585 | E13: 592 | F13: 555 | G13: 519 | H13: 463 | J13: 26918 | K13: 27074 | L13: 26992 | M13: 26872 | N13: 26729 | O13: 26743 | P13: 26763 | R13: Dundee City | S13: 25.85630433 | T13: 22.78939204 | U13: 21.67308832 | V13: 22.03036618 | W13: 20.76396423 | X13: 19.40694761 | Y13: 17.30000374
A14: East Ayrshire | B14: 521 | C14: 500 | D14: 461 | E14: 463 | F14: 386 | G14: 401 | H14: 375 | J14: 24541 | K14: 24307 | L14: 24109 | M14: 24014 | N14: 23930 | O14: 23671 | P14: 23559 | R14: East Ayrshire | S14: 21.22977874 | T14: 20.57020611 | U14: 19.1214899 | V14: 19.28041976 | W14: 16.13038028 | X14: 16.94056018 | Y14: 15.91748376
A15: East Dunbartonshire | B15: 148 | C15: 154 | D15: 173 | E15: 164 | F15: 162 | G15: 140 | H15: 149 | J15: 21280 | K15: 21025 | L15: 21066 | M15: 21220 | N15: 21353 | O15: 21627 | P15: 21718 | R15: East Dunbartonshire | S15: 6.954887218 | T15: 7.324613555 | U15: 8.212285199 | V15: 7.728557964 | W15: 7.586755959 | X15: 6.473389744 | Y15: 6.86066857
A16: East Lothian | B16: 199 | C16: 209 | D16: 210 | E16: 229 | F16: 242 | G16: 245 | H16: 246 | J16: 21281 | K16: 21225 | L16: 21271 | M16: 21263 | N16: 21329 | O16: 21590 | P16: 21828 | R16: East Lothian | S16: 9.35106433 | T16: 9.846878681 | U16: 9.872596493 | V16: 10.76988195 | W16: 11.34605467 | X16: 11.34784623 | Y16: 11.26992853
A17: East Renfrewshire | B17: 187 | C17: 175 | D17: 146 | E17: 130 | F17: 117 | G17: 110 | H17: 102 | J17: 20355 | K17: 20512 | L17: 20761 | M17: 20878 | N17: 21099 | O17: 21655 | P17: 21828 | R17: East Renfrewshire | S17: 9.186931958 | T17: 8.531591264 | U17: 7.03241655 | V17: 6.226650062 | W17: 5.545286506 | X17: 5.079658278 | Y17: 4.672897196
A18: Falkirk | B18: 375 | C18: 370 | D18: 364 | E18: 373 | F18: 381 | G18: 368 | H18: 344 | J18: 32153 | K18: 31977 | L18: 31916 | M18: 31860 | N18: 31846 | O18: 31519 | P18: 31432 | R18: Falkirk | S18: 11.66298635 | T18: 11.57081652 | U18: 11.40493796 | V18: 11.70747018 | W18: 11.96382591 | X18: 11.67549732 | Y18: 10.94426063
A19: Fife | B19: 872 | C19: 933 | D19: 1023 | E19: 981 | F19: 942 | G19: 941 | H19: 935 | J19: 73047 | K19: 72720 | L19: 72392 | M19: 72332 | N19: 72326 | O19: 72088 | P19: 72048 | R19: Fife | S19: 11.93751968 | T19: 12.830033 | U19: 14.13139573 | V19: 13.56246198 | W19: 13.02436192 | X19: 13.05349018 | Y19: 12.97745947
A20: Glasgow City | B20: 3674 | C20: 3504 | D20: 3410 | E20: 3294 | F20: 2827 | G20: 2645 | H20: 2523 | J20: 108599 | K20: 108959 | L20: 109067 | M20: 109457 | N20: 110239 | O20: 111161 | P20: 111598 | R20: Glasgow City | S20: 33.83088242 | T20: 32.15888545 | U20: 31.26518562 | V20: 30.09400952 | W20: 25.64428197 | X20: 23.79431635 | Y20: 22.60793204
A21: Highland | B21: 462 | C21: 447 | D21: 437 | E21: 440 | F21: 487 | G21: 521 | H21: 483 | J21: 46544 | K21: 46070 | L21: 45603 | M21: 45470 | N21: 45284 | O21: 44427 | P21: 44039 | R21: Highland | S21: 9.92609144 | T21: 9.702626438 | U21: 9.582702892 | V21: 9.676709919 | W21: 10.75435032 | X21: 11.72710289 | Y21: 10.96755149
A22: Inverclyde | B22: 276 | C22: 237 | D22: 209 | E22: 207 | F22: 218 | G22: 199 | H22: 205 | J22: 15394 | K22: 15233 | L22: 14993 | M22: 14759 | N22: 14638 | O22: 14192 | P22: 14126 | R22: Inverclyde | S22: 17.92906327 | T22: 15.55832732 | U22: 13.93983859 | V22: 14.02534047 | W22: 14.89274491 | X22: 14.02198422 | Y22: 14.51224692
A23: Midlothian | B23: 297 | C23: 309 | D23: 255 | E23: 250 | F23: 259 | G23: 233 | H23: 218 | J23: 17933 | K23: 18053 | L23: 18400 | M23: 18677 | N23: 18958 | O23: 19500 | P23: 19834 | R23: Midlothian | S23: 16.56164613 | T23: 17.11626876 | U23: 13.85869565 | V23: 13.38544734 | W23: 13.66177867 | X23: 11.94871795 | Y23: 10.99122719
A24: Moray | B24: 221 | C24: 213 | D24: 209 | E24: 213 | F24: 215 | G24: 222 | H24: 210 | J24: 19178 | K24: 19133 | L24: 19080 | M24: 18885 | N24: 18840 | O24: 18312 | P24: 18293 | R24: Moray | S24: 11.52362082 | T24: 11.13259813 | U24: 10.95387841 | V24: 11.27879269 | W24: 11.4118896 | X24: 12.1231979 | Y24: 11.47980102
A25: Na h-Eileanan Siar | B25: 61 | C25: 49 | D25: 47 | E25: 37 | F25: 47 | G25: 41 | H25: 39 | J25: 5228 | K25: 5138 | L25: 5035 | M25: 4932 | N25: 4878 | O25: 4842 | P25: 4792 | R25: Na h-Eileanan Siar | S25: 11.66794185 | T25: 9.536784741 | U25: 9.334657398 | V25: 7.502027575 | W25: 9.635096351 | X25: 8.467575382 | Y25: 8.138564274
A26: North Ayrshire | B26: 587 | C26: 601 | D26: 639 | E26: 603 | F26: 585 | G26: 563 | H26: 550 | J26: 27736 | K26: 27152 | L26: 26775 | M26: 26383 | N26: 26157 | O26: 25682 | P26: 25314 | R26: North Ayrshire | S26: 21.1638304 | T26: 22.13464938 | U26: 23.86554622 | V26: 22.85562673 | W26: 22.36495011 | X26: 21.92196869 | Y26: 21.72710753
A27: North Lanarkshire | B27: 747 | C27: 706 | D27: 697 | E27: 765 | F27: 773 | G27: 754 | H27: 850 | J27: 72827 | K27: 72531 | L27: 72072 | M27: 71474 | N27: 71393 | O27: 70636 | P27: 70519 | R27: North Lanarkshire | S27: 10.25718484 | T27: 9.733769009 | U27: 9.670884671 | V27: 10.70319277 | W27: 10.82739204 | X27: 10.67444363 | Y27: 12.05348913
A28: Orkney Islands | B28: 27 | C28: 39 | D28: 34 | E28: 28 | F28: 38 | G28: 31 | H28: 37 | J28: 4129 | K28: 4073 | L28: 4018 | M28: 3967 | N28: 3984 | O28: 3988 | P28: 4024 | R28: Orkney Islands | S28: 6.539113587 | T28: 9.575251657 | U28: 8.461921354 | V28: 7.058230401 | W28: 9.53815261 | X28: 7.77331996 | Y28: 9.194831014
A29: Perth and Kinross | B29: 237 | C29: 246 | D29: 255 | E29: 286 | F29: 281 | G29: 280 | H29: 282 | J29: 28565 | K29: 28314 | L29: 28187 | M29: 28240 | N29: 28082 | O29: 27747 | P29: 27656 | R29: Perth and Kinross | S29: 8.296866795 | T29: 8.688281416 | U29: 9.046723667 | V29: 10.12747875 | W29: 10.0064098 | X29: 10.09118103 | Y29: 10.19670234
A30: Renfrewshire | B30: 779 | C30: 713 | D30: 682 | E30: 681 | F30: 659 | G30: 656 | H30: 629 | J30: 34450 | K30: 34295 | L30: 34135 | M30: 33813 | N30: 33865 | O30: 33904 | P30: 33889 | R30: Renfrewshire | S30: 22.61248186 | T30: 20.79020265 | U30: 19.97949319 | V30: 20.14018277 | W30: 19.45961908 | X30: 19.34874941 | Y30: 18.56059488
A31: Scottish Borders | B31: 184 | C31: 179 | D31: 201 | E31: 218 | F31: 228 | G31: 205 | H31: 195 | J31: 21829 | K31: 21728 | L31: 21671 | M31: 21487 | N31: 21507 | O31: 21434 | P31: 21349 | R31: Scottish Borders | S31: 8.429153878 | T31: 8.238217968 | U31: 9.275068063 | V31: 10.14566947 | W31: 10.60119961 | X31: 9.564243725 | Y31: 9.133917279
A32: Shetland Islands | B32: 31 | C32: 31 | D32: 35 | E32: 29 | F32: 32 | G32: 29 | H32: 34 | J32: 5020 | K32: 4947 | L32: 4884 | M32: 4826 | N32: 4801 | O32: 4689 | P32: 4691 | R32: Shetland Islands | S32: 6.175298805 | T32: 6.266424095 | U32: 7.166257166 | V32: 6.009117281 | W32: 6.665278067 | X32: 6.184687567 | Y32: 7.247921552
A33: South Ayrshire | B33: 365 | C33: 343 | D33: 330 | E33: 384 | F33: 370 | G33: 355 | H33: 345 | J33: 20857 | K33: 20677 | L33: 20480 | M33: 20357 | N33: 20196 | O33: 19881 | P33: 19796 | R33: South Ayrshire | S33: 17.50011986 | T33: 16.58847995 | U33: 16.11328125 | V33: 18.86329027 | W33: 18.3204595 | X33: 17.85624466 | Y33: 17.42776318
A34: South Lanarkshire | B34: 597 | C34: 595 | D34: 548 | E34: 563 | F34: 549 | G34: 655 | H34: 725 | J34: 62812 | K34: 62539 | L34: 62204 | M34: 62212 | N34: 62097 | O34: 61941 | P34: 62118 | R34: South Lanarkshire | S34: 9.50455327 | T34: 9.514063225 | U34: 8.809722847 | V34: 9.049701022 | W34: 8.841006812 | X34: 10.57457903 | Y34: 11.6713352
A35: Stirling | B35: 246 | C35: 233 | D35: 216 | E35: 216 | F35: 245 | G35: 236 | H35: 238 | J35: 18259 | K35: 18036 | L35: 17916 | M35: 17850 | N35: 17784 | O35: 17551 | P35: 17450 | R35: Stirling | S35: 13.47280793 | T35: 12.91860723 | U35: 12.05626256 | V35: 12.10084034 | W35: 13.77642825 | X35: 13.44652726 | Y35: 13.63896848
A36: West Dunbartonshire | B36: 354 | C36: 369 | D36: 386 | E36: 363 | F36: 429 | G36: 445 | H36: 505 | J36: 18109 | K36: 17896 | L36: 17763 | M36: 17712 | N36: 17716 | O36: 17500 | P36: 17457 | R36: West Dunbartonshire | S36: 19.54829091 | T36: 20.61913277 | U36: 21.73056353 | V36: 20.49457995 | W36: 24.21539851 | X36: 25.42857143 | Y36: 28.92822364
A37: West Lothian | B37: 445 | C37: 415 | D37: 434 | E37: 449 | F37: 511 | G37: 443 | H37: 427 | J37: 39773 | K37: 39547 | L37: 39502 | M37: 39469 | N37: 39574 | O37: 39685 | P37: 39611 | R37: West Lothian | S37: 11.18849471 | T37: 10.49384277 | U37: 10.98678548 | V37: 11.37601662 | W37: 12.91251832 | X37: 11.1629079 | Y37: 10.77983388
A38: SCOTLAND | B38: 16032 | C38: 15600 | D38: 15400 | E38: 15317 | F38: 14897 | G38: 14554 | H38: 14262 | J38: 1038192 | K38: 1034923 | L38: 1032698 | M38: 1031096 | N38: 1031761 | O38: =SUM(O6:O37) -> 1028798 | P38: =SUM(P6:P37) -> 1029162 | R38: SCOTLAND | S38: 15.44223034 | T38: 15.07358518 | U38: 14.91239452 | V38: 14.85506684 | W38: 14.4384213 | X38: 14.14660604 | Y38: 13.8578766
A39: Notes:
A40: Population figures source: NRS mid-year population estimates for 2013-2019.
A41: Source: Scottish Government CLAS Returns

Sheet DATA CLA Acc
A1: Children Looked After: Type of Accommodation at 31 July 2016 to 2019
B3: 2016 | K3: 2017 | T3: 2018 | AC3: 2019
B4: In the community | G4: In residential accommodation | K4: In the community | P4: In residential accommodation | T4: In the community | Y4: In residential accommodation | AC4: In the community | AH4: In residential accommodation
B5: At home with parents | C5: With friends / relatives | D5: With foster carers provided by LA | E5: With foster carers purchased by LA | F5: In other community(1) | G5: In local authority home/ Voluntary Home | H5: In other residential care(2) | I5: Total | K5: At home with parents | L5: With friends / relatives | M5: With foster carers provided by LA | N5: With foster carers purchased by LA | O5: In other community(1) | P5: In local authority home/ Voluntary Home | Q5: In other residential care(2) | R5: Total | T5: At home with parents | U5: With friends / relatives | V5: With foster carers provided by LA | W5: With foster carers purchased by LA | X5: In other community(1) | Y5: In local authority home/ Voluntary Home | Z5: In other residential care(2) | AA5: Total | AC5: At home with parents | AD5: With friends / relatives | AE5: With foster carers provided by LA | AF5: With foster carers purchased by LA | AG5: In other community(1) | AH5: In local authority home/ Voluntary Home | AI5: In other residential care(2) | AJ5: Total
A6: Council
A7: Aberdeen City | B7: 115 | C7: 119 | D7: 109 | E7: 138 | F7: 6 | G7: 22 | H7: 44 | I7: 553 | K7: 108 | L7: 112 | M7: 113 | N7: 175 | O7: 14 | P7: 23 | Q7: 45 | R7: 590 | T7: 75 | U7: 115 | V7: 94 | W7: 182 | X7: 21 | Y7: 19 | Z7: 43 | AA7: 549 | AC7: 97 | AD7: 98 | AE7: 81 | AF7: 193 | AG7: 22 | AH7: 16 | AI7: 35 | AJ7: 542
A8: Aberdeenshire | B8: 109 | C8: 63 | D8: 150 | E8: 20 | F8: 10 | G8: 28 | H8: 31 | I8: 411 | K8: 80 | L8: 66 | M8: 160 | N8: 22 | O8: 12 | P8: 23 | Q8: 32 | R8: 395 | T8: 81 | U8: 76 | V8: 142 | W8: 26 | X8: 19 | Y8: 29 | Z8: 36 | AA8: 409 | AC8: 68 | AD8: 75 | AE8: 139 | AF8: 36 | AG8: 14 | AH8: 31 | AI8: 40 | AJ8: 403
A9: Angus | B9: 73 | C9: 36 | D9: 92 | E9: 6 | F9: 10 | G9: 7 | H9: 14 | I9: 238 | K9: 65 | L9: 63 | M9: 95 | N9: 7 | O9: 5 | P9: 6 | Q9: 14 | R9: 255 | T9: 65 | U9: 63 | V9: 82 | W9: 13 | X9: 7 | Y9: 5 | Z9: 16 | AA9: 251 | AC9: 61 | AD9: 65 | AE9: 80 | AF9: 7 | AG9: 6 | AH9: 8 | AI9: 17 | AJ9: 244
A10: Argyll & Bute | B10: 48 | C10: 44 | D10: 46 | E10: * | F10: * | G10: 10 | H10: 10 | I10: 163 | K10: 52 | L10: 58 | M10: 37 | N10: * | O10: * | P10: 13 | Q10: 9 | R10: 175 | T10: 40 | U10: 45 | V10: 34 | W10: * | X10: * | Y10: 18 | Z10: 9 | AA10: 149 | AC10: 46 | AD10: 42 | AE10: 32 | AF10: * | AG10: * | AH10: 15 | AI10: 10 | AJ10: 150
A11: City of Edinburgh | B11: 350 | C11: 330 | D11: 342 | E11: 224 | F11: 32 | G11: 55 | H11: 35 | I11: 1368 | K11: 335 | L11: 301 | M11: 367 | N11: 215 | O11: 22 | P11: 68 | Q11: 41 | R11: 1349 | T11: 353 | U11: 262 | V11: 347 | W11: 216 | X11: 25 | Y11: 63 | Z11: 43 | AA11: 1309 | AC11: 337 | AD11: 225 | AE11: 349 | AF11: 174 | AG11: 43 | AH11: 59 | AI11: 47 | AJ11: 1234
A12: Clackmannanshire | B12: 83 | C12: 37 | D12: 36 | E12: 53 | F12: * | G12: * | H12: 20 | I12: 233 | K12: 62 | L12: 43 | M12: 25 | N12: 55 | O12: * | P12: * | Q12: 19 | R12: 213 | T12: 72 | U12: 56 | V12: 19 | W12: 41 | X12: 10 | Y12: * | Z12: 9 | AA12: 211 | AC12: 43 | AD12: 59 | AE12: 24 | AF12: 41 | AG12: 5 | AH12: * | AI12: 10 | AJ12: 185
A13: Dumfries and Galloway | B13: 124 | C13: 116 | D13: 114 | E13: * | F13: * | G13: 8 | H13: 24 | I13: 393 | K13: 121 | L13: 128 | M13: 107 | N13: * | O13: * | P13: * | Q13: 18 | R13: 382 | T13: 168 | U13: 113 | V13: 124 | W13: * | X13: 5 | Y13: 7 | Z13: 20 | AA13: 439 | AC13: 139 | AD13: 120 | AE13: 105 | AF13: 5 | AG13: * | AH13: * | AI13: 19 | AJ13: 395
A14: Dundee City | B14: 126 | C14: 146 | D14: 159 | E14: 79 | F14: 25 | G14: 33 | H14: 24 | I14: 592 | K14: 109 | L14: 121 | M14: 82 | N14: 162 | O14: 20 | P14: 34 | Q14: 27 | R14: 555 | T14: 105 | U14: 106 | V14: 161 | W14: 79 | X14: 6 | Y14: 38 | Z14: 24 | AA14: 519 | AC14: 87 | AD14: 97 | AE14: 139 | AF14: 73 | AG14: 13 | AH14: 32 | AI14: 22 | AJ14: 463
A15: East Ayrshire | B15: 128 | C15: 133 | D15: 112 | E15: 40 | F15: 12 | G15: 16 | H15: 22 | I15: 463 | K15: 114 | L15: 98 | M15: 92 | N15: 38 | O15: 7 | P15: 15 | Q15: 22 | R15: 386 | T15: 124 | U15: 101 | V15: 96 | W15: 26 | X15: 18 | Y15: 15 | Z15: 21 | AA15: 401 | AC15: 114 | AD15: 90 | AE15: 104 | AF15: 25 | AG15: 10 | AH15: 17 | AI15: 15 | AJ15: 375
A16: East Dunbartonshire | B16: 45 | C16: 55 | D16: 11 | E16: 27 | F16: * | G16: 18 | H16: * | I16: 164 | K16: 33 | L16: 55 | M16: 13 | N16: 36 | O16: 0 | P16: 19 | Q16: 6 | R16: 162 | T16: 28 | U16: 42 | V16: 19 | W16: 28 | X16: * | Y16: 16 | Z16: 6 | AA16: 140 | AC16: 39 | AD16: 44 | AE16: 21 | AF16: 23 | AG16: * | AH16: 17 | AI16: 5 | AJ16: 149
A17: East Lothian | B17: 73 | C17: 44 | D17: 77 | E17: 7 | F17: 10 | G17: 9 | H17: 9 | I17: 229 | K17: 69 | L17: 51 | M17: 79 | N17: 16 | O17: * | P17: * | Q17: 17 | R17: 242 | T17: 77 | U17: 43 | V17: 79 | W17: 12 | X17: * | Y17: 12 | Z17: 20 | AA17: 245 | AC17: 62 | AD17: 50 | AE17: 77 | AF17: 11 | AG17: * | AH17: 12 | AI17: 31 | AJ17: 246
A18: East Renfrewshire | B18: 65 | C18: 33 | D18: 25 | E18: 0 | F18: * | G18: * | H18: 5 | I18: 130 | K18: 44 | L18: 33 | M18: 22 | N18: 5 | O18: * | P18: * | Q18: 9 | R18: 117 | T18: 41 | U18: 31 | V18: 22 | W18: 8 | X18: * | Y18: * | Z18: 7 | AA18: 110 | AC18: 50 | AD18: 24 | AE18: 17 | AF18: 6 | AG18: * | AH18: * | AI18: * | AJ18: 102
A19: Falkirk | B19: 123 | C19: 45 | D19: 107 | E19: 40 | F19: 10 | G19: 9 | H19: 39 | I19: 373 | K19: 120 | L19: 50 | M19: 95 | N19: 42 | O19: 14 | P19: 9 | Q19: 51 | R19: 381 | T19: 124 | U19: 49 | V19: 87 | W19: 38 | X19: 7 | Y19: 10 | Z19: 53 | AA19: 368 | AC19: 113 | AD19: 49 | AE19: 76 | AF19: 38 | AG19: 7 | AH19: 9 | AI19: 52 | AJ19: 344
A20: Fife | B20: 190 | C20: 204 | D20: 260 | E20: 217 | F20: 0 | G20: 66 | H20: 44 | I20: 981 | K20: 175 | L20: 173 | M20: 234 | N20: 233 | O20: * | P20: 71 | Q20: * | R20: 942 | T20: 178 | U20: 167 | V20: 225 | W20: 240 | X20: * | Y20: 65 | Z20: 66 | AA20: 941 | AC20: 165 | AD20: 182 | AE20: 207 | AF20: 247 | AG20: * | AH20: 64 | AI20: 70 | AJ20: 935
A21: Glasgow City | B21: 544 | C21: 1356 | D21: 777 | E21: 323 | F21: 7 | G21: 145 | H21: 142 | I21: 3294 | K21: 491 | L21: 1152 | M21: 665 | N21: 283 | O21: * | P21: 134 | Q21: * | R21: 2827 | T21: 462 | U21: 1122 | V21: 590 | W21: 245 | X21: * | Y21: 149 | Z21: 77 | AA21: 2645 | AC21: 399 | AD21: 1163 | AE21: 550 | AF21: 214 | AG21: * | AH21: 136 | AI21: 59 | AJ21: 2523
A22: Highland | B22: 128 | C22: 76 | D22: 134 | E22: 9 | F22: 20 | G22: 19 | H22: 54 | I22: 440 | K22: 129 | L22: 93 | M22: 119 | N22: 38 | O22: 23 | P22: 23 | Q22: 62 | R22: 487 | T22: 153 | U22: 104 | V22: 123 | W22: 37 | X22: 19 | Y22: 23 | Z22: 62 | AA22: 521 | AC22: 126 | AD22: 96 | AE22: 117 | AF22: 43 | AG22: 20 | AH22: 32 | AI22: 49 | AJ22: 483
A23: Inverclyde | B23: 79 | C23: 53 | D23: 32 | E23: 7 | F23: 5 | G23: 22 | H23: 9 | I23: 207 | K23: 86 | L23: 60 | M23: 36 | N23: * | O23: * | P23: 20 | Q23: 7 | R23: 218 | T23: 86 | U23: 46 | V23: 30 | W23: 5 | X23: 5 | Y23: 17 | Z23: 10 | AA23: 199 | AC23: 98 | AD23: 45 | AE23: 25 | AF23: 5 | AG23: * | AH23: 19 | AI23: 9 | AJ23: 205
A24: Midlothian | B24: 41 | C24: 77 | D24: 66 | E24: 32 | F24: 9 | G24: 9 | H24: 16 | I24: 250 | K24: 73 | L24: 65 | M24: 62 | N24: 23 | O24: 8 | P24: 11 | Q24: 17 | R24: 259 | T24: 87 | U24: 52 | V24: 50 | W24: 18 | X24: 5 | Y24: 8 | Z24: 13 | AA24: 233 | AC24: 62 | AD24: 67 | AE24: 48 | AF24: 15 | AG24: 5 | AH24: 12 | AI24: 9 | AJ24: 218
A25: Moray | B25: 42 | C25: 32 | D25: 70 | E25: 29 | F25: 5 | G25: 19 | H25: 16 | I25: 213 | K25: 38 | L25: 43 | M25: 69 | N25: 21 | O25: 6 | P25: 18 | Q25: 20 | R25: 215 | T25: 47 | U25: 38 | V25: 67 | W25: 15 | X25: 7 | Y25: 18 | Z25: 30 | AA25: 222 | AC25: 44 | AD25: 47 | AE25: 54 | AF25: 13 | AG25: 8 | AH25: 21 | AI25: 23 | AJ25: 210
A26: Na h-Eileanan Siar | B26: 14 | C26: 7 | D26: 10 | E26: 0 | F26: * | G26: * | H26: * | I26: 37 | K26: 24 | L26: 6 | M26: * | N26: 10 | O26: 0 | P26: * | Q26: * | R26: 47 | T26: 22 | U26: 5 | V26: 8 | W26: * | X26: * | Y26: * | Z26: * | AA26: 41 | AC26: 18 | AD26: 5 | AE26: 7 | AF26: * | AG26: * | AH26: * | AI26: * | AJ26: 39
A27: North Ayrshire | B27: 212 | C27: 153 | D27: 148 | E27: 15 | F27: 16 | G27: 34 | H27: 25 | I27: 603 | K27: 185 | L27: 138 | M27: 164 | N27: 14 | O27: 7 | P27: 49 | Q27: 28 | R27: 585 | T27: 183 | U27: 143 | V27: 152 | W27: 11 | X27: 10 | Y27: 32 | Z27: 32 | AA27: 563 | AC27: 178 | AD27: 135 | AE27: 152 | AF27: 12 | AG27: 8 | AH27: 30 | AI27: 35 | AJ27: 550
A28: North Lanarkshire | B28: 292 | C28: 267 | D28: 125 | E28: 32 | F28: 10 | G28: 29 | H28: 10 | I28: 765 | K28: 290 | L28: 306 | M28: 35 | N28: 99 | O28: 5 | P28: 31 | Q28: 7 | R28: 773 | T28: 284 | U28: 320 | V28: 63 | W28: 41 | X28: 5 | Y28: 32 | Z28: 9 | AA28: 754 | AC28: 325 | AD28: 304 | AE28: 128 | AF28: 49 | AG28: 5 | AH28: 30 | AI28: 9 | AJ28: 850
A29: Orkney Islands | B29: * | C29: * | D29: 9 | E29: * | F29: * | G29: * | H29: 5 | I29: 28 | K29: 14 | L29: * | M29: * | N29: * | O29: * | P29: * | Q29: * | R29: 38 | T29: 12 | U29: * | V29: 8 | W29: * | X29: * | Y29: * | Z29: * | AA29: 31 | AC29: 12 | AD29: 7 | AE29: 12 | AF29: * | AG29: * | AH29: * | AI29: * | AJ29: 37
A30: Perth and Kinross | B30: 59 | C30: 78 | D30: 75 | E30: 43 | F30: 13 | G30: 10 | H30: 8 | I30: 286 | K30: 67 | L30: 70 | M30: 71 | N30: 34 | O30: 16 | P30: 13 | Q30: 10 | R30: 281 | T30: 70 | U30: 73 | V30: 82 | W30: 24 | X30: 18 | Y30: * | Z30: 13 | AA30: 280 | AC30: 69 | AD30: 76 | AE30: 79 | AF30: 24 | AG30: 23 | AH30: * | AI30: 7 | AJ30: 282
A31: Renfrewshire | B31: 221 | C31: 183 | D31: 130 | E31: 84 | F31: 21 | G31: 32 | H31: 10 | I31: 681 | K31: 221 | L31: 178 | M31: 132 | N31: 78 | O31: 9 | P31: 32 | Q31: 9 | R31: 659 | T31: 221 | U31: 190 | V31: 119 | W31: 65 | X31: 12 | Y31: 38 | Z31: 11 | AA31: 656 | AC31: 190 | AD31: 190 | AE31: 127 | AF31: 61 | AG31: 13 | AH31: 36 | AI31: 12 | AJ31: 629
A32: Scottish Borders | B32: 27 | C32: 58 | D32: 78 | E32: 19 | F32: 9 | G32: 5 | H32: 22 | I32: 218 | K32: 47 | L32: 57 | M32: 78 | N32: 15 | O32: * | P32: * | Q32: 22 | R32: 228 | T32: 57 | U32: 48 | V32: 63 | W32: 8 | X32: * | Y32: * | Z32: 23 | AA32: 205 | AC32: 55 | AD32: 50 | AE32: 57 | AF32: 7 | AG32: * | AH32: * | AI32: 20 | AJ32: 195
A33: Shetland Islands | B33: * | C33: * | D33: 10 | E33: 0 | F33: * | G33: * | H33: * | I33: 29 | K33: 8 | L33: * | M33: 12 | N33: 0 | O33: * | P33: * | Q33: * | R33: 32 | T33: * | U33: * | V33: 14 | W33: * | X33: * | Y33: 5 | Z33: * | AA33: 29 | AC33: * | AD33: * | AE33: 19 | AF33: * | AG33: * | AH33: * | AI33: * | AJ33: 34
A34: South Ayrshire | B34: 124 | C34: 77 | D34: 97 | E34: 48 | F34: 15 | G34: 7 | H34: 16 | I34: 384 | K34: 128 | L34: 93 | M34: 80 | N34: 36 | O34: 12 | P34: 8 | Q34: 13 | R34: 370 | T34: 97 | U34: 89 | V34: 87 | W34: 40 | X34: 8 | Y34: 7 | Z34: 27 | AA34: 355 | AC34: 71 | AD34: 90 | AE34: 112 | AF34: 27 | AG34: 10 | AH34: 12 | AI34: 23 | AJ34: 345
A35: South Lanarkshire | B35: 160 | C35: 106 | D35: 192 | E35: 19 | F35: 16 | G35: 55 | H35: 15 | I35: 563 | K35: 157 | L35: 114 | M35: 195 | N35: 19 | O35: 0 | P35: 50 | Q35: 14 | R35: 549 | T35: 178 | U35: 187 | V35: 209 | W35: * | X35: 5 | Y35: 40 | Z35: 35 | AA35: 655 | AC35: 179 | AD35: 259 | AE35: 164 | AF35: 35 | AG35: 15 | AH35: 38 | AI35: 35 | AJ35: 725
A36: Stirling | B36: 65 | C36: 52 | D36: 51 | E36: 7 | F36: * | G36: * | H36: 32 | I36: 216 | K36: 87 | L36: 63 | M36: 56 | N36: * | O36: * | P36: 6 | Q36: 27 | R36: 245 | T36: 83 | U36: 64 | V36: 60 | W36: * | X36: * | Y36: * | Z36: 21 | AA36: 236 | AC36: 97 | AD36: 69 | AE36: 55 | AF36: * | AG36: * | AH36: * | AI36: 13 | AJ36: 238
A37: West Dunbartonshire | B37: 82 | C37: 166 | D37: 45 | E37: 24 | F37: 9 | G37: 21 | H37: 16 | I37: 363 | K37: 100 | L37: 201 | M37: 42 | N37: 34 | O37: 9 | P37: 24 | Q37: 19 | R37: 429 | T37: 108 | U37: 178 | V37: 59 | W37: 47 | X37: 10 | Y37: 24 | Z37: 19 | AA37: 445 | AC37: 111 | AD37: 219 | AE37: 62 | AF37: 55 | AG37: 10 | AH37: 21 | AI37: 27 | AJ37: 505
A38: West Lothian | B38: 117 | C38: 124 | D38: 137 | E38: 17 | F38: 9 | G38: 13 | H38: 32 | I38: 449 | K38: 134 | L38: 137 | M38: 162 | N38: 15 | O38: 10 | P38: 18 | Q38: 35 | R38: 511 | T38: 104 | U38: 139 | V38: 138 | W38: 16 | X38: * | Y38: 15 | Z38: 27 | AA38: 443 | AC38: 110 | AD38: 129 | AE38: 116 | AF38: 20 | AG38: 9 | AH38: 16 | AI38: 27 | AJ38: 427
A39: Scotland | B39: 3870 | C39: 4279 | D39: 3826 | E39: 1566 | F39: 299 | G39: 717 | H39: 760 | I39: 15317 | K39: 3766 | L39: 4138 | M39: 3509 | N39: 1743 | O39: 232 | P39: 746 | Q39: 763 | R39: 14897 | T39: 3789 | U39: 4073 | V39: 3453 | W39: 1491 | X39: 236 | Y39: 721 | Z39: 791 | AA39: 14554 | AC39: 3569 | AD39: 4175 | AE39: 3335 | AF39: 1463 | AG39: 272 | AH39: 708 | AI39: 740 | AJ39: 14262
A40: Notes:
A41: Cells containing * represent numbers that are supressed to maintain confidentiality.
A44: Source: Scottish Government CLAS Returns
B51: 2 | C51: 3 | D51: 4 | E51: 5 | F51: 6 | G51: 7 | H51: 8 | I51: 9 | J51: 10 | K51: 11 | L51: 12 | M51: 13 | N51: 14 | O51: 15 | P51: 16 | Q51: 17 | R51: 18 | S51: 19 | T51: 20 | U51: 21 | V51: 22 | W51: 23 | X51: 24 | Y51: 25 | Z51: 26 | AA51: 27 | AB51: 28 | AC51: 29 | AD51: 30 | AE51: 31 | AF51: 32 | AG51: 33 | AH51: 34 | AI51: 35 | AJ51: 36

Sheet DATA CLA DIS
A1: Children Looked After: by disability status at 31 July 2016 to 2019
B4: 2016 | E4: 2017 | H4: 2018 | K4: 2019
A5: Council | B5: No. of children looked after | C5: No. of children looked after with known additional support needs | D5: % of children looked after with known additional support needs | E5: No. of children looked after | F5: No. of children looked after with a disability | G5: % of children looked after with a disability | H5: No. of children looked after | I5: No. of children looked after with a disability | J5: % of children looked after with a disability | K5: No. of children looked after | L5: No. of children looked after with a disability | M5: % of children looked after with a disability
A6: Aberdeen City | B6: 553 | C6: 144 | D6: 0.26 | E6: 590 | F6: 147 | G6: 0.2491525424 | H6: 549 | I6: 128 | J6: =I6/H6 -> 0.233151184 | K6: 542 | L6: 142 | M6: =L6/K6 -> 0.2619926199
A7: Aberdeenshire | B7: 411 | C7: 70 | D7: 0.17 | E7: 395 | F7: 74 | G7: 0.1873417722 | H7: 409 | I7: 85 | J7: 0.2078239609 | K7: 403 | L7: 80 | M7: 0.1985111663
A8: Angus | B8: 238 | C8: 46 | D8: 0.19 | E8: 255 | F8: 64 | G8: 0.2509803922 | H8: 251 | I8: 58 | J8: 0.2310756972 | K8: 244 | L8: 46 | M8: 0.1885245902
A9: Argyll & Bute | B9: 163 | C9: 36 | D9: 0.22 | E9: 175 | F9: 36 | G9: 0.2057142857 | H9: 149 | I9: 29 | J9: 0.1946308725 | K9: 150 | L9: 34 | M9: 0.2266666667
A10: City of Edinburgh | B10: 1368 | C10: 72 | D10: 0.05 | E10: 1349 | F10: 73 | G10: 0.05411415864 | H10: 1309 | I10: 62 | J10: 0.04736440031 | K10: 1234 | L10: 57 | M10: 0.04619124797
A11: Clackmannanshire | B11: 233 | C11: 12 | D11: 0.05 | E11: 213 | F11: 11 | G11: 0.05164319249 | H11: 211 | I11: 13 | J11: 0.06161137441 | K11: 185 | L11: 13 | M11: 0.07027027027
A12: Dumfries & Galloway | B12: 393 | C12: 23 | D12: 0.06 | E12: 382 | F12: 11 | G12: 0.02879581152 | H12: 439 | I12: 13 | J12: 0.02961275626 | K12: 395 | L12: 11 | M12: 0.02784810127
A13: Dundee City | B13: 592 | C13: 103 | D13: 0.17 | E13: 555 | F13: 113 | G13: 0.2036036036 | H13: 519 | I13: 103 | J13: 0.1984585742 | K13: 463 | L13: 79 | M13: 0.1706263499
A14: East Ayrshire | B14: 463 | C14: 13 | D14: 0.03 | E14: 386 | F14: 9 | G14: 0.02331606218 | H14: 401 | I14: 9 | J14: 0.02244389027 | K14: 375 | L14: 9 | M14: 0.024
A15: East Dunbartonshire | B15: 164 | C15: 25 | D15: 0.15 | E15: 162 | F15: 24 | G15: 0.1481481481 | H15: 140 | I15: 24 | J15: 0.1714285714 | K15: 149 | L15: 22 | M15: 0.1476510067
A16: East Lothian | B16: 229 | C16: 31 | D16: 0.14 | E16: 242 | F16: 30 | G16: 0.1239669421 | H16: 245 | I16: 29 | J16: 0.1183673469 | K16: 246 | L16: 22 | M16: 0.08943089431
A17: East Renfrewshire | B17: 130 | C17: 0 | D17: 0 | E17: 117 | F17: * | G17: * | H17: 110 | I17: * | J17: * | K17: 102 | L17: 5 | M17: 0.04901960784
A18: Falkirk | B18: 373 | C18: 12 | D18: 0.03 | E18: 381 | F18: 9 | G18: 0.02362204724 | H18: 368 | I18: 8 | J18: =I18/H18 -> 0.02173913043 | K18: 344 | L18: 7 | M18: 0.02034883721
A19: Fife | B19: 981 | C19: - | D19: - | E19: 942 | F19: - | G19: - | H19: 941 | I19: - | J19: - | K19: 935 | L19: - | M19: -
A20: Glasgow City | B20: 3294 | C20: 501 | D20: 0.15 | E20: 2827 | F20: 414 | G20: 0.1464449947 | H20: 2645 | I20: 368 | J20: 0.1391304348 | K20: 2523 | L20: 326 | M20: =L20/K20 -> 0.1292112564
A21: Highland | B21: 440 | C21: 83 | D21: 0.19 | E21: 487 | F21: 58 | G21: 0.1190965092 | H21: 521 | I21: 71 | J21: 0.1362763916 | K21: 483 | L21: 37 | M21: =L21/K21 -> 0.07660455487
A22: Inverclyde | B22: 207 | C22: 47 | D22: 0.23 | E22: 218 | F22: 55 | G22: 0.252293578 | H22: 199 | I22: 48 | J22: 0.2412060302 | K22: 205 | L22: 31 | M22: =L22/K22 -> 0.1512195122
A23: Midlothian | B23: 250 | C23: 12 | D23: 0.05 | E23: 259 | F23: 14 | G23: 0.05405405405 | H23: 233 | I23: 12 | J23: 0.05150214592 | K23: 218 | L23: 150 | M23: =L23/K23 -> 0.6880733945
A24: Moray | B24: 213 | C24: 26 | D24: 0.12 | E24: 215 | F24: 30 | G24: 0.1395348837 | H24: 222 | I24: 32 | J24: 0.1441441441 | K24: 210 | L24: 29 | M24: =L24/K24 -> 0.1380952381
A25: Na h-Eileanan Siar | B25: 37 | C25: 5 | D25: 0.14 | E25: 47 | F25: * | G25: * | H25: 41 | I25: * | J25: * | K25: 39 | L25: * | M25: *
A26: North Ayrshire | B26: 603 | C26: 158 | D26: 0.26 | E26: 585 | F26: 56 | G26: 0.09572649573 | H26: 563 | I26: 51 | J26: =I26/H26 -> 0.09058614565 | K26: 550 | L26: 55 | M26: =L26/K26 -> 0.1
A27: North Lanarkshire | B27: 765 | C27: 56 | D27: 0.07 | E27: 773 | F27: 50 | G27: 0.06468305304 | H27: 754 | I27: 33 | J27: =I27/H27 -> 0.04376657825 | K27: 850 | L27: 39 | M27: =L27/K27 -> 0.04588235294
A28: Orkney Islands | B28: 28 | C28: * | D28: * | E28: 38 | F28: * | G28: * | H28: 31 | I28: * | J28: * | K28: 37 | L28: * | M28: *
A29: Perth & Kinross | B29: 286 | C29: 46 | D29: 0.16 | E29: 281 | F29: 37 | G29: 0.1316725979 | H29: 280 | I29: 29 | J29: =I29/H29 -> 0.1035714286 | K29: 282 | L29: 19 | M29: =L29/K29 -> 0.06737588652
A30: Renfrewshire | B30: 681 | C30: 34 | D30: 0.05 | E30: 659 | F30: 41 | G30: 0.062215478 | H30: 656 | I30: 30 | J30: 0.04573170732 | K30: 629 | L30: 31 | M30: =L30/K30 -> 0.0492845787
A31: Scottish Borders | B31: 218 | C31: 17 | D31: 0.08 | E31: 228 | F31: 14 | G31: 0.06140350877 | H31: 205 | I31: 14 | J31: 0.06829268293 | K31: 195 | L31: 15 | M31: =L31/K31 -> 0.07692307692
A32: Shetland Islands | B32: 29 | C32: * | D32: * | E32: 32 | F32: 5 | G32: 0.15625 | H32: 29 | I32: * | J32: * | K32: 34 | L32: * | M32: *
A33: South Ayrshire | B33: 384 | C33: 84 | D33: 0.22 | E33: 370 | F33: 73 | G33: 0.1972972973 | H33: 355 | I33: 68 | J33: 0.1915492958 | K33: 345 | L33: 58 | M33: =L33/K33 -> 0.168115942
A34: South Lanarkshire | B34: 563 | C34: 43 | D34: 0.08 | E34: 549 | F34: 67 | G34: 0.1220400729 | H34: 655 | I34: 79 | J34: 0.120610687 | K34: 725 | L34: 84 | M34: =L34/K34 -> 0.115862069
A35: Stirling | B35: 216 | C35: 14 | D35: 0.06 | E35: 245 | F35: 19 | G35: 0.07755102041 | H35: 236 | I35: 20 | J35: 0.08474576271 | K35: 238 | L35: 25 | M35: =L35/K35 -> 0.1050420168
A36: West Dunbartonshire | B36: 363 | C36: 50 | D36: 0.14 | E36: 429 | F36: 55 | G36: 0.1282051282 | H36: 445 | I36: 50 | J36: 0.1123595506 | K36: 505 | L36: 56 | M36: =L36/K36 -> 0.1108910891
A37: West Lothian | B37: 449 | C37: 27 | D37: 0.06 | E37: 511 | F37: 40 | G37: 0.0782778865 | H37: 443 | I37: 46 | J37: 0.1038374718 | K37: 427 | L37: 46 | M37: =L37/K37 -> 0.1077283372
A38: SCOTLAND | B38: 15317 | C38: 1797 | D38: 0.12 | E38: 14897 | F38: 1636 | G38: 0.1098207693 | H38: 14554 | I38: 1523 | J38: 0.1046447712 | K38: 14262 | L38: 1535 | M38: =L38/K38 -> 0.1076286636
A39: Notes:
A40: Cells containing * represent numbers that are supressed to maintain confidentiality.
A41: Source: Scottish Government CLAS Returns

Sheet DATA CLA 3P
A1: Children Looked After: Number with 3 or more placements during the past year for those looked at 31 July 2016 to 2019
C3: 2016 | G3: 2017 | K3: 2018 | O3: 2019
C4: Number of children looked after | D4: Number with 3 or more placements | E4: Percentage with 3 or more placements | G4: Number of children looked after | H4: Number with 3 or more placements | I4: Percentage with 3 or more placements | K4: Number of children looked after | L4: Number with 3 or more placements | M4: Percentage with 3 or more placements | O4: Number of children looked after | P4: Number with 3 or more placements | Q4: Percentage with 3 or more placements
A5: Council
A6: Aberdeen City | C6: 553 | D6: 31 | E6: 0.05605786618 | G6: 590 | H6: 49 | I6: 0.08305084746 | K6: 549 | L6: 31 | M6: =L6/K6 -> 0.05646630237 | O6: 542 | P6: 29 | Q6: =P6/O6 -> 0.05350553506
A7: Aberdeenshire | C7: 411 | D7: 16 | E7: 0.03892944039 | G7: 395 | H7: 21 | I7: 0.05316455696 | K7: 409 | L7: 20 | M7: 0.0488997555 | O7: 403 | P7: 29 | Q7: 0.07196029777
A8: Angus | C8: 238 | D8: 24 | E8: 0.1008403361 | G8: 255 | H8: 19 | I8: 0.07450980392 | K8: 251 | L8: 31 | M8: 0.1235059761 | O8: 244 | P8: 18 | Q8: 0.0737704918
A9: Argyll & Bute | C9: 163 | D9: 7 | E9: 0.04294478528 | G9: 175 | H9: 14 | I9: 0.08 | K9: 149 | L9: 6 | M9: 0.04026845638 | O9: 150 | P9: 9 | Q9: 0.06
A10: City of Edinburgh | C10: 1368 | D10: 112 | E10: 0.08187134503 | G10: 1349 | H10: 85 | I10: 0.06300963677 | K10: 1309 | L10: 94 | M10: 0.0718105424 | O10: 1234 | P10: 91 | Q10: 0.0737439222
A11: Clackmannanshire | C11: 233 | D11: 11 | E11: 0.04721030043 | G11: 213 | H11: 7 | I11: 0.03286384977 | K11: 211 | L11: 9 | M11: 0.04265402844 | O11: 185 | P11: 11 | Q11: 0.05945945946
A12: Dumfries and Galloway | C12: 393 | D12: 35 | E12: 0.08905852417 | G12: 382 | H12: 26 | I12: 0.06806282723 | K12: 439 | L12: 27 | M12: 0.06150341686 | O12: 395 | P12: 19 | Q12: 0.04810126582
A13: Dundee City | C13: 592 | D13: 66 | E13: 0.1114864865 | G13: 555 | H13: 29 | I13: 0.05225225225 | K13: 519 | L13: 33 | M13: 0.06358381503 | O13: 463 | P13: 39 | Q13: 0.08423326134
A14: East Ayrshire | C14: 463 | D14: 15 | E14: 0.03239740821 | G14: 386 | H14: 25 | I14: 0.06476683938 | K14: 401 | L14: 16 | M14: 0.03990024938 | O14: 375 | P14: 15 | Q14: 0.04
A15: East Dunbartonshire | C15: 164 | D15: 5 | E15: 0.03048780488 | G15: 162 | H15: 14 | I15: 0.08641975309 | K15: 140 | L15: 5 | M15: 0.03571428571 | O15: 149 | P15: * | Q15: *
A16: East Lothian | C16: 229 | D16: 7 | E16: 0.03056768559 | G16: 242 | H16: 13 | I16: 0.05371900826 | K16: 245 | L16: 5 | M16: 0.02040816327 | O16: 246 | P16: 15 | Q16: 0.06097560976
A17: East Renfrewshire | C17: 130 | D17: 7 | E17: 0.05384615385 | G17: 117 | H17: 5 | I17: 0.04273504274 | K17: 110 | L17: * | M17: * | O17: 102 | P17: 7 | Q17: 0.06862745098
A18: Falkirk | C18: 373 | D18: 21 | E18: 0.0563002681 | G18: 381 | H18: 22 | I18: 0.05774278215 | K18: 368 | L18: 26 | M18: 0.07065217391 | O18: 344 | P18: 34 | Q18: 0.0988372093
A19: Fife | C19: 981 | D19: 64 | E19: 0.06523955148 | G19: 942 | H19: 74 | I19: 0.07855626327 | K19: 941 | L19: 64 | M19: 0.06801275239 | O19: 935 | P19: 50 | Q19: 0.05347593583
A20: Glasgow City | C20: 3294 | D20: 94 | E20: 0.02853673345 | G20: 2827 | H20: 100 | I20: 0.03537318712 | K20: 2645 | L20: 62 | M20: 0.02344045369 | O20: 2523 | P20: 59 | Q20: 0.02338485929
A21: Highland | C21: 440 | D21: 66 | E21: 0.15 | G21: 487 | H21: 67 | I21: 0.1375770021 | K21: 521 | L21: 49 | M21: 0.09404990403 | O21: 483 | P21: 46 | Q21: 0.09523809524
A22: Inverclyde | C22: 207 | D22: 11 | E22: 0.05314009662 | G22: 218 | H22: * | I22: * | K22: 199 | L22: 6 | M22: 0.03015075377 | O22: 205 | P22: 6 | Q22: 0.02926829268
A23: Midlothian | C23: 250 | D23: * | E23: * | G23: 259 | H23: 19 | I23: 0.07335907336 | K23: 233 | L23: 13 | M23: 0.05579399142 | O23: 218 | P23: 8 | Q23: 0.03669724771
A24: Moray | C24: 213 | D24: 23 | E24: 0.1079812207 | G24: 215 | H24: 18 | I24: 0.08372093023 | K24: 222 | L24: 21 | M24: 0.09459459459 | O24: 210 | P24: 22 | Q24: 0.1047619048
A25: Na h-Eileanan Siar | C25: 37 | D25: 20 | E25: 0.5405405405 | G25: 47 | H25: 17 | I25: 0.3617021277 | K25: 41 | L25: 16 | M25: =L25/K25 -> 0.3902439024 | O25: 39 | P25: 11 | Q25: 0.2820512821
A26: North Ayrshire | C26: 603 | D26: 25 | E26: 0.04145936982 | G26: 585 | H26: 27 | I26: 0.04615384615 | K26: 563 | L26: 18 | M26: =L26/K26 -> 0.03197158082 | O26: 550 | P26: 37 | Q26: 0.06727272727
A27: North Lanarkshire | C27: 765 | D27: 0 | E27: 0 | G27: 773 | H27: 8 | I27: 0.01034928849 | K27: 754 | L27: * | M27: * | O27: 850 | P27: 12 | Q27: 0.01411764706
A28: Orkney Islands | C28: 28 | D28: * | E28: * | G28: 38 | H28: 0 | I28: 0 | K28: 31 | L28: 5 | M28: 0 | O28: 37 | P28: 6 | Q28: 0.1621621622
A29: Perth and Kinross | C29: 286 | D29: 32 | E29: 0.1118881119 | G29: 281 | H29: 23 | I29: 0.08185053381 | K29: 280 | L29: 19 | M29: =L29/K29 -> 0.06785714286 | O29: 282 | P29: 31 | Q29: 0.109929078
A30: Renfrewshire | C30: 681 | D30: 34 | E30: 0.04992657856 | G30: 659 | H30: 29 | I30: 0.0440060698 | K30: 656 | L30: 22 | M30: =L30/K30 -> 0.03353658537 | O30: 629 | P30: 35 | Q30: 0.05564387917
A31: Scottish Borders | C31: 218 | D31: * | E31: * | G31: 228 | H31: * | I31: * | K31: 205 | L31: * | M31: * | O31: 195 | P31: 5 | Q31: 0.02564102564
A32: Shetland Islands | C32: 29 | D32: 0 | E32: 0 | G32: 32 | H32: 0 | I32: 0 | K32: 29 | L32: * | M32: * | O32: 34 | P32: * | Q32: *
A33: South Ayrshire | C33: 384 | D33: 8 | E33: 0.02083333333 | G33: 370 | H33: 23 | I33: 0.06216216216 | K33: 355 | L33: 24 | M33: =L33/K33 -> 0.0676056338 | O33: 345 | P33: 16 | Q33: 0.04637681159
A34: South Lanarkshire | C34: 563 | D34: 24 | E34: 0.04262877442 | G34: 549 | H34: 23 | I34: 0.04189435337 | K34: 655 | L34: 37 | M34: 0.05648854962 | O34: 725 | P34: 16 | Q34: =P34/O34 -> 0.02206896552
A35: Stirling | C35: 216 | D35: 16 | E35: 0.07407407407 | G35: 245 | H35: 11 | I35: 0.04489795918 | K35: 236 | L35: 12 | M35: 0.05084745763 | O35: 238 | P35: 11 | Q35: =P35/O35 -> 0.04621848739
A36: West Dunbartonshire | C36: 363 | D36: 21 | E36: 0.05785123967 | G36: 429 | H36: 14 | I36: 0.03263403263 | K36: 445 | L36: 22 | M36: 0.04943820225 | O36: 505 | P36: 27 | Q36: =P36/O36 -> 0.05346534653
A37: West Lothian | C37: 449 | D37: 28 | E37: 0.06236080178 | G37: 511 | H37: 27 | I37: 0.05283757339 | K37: 443 | L37: 15 | M37: 0.03386004515 | O37: 427 | P37: 22 | Q37: =P37/O37 -> 0.05152224824
A38: SCOTLAND | C38: 15317 | D38: 833 | E38: 0.05438401776 | G38: 14897 | H38: 815 | I38: 0.05470900181 | K38: 14554 | L38: 718 | M38: =L38/K38 -> 0.04933351656 | O38: 14262 | P38: 742 | Q38: =P38/O38 -> 0.05202636376
A39: Notes:
A41: The figures refer to the number of placements a child has between the 1st August and 31st July of each year.
A42: Cells containing * represent numbers that are supressed to maintain confidentiality.
A43: Source: Scottish Government CLAS Returns

Sheet REF EA Name (hidden)
A1: EA Code | B1: EA Name
A3: 100 | B3: Aberdeen City
A4: 110 | B4: Aberdeenshire
A5: 120 | B5: Angus
A6: 130 | B6: Argyll & Bute
A7: 230 | B7: City of Edinburgh
A8: 150 | B8: Clackmannanshire
A9: 170 | B9: Dumfries and Galloway
A10: 180 | B10: Dundee City
A11: 190 | B11: East Ayrshire
A12: 200 | B12: East Dunbartonshire
A13: 210 | B13: East Lothian
A14: 220 | B14: East Renfrewshire
A15: 240 | B15: Falkirk
A16: 250 | B16: Fife
A17: 260 | B17: Glasgow City
A18: 270 | B18: Highland
A19: 280 | B19: Inverclyde
A20: 290 | B20: Midlothian
A21: 300 | B21: Moray
A22: 235 | B22: Na h-Eileanan Siar
A23: 310 | B23: North Ayrshire
A24: 320 | B24: North Lanarkshire
A25: 330 | B25: Orkney Islands
A26: 340 | B26: Perth and Kinross
A27: 350 | B27: Renfrewshire
A28: 355 | B28: Scottish Borders
A29: 360 | B29: Shetland Islands
A30: 370 | B30: South Ayrshire
A31: 380 | B31: South Lanarkshire
A32: 390 | B32: Stirling
A33: 395 | B33: West Dunbartonshire
A34: 400 | B34: West Lothian
B35: [no comparator]

Sheet REF CAS2 (hidden)
A2: 100 | B2: Aberdeen City | C2: City of Edinburgh | D2: **** | E2: Dundee City | F2: *** | G2: South Ayrshire | H2: *** | I2: Argyll and Bute | J2: *** | K2: Renfrewshire | L2: ***
A3: 110 | B3: Aberdeenshire | C3: Stirling | D3: **** | E3: Perth and Kinross | F3: **** | G3: Highland | H3: **** | I3: Scottish Borders | J3: **** | K3: South Lanarkshire | L3: ****
A4: 120 | B4: Angus | C4: Highland | D4: ***** | E4: Dumfries and Galloway | F4: ***** | G4: Moray | H4: ***** | I4: Scottish Borders | J4: **** | K4: South Ayrshire | L4: ****
A5: 130 | B5: Argyll & Bute | C5: South Ayrshire | D5: ***** | E5: Dumfries and Galloway | F5: **** | G5: Scottish Borders | H5: **** | I5: Highland | J5: **** | K5: Angus | L5: ****
A6: 230 | B6: City of Edinburgh | C6: Aberdeen City | D6: **** | E6: Dundee City | F6: ** | G6: South Ayrshire | H6: ** | I6: Argyll and Bute | J6: ** | K6: Renfrewshire | L6: **
A7: 150 | B7: Clackmannanshire | C7: North Lanarkshire | D7: ***** | E7: West Lothian | F7: **** | G7: Falkirk | H7: **** | I7: South Lanarkshire | J7: **** | K7: East Ayrshire | L7: ****
A8: 170 | B8: Dumfries & Galloway | C8: Angus | D8: ***** | E8: Highland | F8: **** | G8: Argyll and Bute | H8: **** | I8: Scottish Borders | J8: **** | K8: Moray | L8: ****
A9: 180 | B9: Dundee City | C9: Aberdeen City | D9: *** | E9: Renfrewshire | F9: *** | G9: Dumfries and Galloway | H9: *** | I9: Inverclyde | J9: *** | K9: South Ayrshire | L9: ***
A10: 190 | B10: East Ayrshire | C10: North Lanarkshire | D10: ***** | E10: Clackmannanshire | F10: **** | G10: Falkirk | H10: **** | I10: North Ayrshire | J10: **** | K10: West Lothian | L10: ****
A11: 200 | B11: East Dunbartonshire | C11: East Renfrewshire | D11: **** | E11: Stirling | F11: **** | G11: East Lothian | H11: **** | I11: Aberdeenshire | J11: *** | K11: Perth and Kinross | L11: ***
A12: 210 | B12: East Lothian | C12: Stirling | D12: **** | E12: Midlothian | F12: **** | G12: Fife | H12: **** | I12: Aberdeenshire | J12: **** | K12: South Lanarkshire | L12: ****
A13: 220 | B13: East Renfrewshire | C13: East Dunbartonshire | D13: **** | E13: East Lothian | F13: **** | G13: Stirling | H13: *** | I13: Aberdeenshire | J13: *** | K13: Midlothian | L13: ***
A14: 240 | B14: Falkirk | C14: South Lanarkshire | D14: **** | E14: Fife | F14: **** | G14: Clackmannanshire | H14: **** | I14: Moray | J14: **** | K14: Angus | L14: ****
A15: 250 | B15: Fife | C15: South Lanarkshire | D15: ***** | E15: Falkirk | F15: **** | G15: Clackmannanshire | H15: **** | I15: West Lothian | J15: **** | K15: Renfrewshire | L15: ****
A16: 260 | B16: Glasgow City | C16: Dundee City | D16: *** | E16: West Dunbartonshire | F16: *** | G16: Inverclyde | H16: *** | I16: Aberdeen City | J16: *** | K16: Renfrewshire | L16: ***
A17: 270 | B17: Highland | C17: Angus | D17: ***** | E17: Scottish Borders | F17: ***** | G17: Dumfries and Galloway | H17: **** | I17: Moray | J17: **** | K17: Argyll and Bute | L17: ****
A18: 280 | B18: Inverclyde | C18: West Dunbartonshire | D18: **** | E18: North Ayrshire | F18: **** | G18: North Lanarkshire | H18: **** | I18: East Ayrshire | J18: **** | K18: Renfrewshire | L18: ****
A19: 290 | B19: Midlothian | C19: West Lothian | D19: **** | E19: Fife | F19: **** | G19: Clackmannanshire | H19: **** | I19: South Lanarkshire | J19: **** | K19: East Lothian | L19: ****
A20: 300 | B20: Moray | C20: Angus | D20: ***** | E20: Highland | F20: **** | G20: Dumfries and Galloway | H20: **** | I20: Falkirk | J20: **** | K20: Scottish Borders | L20: ****
A21: 235 | B21: Na h-Eileanan Siar | C21: Orkney Islands | D21: **** | E21: Dumfries and Galloway | F21: *** | G21: Scottish Borders | H21: *** | I21: Highland | J21: *** | K21: Moray | L21: ***
A22: 310 | B22: North Ayrshire | C22: North Lanarkshire | D22: **** | E22: Inverclyde | F22: **** | G22: Clackmannanshire | H22: **** | I22: West Dunbartonshire | J22: **** | K22: West Lothian | L22: ****
A23: 320 | B23: North Lanarkshire | C23: Clackmannanshire | D23: ***** | E23: East Ayrshire | F23: ***** | G23: Falkirk | H23: **** | I23: West Lothian | J23: **** | K23: North Ayrshire | L23: ****
A24: 330 | B24: Orkney Islands | C24: Scottish Borders | D24: **** | E24: Highland | F24: **** | G24: Na h-Eileanan Siar | H24: **** | I24: Moray | J24: **** | K24: Shetland Islands | L24: ****
A25: 340 | B25: Perth & Kinross | C25: Scottish Borders | D25: **** | E25: Argyll and Bute | F25: **** | G25: Aberdeenshire | H25: **** | I25: Stirling | J25: **** | K25: Highland | L25: ****
A26: 350 | B26: Renfrewshire | C26: Fife | D26: **** | E26: Falkirk | F26: **** | G26: Clackmannanshire | H26: **** | I26: West Dunbartonshire | J26: **** | K26: South Lanarkshire | L26: ****
A27: 355 | B27: Scottish Borders | C27: Highland | D27: ***** | E27: Angus | F27: **** | G27: Dumfries and Galloway | H27: **** | I27: Argyll and Bute | J27: **** | K27: Perth and Kinross | L27: ****
A28: 360 | B28: Shetland Islands | C28: Orkney Islands | D28: **** | E28: Moray | F28: **** | G28: Highland | H28: **** | I28: Scottish Borders | J28: **** | K28: Angus | L28: ***
A29: 370 | B29: South Ayrshire | C29: Argyll and Bute | D29: ***** | E29: Angus | F29: **** | G29: Dumfries and Galloway | H29: **** | I29: Highland | J29: **** | K29: Scottish Borders | L29: ****
A30: 380 | B30: South Lanarkshire | C30: Fife | D30: ***** | E30: Falkirk | F30: **** | G30: West Lothian | H30: **** | I30: Clackmannanshire | J30: **** | K30: North Lanarkshire | L30: ****
A31: 390 | B31: Stirling | C31: Aberdeenshire | D31: **** | E31: Perth and Kinross | F31: **** | G31: East Lothian | H31: **** | I31: South Ayrshire | J31: **** | K31: Fife | L31: ****
A32: 395 | B32: West Dunbartonshire | C32: Inverclyde | D32: **** | E32: Renfrewshire | F32: **** | G32: North Ayrshire | H32: **** | I32: Clackmannanshire | J32: **** | K32: Midlothian | L32: ****
A33: 400 | B33: West Lothian | C33: Clackmannanshire | D33: **** | E33: South Lanarkshire | F33: **** | G33: Midlothian | H33: **** | I33: North Lanarkshire | J33: **** | K33: Fife | L33: ****

Sheet REF CAs (hidden)
A1: 1 | B1: =INDEX($J$1:$K$32,MATCH(C39,$J$1:$J$32,0),2) -> 5 | C1: =INDEX($J$1:$K$32,MATCH(D39,$J$1:$J$32,0),2) -> 8 | D1: 28 | E1: 4 | F1: 25 | I1: Aberdeen City | J1: Aberdeen City | K1: 1
A2: 2 | B2: =INDEX($J$1:$K$32,MATCH(C40,$J$1:$J$32,0),2) -> 30 | C2: 24 | D2: 16 | E2: 26 | F2: 29 | I2: Aberdeenshire | J2: Aberdeenshire | K2: 2
A3: 3 | B3: =INDEX($J$1:$K$32,MATCH(C41,$J$1:$J$32,0),2) -> 16 | C3: 7 | D3: 19 | E3: 26 | F3: 28 | I3: Angus | J3: Angus | K3: 3
A4: 4 | B4: =INDEX($J$1:$K$32,MATCH(C42,$J$1:$J$32,0),2) -> 28 | C4: 7 | D4: 26 | E4: 16 | F4: 3 | I4: Argyll and Bute | J4: Argyll and Bute | K4: 4
A5: 5 | B5: =INDEX($J$1:$K$32,MATCH(C43,$J$1:$J$32,0),2) -> 1 | C5: 8 | D5: 28 | E5: 4 | F5: 25 | I5: Clackmannanshire | J5: City of Edinburgh | K5: 5
A6: 6 | B6: =INDEX($J$1:$K$32,MATCH(C44,$J$1:$J$32,0),2) -> 22 | C6: 32 | D6: 13 | E6: 29 | F6: 9 | I6: Dumfries and Galloway | J6: Clackmannanshire | K6: 6
A7: 7 | B7: =INDEX($J$1:$K$32,MATCH(C45,$J$1:$J$32,0),2) -> 3 | C7: 16 | D7: 4 | E7: 26 | F7: 19 | I7: Dundee City | J7: Dumfries and Galloway | K7: 7
A8: 8 | B8: =INDEX($J$1:$K$32,MATCH(C46,$J$1:$J$32,0),2) -> 1 | C8: 25 | D8: 7 | E8: 17 | F8: 28 | I8: East Ayrshire | J8: Dundee City | K8: 8
A9: 9 | B9: =INDEX($J$1:$K$32,MATCH(C47,$J$1:$J$32,0),2) -> 22 | C9: 6 | D9: 13 | E9: 21 | F9: 32 | I9: East Dunbartonshire | J9: East Ayrshire | K9: 9
A10: 10 | B10: =INDEX($J$1:$K$32,MATCH(C48,$J$1:$J$32,0),2) -> 12 | C10: 30 | D10: 11 | E10: 2 | F10: 24 | I10: East Lothian | J10: East Dunbartonshire | K10: 10
A11: 11 | B11: =INDEX($J$1:$K$32,MATCH(C49,$J$1:$J$32,0),2) -> 30 | C11: 18 | D11: 14 | E11: 2 | F11: 29 | I11: East Renfrewshire | J11: East Lothian | K11: 11
A12: 12 | B12: =INDEX($J$1:$K$32,MATCH(C50,$J$1:$J$32,0),2) -> 10 | C12: 11 | D12: 30 | E12: 2 | F12: 18 | I12: Edinburgh | J12: East Renfrewshire | K12: 12
A13: 13 | B13: =INDEX($J$1:$K$32,MATCH(C51,$J$1:$J$32,0),2) -> 29 | C13: 14 | D13: 6 | E13: 19 | F13: 3 | I13: Eilean Siar | J13: Falkirk | K13: 13
A14: 14 | B14: =INDEX($J$1:$K$32,MATCH(C52,$J$1:$J$32,0),2) -> 29 | C14: 13 | D14: 6 | E14: 32 | F14: 25 | I14: Falkirk | J14: Fife | K14: 14
A15: 15 | B15: =INDEX($J$1:$K$32,MATCH(C53,$J$1:$J$32,0),2) -> 8 | C15: 31 | D15: 17 | E15: 1 | F15: 25 | I15: Fife | J15: Glasgow City | K15: 15
A16: 16 | B16: =INDEX($J$1:$K$32,MATCH(C54,$J$1:$J$32,0),2) -> 3 | C16: 26 | D16: 7 | E16: 19 | F16: 4 | I16: Glasgow City | J16: Highland | K16: 16
A17: 17 | B17: =INDEX($J$1:$K$32,MATCH(C55,$J$1:$J$32,0),2) -> 31 | C17: 21 | D17: 22 | E17: 9 | F17: 25 | I17: Highland | J17: Inverclyde | K17: 17
A18: 18 | B18: =INDEX($J$1:$K$32,MATCH(C56,$J$1:$J$32,0),2) -> 32 | C18: 14 | D18: 6 | E18: 29 | F18: 11 | I18: Inverclyde | J18: Midlothian | K18: 18
A19: 19 | B19: =INDEX($J$1:$K$32,MATCH(C57,$J$1:$J$32,0),2) -> 3 | C19: 16 | D19: 7 | E19: 13 | F19: 26 | I19: Midlothian | J19: Moray | K19: 19
A20: 20 | B20: =INDEX($J$1:$K$32,MATCH(C58,$J$1:$J$32,0),2) -> 23 | C20: 7 | D20: 26 | E20: 16 | F20: 19 | I20: Moray | J20: Na h-Eileanan Siar | K20: 20
A21: 21 | B21: =INDEX($J$1:$K$32,MATCH(C59,$J$1:$J$32,0),2) -> 22 | C21: 17 | D21: 6 | E21: 31 | F21: 32 | I21: North Ayrshire | J21: North Ayrshire | K21: 21
A22: 22 | B22: =INDEX($J$1:$K$32,MATCH(C60,$J$1:$J$32,0),2) -> 6 | C22: 9 | D22: 13 | E22: 32 | F22: 21 | I22: North Lanarkshire | J22: North Lanarkshire | K22: 22
A23: 23 | B23: =INDEX($J$1:$K$32,MATCH(C61,$J$1:$J$32,0),2) -> 26 | C23: 16 | D23: 20 | E23: 19 | F23: 27 | I23: Orkney Islands | J23: Orkney Islands | K23: 23
A24: 24 | B24: =INDEX($J$1:$K$32,MATCH(C62,$J$1:$J$32,0),2) -> 26 | C24: 4 | D24: 2 | E24: 30 | F24: 16 | I24: Perth and Kinross | J24: Perth and Kinross | K24: 24
A25: 25 | B25: =INDEX($J$1:$K$32,MATCH(C63,$J$1:$J$32,0),2) -> 14 | C25: 13 | D25: 6 | E25: 31 | F25: 29 | I25: Renfrewshire | J25: Renfrewshire | K25: 25
A26: 26 | B26: =INDEX($J$1:$K$32,MATCH(C64,$J$1:$J$32,0),2) -> 16 | C26: 3 | D26: 7 | E26: 4 | F26: 24 | I26: Scottish Borders | J26: Scottish Borders | K26: 26
A27: 27 | B27: =INDEX($J$1:$K$32,MATCH(C65,$J$1:$J$32,0),2) -> 23 | C27: 19 | D27: 16 | E27: 26 | F27: 3 | I27: Shetland Islands | J27: Shetland Islands | K27: 27
A28: 28 | B28: =INDEX($J$1:$K$32,MATCH(C66,$J$1:$J$32,0),2) -> 4 | C28: 3 | D28: 7 | E28: 16 | F28: 26 | I28: South Ayrshire | J28: South Ayrshire | K28: 28
A29: 29 | B29: =INDEX($J$1:$K$32,MATCH(C67,$J$1:$J$32,0),2) -> 14 | C29: 13 | D29: 32 | E29: 6 | F29: 22 | I29: South Lanarkshire | J29: South Lanarkshire | K29: 29
A30: 30 | B30: =INDEX($J$1:$K$32,MATCH(C68,$J$1:$J$32,0),2) -> 2 | C30: 24 | D30: 11 | E30: 28 | F30: 14 | I30: Stirling | J30: Stirling | K30: 30
A31: 31 | B31: =INDEX($J$1:$K$32,MATCH(C69,$J$1:$J$32,0),2) -> 17 | C31: 25 | D31: 21 | E31: 6 | F31: 18 | I31: West Dunbartonshire | J31: West Dunbartonshire | K31: 31
A32: 32 | B32: =INDEX($J$1:$K$32,MATCH(C70,$J$1:$J$32,0),2) -> 6 | C32: 29 | D32: 18 | E32: 22 | F32: 14 | I32: West Lothian | J32: West Lothian | K32: 32
A39: 1 | B39: Aberdeen City | C39: City of Edinburgh | D39: Dundee City | E39: South Ayrshire | F39: Argyll and Bute | G39: Renfrewshire
A40: 2 | B40: Aberdeenshire | C40: Stirling | D40: Perth and Kinross | E40: Highland | F40: Scottish Borders | G40: South Lanarkshire
A41: 3 | B41: Angus | C41: Highland | D41: Dumfries and Galloway | E41: Moray | F41: Scottish Borders | G41: South Ayrshire
A42: 4 | B42: Argyll & Bute | C42: South Ayrshire | D42: Dumfries and Galloway | E42: Scottish Borders | F42: Highland | G42: Angus
A43: 5 | B43: City of Edinburgh | C43: Aberdeen City | D43: Dundee City | E43: South Ayrshire | F43: Argyll and Bute | G43: Renfrewshire
A44: 6 | B44: Clackmannanshire | C44: North Lanarkshire | D44: West Lothian | E44: Falkirk | F44: South Lanarkshire | G44: East Ayrshire
A45: 7 | B45: Dumfries & Galloway | C45: Angus | D45: Highland | E45: Argyll and Bute | F45: Scottish Borders | G45: Moray
A46: 8 | B46: Dundee City | C46: Aberdeen City | D46: Renfrewshire | E46: Dumfries and Galloway | F46: Inverclyde | G46: South Ayrshire
A47: 9 | B47: East Ayrshire | C47: North Lanarkshire | D47: Clackmannanshire | E47: Falkirk | F47: North Ayrshire | G47: West Lothian
A48: 10 | B48: East Dunbartonshire | C48: East Renfrewshire | D48: Stirling | E48: East Lothian | F48: Aberdeenshire | G48: Perth and Kinross
A49: 11 | B49: East Lothian | C49: Stirling | D49: Midlothian | E49: Fife | F49: Aberdeenshire | G49: South Lanarkshire
A50: 12 | B50: East Renfrewshire | C50: East Dunbartonshire | D50: East Lothian | E50: Stirling | F50: Aberdeenshire | G50: Midlothian
A51: 13 | B51: Falkirk | C51: South Lanarkshire | D51: Fife | E51: Clackmannanshire | F51: Moray | G51: Angus
A52: 14 | B52: Fife | C52: South Lanarkshire | D52: Falkirk | E52: Clackmannanshire | F52: West Lothian | G52: Renfrewshire
A53: 15 | B53: Glasgow City | C53: Dundee City | D53: West Dunbartonshire | E53: Inverclyde | F53: Aberdeen City | G53: Renfrewshire
A54: 16 | B54: Highland | C54: Angus | D54: Scottish Borders | E54: Dumfries and Galloway | F54: Moray | G54: Argyll and Bute
A55: 17 | B55: Inverclyde | C55: West Dunbartonshire | D55: North Ayrshire | E55: North Lanarkshire | F55: East Ayrshire | G55: Renfrewshire
A56: 18 | B56: Midlothian | C56: West Lothian | D56: Fife | E56: Clackmannanshire | F56: South Lanarkshire | G56: East Lothian
A57: 19 | B57: Moray | C57: Angus | D57: Highland | E57: Dumfries and Galloway | F57: Falkirk | G57: Scottish Borders
A58: 20 | B58: Na h-Eileanan Siar | C58: Orkney Islands | D58: Dumfries and Galloway | E58: Scottish Borders | F58: Highland | G58: Moray
A59: 21 | B59: North Ayrshire | C59: North Lanarkshire | D59: Inverclyde | E59: Clackmannanshire | F59: West Dunbartonshire | G59: West Lothian
A60: 22 | B60: North Lanarkshire | C60: Clackmannanshire | D60: East Ayrshire | E60: Falkirk | F60: West Lothian | G60: North Ayrshire
A61: 23 | B61: Orkney Islands | C61: Scottish Borders | D61: Highland | E61: Na h-Eileanan Siar | F61: Moray | G61: Shetland Islands
A62: 24 | B62: Perth & Kinross | C62: Scottish Borders | D62: Argyll and Bute | E62: Aberdeenshire | F62: Stirling | G62: Highland
A63: 25 | B63: Renfrewshire | C63: Fife | D63: Falkirk | E63: Clackmannanshire | F63: West Dunbartonshire | G63: South Lanarkshire
A64: 26 | B64: Scottish Borders | C64: Highland | D64: Angus | E64: Dumfries and Galloway | F64: Argyll and Bute | G64: Perth and Kinross
A65: 27 | B65: Shetland Islands | C65: Orkney Islands | D65: Moray | E65: Highland | F65: Scottish Borders | G65: Angus
A66: 28 | B66: South Ayrshire | C66: Argyll and Bute | D66: Angus | E66: Dumfries and Galloway | F66: Highland | G66: Scottish Borders
A67: 29 | B67: South Lanarkshire | C67: Fife | D67: Falkirk | E67: West Lothian | F67: Clackmannanshire | G67: North Lanarkshire
A68: 30 | B68: Stirling | C68: Aberdeenshire | D68: Perth and Kinross | E68: East Lothian | F68: South Ayrshire | G68: Fife
A69: 31 | B69: West Dunbartonshire | C69: Inverclyde | D69: Renfrewshire | E69: North Ayrshire | F69: Clackmannanshire | G69: Midlothian
A70: 32 | B70: West Lothian | C70: Clackmannanshire | D70: South Lanarkshire | E70: Midlothian | F70: North Lanarkshire | G70: Fife
